Service Area,Service Division,Expense Type,Expense Code,Detailed Expense Type,Payment Date,Transaction Number,Amount Exc VAT,Supplier Name
Children and Young Peoples Services,Head of Education and Skills,Transport,230034,Contract Hire,04/01/2021,3819594-112003,"1,866.95",24/7 TAXI SERVICES LTD.
Children and Young Peoples Services,Head of Education and Skills,Transport,230034,Contract Hire,04/01/2021,3819619-4DEC20,938.00,A & C TAXIS.
Children and Young Peoples Services,Head of Education and Skills,Transport,230009,Contract Hire,04/01/2021,3819620-02DEC20,728.00,A & P TAXIS.
Children and Young Peoples Services,Head of Education and Skills,Transport,230008,Contract Hire,04/01/2021,3819621-0210,"1,512.00",A HENDERSON T/A CHUCKS TAXIS.
Children and Young Peoples Services,Head of Education and Skills,Transport,230008,Contract Hire,04/01/2021,3819621-0211,"1,008.00",A HENDERSON T/A CHUCKS TAXIS.
Children and Young Peoples Services,Head of Education and Skills,Supplies and Services,384199,Miscellaneous Expenses,04/01/2021,3819624-DW0093/2,"1,928.54",ADVANCED GARAGE & MOT CENTRE.
Resources BK0010,Business Support,Supplies and Services,338099,Services,04/01/2021,3819626-C46292,"2,635.93",ALLIED PUBLICITY SERVICES (MANCHESTER) LTD.
"Regeneration, Economy and Growth",Corporate Property and Land,Supplies and Services,338066,Services,04/01/2021,3819632-4642,"1,650.00",ASSOCIATION OF SAFETY & COMPLIANCE PROFESSIONALS (ASCP).*
Children and Young Peoples Services,Head of Education and Skills,Transport,230009,Contract Hire,04/01/2021,3819634-181220,"1,398.41",AVALON TAXIS.
Children and Young Peoples Services,Head of Education and Skills,Transport,230008,Contract Hire,04/01/2021,3819634-1801220,"1,503.60",AVALON TAXIS.
Chief Executive's Office,Communications Management,Supplies and Services,384507,Miscellaneous Expenses,04/01/2021,3819638-8013912,"3,000.00",BAUER RADIO LTD.
Children and Young Peoples Services,Head of Education and Skills,Transport,230008,Contract Hire,04/01/2021,3819639-SMITH1DECEMBER20,"1,516.00",BEELINE PRIVATE HIRE.
Children and Young Peoples Services,Head of Education and Skills,Transport,230016,Contract Hire,04/01/2021,3819639-SMITH12DECEMBER20,607.18,BEELINE PRIVATE HIRE.
Children and Young Peoples Services,Head of Education and Skills,Transport,230008,Contract Hire,04/01/2021,3819643-DEC20,"1,399.44",BLACKHALL TAXIS.
Children and Young Peoples Services,Head of Education and Skills,Transport,230008,Contract Hire,04/01/2021,3819644-8025-2020,"1,555.68",BOBBY DOVE PRIVATE HIRE.
Children and Young Peoples Services,Head of Education and Skills,Transport,230007,Contract Hire,04/01/2021,3819645-97H,"1,736.00",BOBS TAXIS.
Children and Young Peoples Services,Head of Education and Skills,Transport,230007,Contract Hire,04/01/2021,3819645-97G,"1,344.00",BOBS TAXIS.
Children and Young Peoples Services,Head of Education and Skills,Transport,230008,Contract Hire,04/01/2021,3819647-W112018,"1,288.00",C & R TAXIS.
Children and Young Peoples Services,Head of Education and Skills,Transport,230008,Contract Hire,04/01/2021,3819647-S006015,"1,080.04",C & R TAXIS.
Children and Young Peoples Services,Head of Education and Skills,Transport,230008,Contract Hire,04/01/2021,3819647-W030015,"1,568.00",C & R TAXIS.
Children and Young Peoples Services,Head of Education and Skills,Transport,230008,Contract Hire,04/01/2021,3819647-W046015,"1,692.88",C & R TAXIS.
Neighbourhoods and Climate Change,Technical Services CM0300,Stock A926,926900,Stock in hand-Inventory system,04/01/2021,3819648-1331,600.00,CAEDMON NETS.
Children and Young Peoples Services,Head of Education and Skills,Transport,230007,Contract Hire,04/01/2021,3819651-1DEC20,546.00,CHAPMAN TRAVEL.
Children and Young Peoples Services,Head of Education and Skills,Transport,230006,Contract Hire,04/01/2021,3819651-04DEC20,626.00,CHAPMAN TRAVEL.
Children and Young Peoples Services,Head of Education and Skills,Transport,230006,Contract Hire,04/01/2021,3819651-16DEC20,"1,183.00",CHAPMAN TRAVEL.
Neighbourhoods and Climate Change,Technical Services CM0300,Premises,150015,Apportioned Exps of Operational Blds,04/01/2021,3819653-155395,818.96,CLEE HILL PLANT LTD.
Neighbourhoods and Climate Change,Technical Services CM0300,Premises,150015,Apportioned Exps of Operational Blds,04/01/2021,3819653-155396,691.53,CLEE HILL PLANT LTD.
"Regeneration, Economy and Growth",Corporate Property and Land,Premises,150015,Apportioned Exps of Operational Blds,04/01/2021,3819653-155397,691.53,CLEE HILL PLANT LTD.
Neighbourhoods and Climate Change,Technical Services CM0300,Stock A926,926900,Stock in hand-Inventory system,04/01/2021,3819654-779457,605.40,CMT EQUIPMENT LTD.
Children and Young Peoples Services,Head of Education and Skills,Supplies and Services,384071,Miscellaneous Expenses,04/01/2021,3819656-DURHAMSO-006296,"1,570.00",COCOON COLLECTION LTD.
Children and Young Peoples Services,Head of Education and Skills,Transport,230011,Contract Hire,04/01/2021,3819657-003,728.00,COLIN HOWE T/A C H TAXIS.
Children and Young Peoples Services,Head of Education and Skills,Transport,230008,Contract Hire,04/01/2021,3819664-3606,"1,868.86",DAVES MINIBUSES.
Children and Young Peoples Services,Head of Education and Skills,Transport,230008,Contract Hire,04/01/2021,3819664-3607,"1,400.00",DAVES MINIBUSES.
Children and Young Peoples Services,Head of Education and Skills,Transport,230008,Contract Hire,04/01/2021,3819664-3604,"1,711.64",DAVES MINIBUSES.
Children and Young Peoples Services,Head of Education and Skills,Transport,230008,Contract Hire,04/01/2021,3819664-3605,"1,304.52",DAVES MINIBUSES.
Children and Young Peoples Services,Head of Education and Skills,Transport,230008,Contract Hire,04/01/2021,3819664-3608,"1,475.60",DAVES MINIBUSES.
Children and Young Peoples Services,Head of Education and Skills,Transport,230008,Contract Hire,04/01/2021,3819665-B7,"2,116.38",DAVID FOREMAN T/A DAVES TAXIS.
Resources BK0010,Digital and Customer Services,Stock A926,926900,Stock in hand-Inventory system,04/01/2021,3819667-7402672530,"1,030.00",DELL COMPUTER CORPORATION LTD.
Resources BK0010,Legal & Democratic Services,Supplies and Services,338042,Services,04/01/2021,3819668-349261/INVLW359,"3,000.00",DERE STREET BARRISTERS.
Resources BK0010,Legal & Democratic Services,Supplies and Services,338042,Services,04/01/2021,3819668-354072/INVRR130,"7,400.00",DERE STREET BARRISTERS.
Resources BK0010,Legal & Democratic Services,Supplies and Services,338042,Services,04/01/2021,3819668-354394/INVTD896,900.00,DERE STREET BARRISTERS.
Resources BK0010,Legal & Democratic Services,Supplies and Services,338042,Services,04/01/2021,3819668-354558/INVCF310,"3,250.00",DERE STREET BARRISTERS.
Resources BK0010,Legal & Democratic Services,Supplies and Services,338042,Services,04/01/2021,3819668-355684/INVCF311,750.00,DERE STREET BARRISTERS.
Resources BK0010,Legal & Democratic Services,Supplies and Services,338042,Services,04/01/2021,3819668-357018/INVTD897,550.00,DERE STREET BARRISTERS.
Resources BK0010,Legal & Democratic Services,Supplies and Services,338042,Services,04/01/2021,3819668-357134/INVEMC389,"2,465.00",DERE STREET BARRISTERS.
Resources BK0010,Legal & Democratic Services,Supplies and Services,338042,Services,04/01/2021,3819668-357151/INVCSM506,"1,100.00",DERE STREET BARRISTERS.
Resources BK0010,Legal & Democratic Services,Supplies and Services,338042,Services,04/01/2021,3819668-358121/INVEJ182,"1,850.00",DERE STREET BARRISTERS.
Resources BK0010,Legal & Democratic Services,Supplies and Services,338042,Services,04/01/2021,3819668-358315/INVRR132,"1,000.00",DERE STREET BARRISTERS.
Resources BK0010,Legal & Democratic Services,Supplies and Services,338042,Services,04/01/2021,3819668-360897/INVJS40,"2,400.00",DERE STREET BARRISTERS.
Resources BK0010,Legal & Democratic Services,Supplies and Services,338042,Services,04/01/2021,3819668-361106/INVPM317,750.00,DERE STREET BARRISTERS.
Resources BK0010,Legal & Democratic Services,Supplies and Services,338042,Services,04/01/2021,3819668-361483/INVSPA361,550.00,DERE STREET BARRISTERS.
Resources BK0010,Legal & Democratic Services,Supplies and Services,338042,Services,04/01/2021,3819668-361983/INVDR779,"1,775.00",DERE STREET BARRISTERS.
Resources BK0010,Legal & Democratic Services,Supplies and Services,338042,Services,04/01/2021,3819668-362201/INVKVR133,550.00,DERE STREET BARRISTERS.
Children and Young Peoples Services,Head of Education and Skills,Transport,230008,Contract Hire,04/01/2021,3819669-A0602021,"1,268.00",DONNA`S TAXIS.
Adult and Health Services,Head of Adults,Third Party Payments,478151,Purchase of Care,04/01/2021,3819677-WESTDRIVEP9-2020,"2,468.68",EMBRACING CARE.
Dedicated Schools Grant BG0015,DSG High Needs Block,Supplies and Services,384199,Miscellaneous Expenses,04/01/2021,3819678-19/12/2020,"1,232.50",EMILY BACKES T/A TALKINDALES.
Neighbourhoods and Climate Change,Technical Services CM0300,Supplies and Services,304221,Equipment and Materials,04/01/2021,3819681-135041,"2,656.90",FABRIKAT (NOTTINGHAM) LTD.
Neighbourhoods and Climate Change,Technical Services CM0300,Supplies and Services,304221,Equipment and Materials,04/01/2021,3819681-135088,"1,989.42",FABRIKAT (NOTTINGHAM) LTD.
Children and Young Peoples Services,Head of Early Help Inclusion & Vulnerable Children.,Third Party Payments,486029,Service level agreements E486,04/01/2021,3819682-NOV20-0007,"19,042.50",FAMILY ACTION.
Neighbourhoods and Climate Change,Technical Services CM0300,Stock A926,926900,Stock in hand-Inventory system,04/01/2021,3819684-DRM/318298,893.66,FRED WILLIAMSON & SONS LTD.*
Neighbourhoods and Climate Change,Technical Services CM0300,Premises,150015,Apportioned Exps of Operational Blds,04/01/2021,3819685-411197604,823.62,GAP GROUP LTD.
"Regeneration, Economy and Growth",Corporate Property and Land,Premises,150015,Apportioned Exps of Operational Blds,04/01/2021,3819685-411197603,714.00,GAP GROUP LTD.
Neighbourhoods and Climate Change,Environmental Services,Vehicles Equipment Furniture and Fittings,912529,Purchase-equipment,04/01/2021,3819686-6561,"1,089.06",GB SPORT & LEISURE UK LTD.
Children and Young Peoples Services,Head of Childrens Social Care,Employees,080025,Agency Staff,04/01/2021,3819688-2444729,"104,441.44",GEOMETRIC RESULTS INTERNATIONAL.
Neighbourhoods and Climate Change,Technical Services CM0300,Stock A926,926900,Stock in hand-Inventory system,04/01/2021,3819689-SI807927,745.50,GLASDON UK LTD.
Resources BK0010,Digital and Customer Services,Supplies and Services,342051,Computers and Communications,04/01/2021,3819692-0160715,"72,588.00",GRAITEC LTD.
Resources BK0010,Digital and Customer Services,Supplies and Services,304303,Equipment and Materials,04/01/2021,3819696-SI-024732,"1,371.61",INFORMATION & DATA NETWORK SUPPLIES LTD (IDN).
Neighbourhoods and Climate Change,Technical Services CM0300,Stock A926,926900,Stock in hand-Inventory system,04/01/2021,3819698-761310,756.00,INSTARMAC GROUP PLC.
Neighbourhoods and Climate Change,Technical Services CM0300,Stock A926,926900,Stock in hand-Inventory system,04/01/2021,3819698-761350,"3,976.00",INSTARMAC GROUP PLC.
Resources BK0010,Finance & Transactional Services,Supplies and Services,372009,Subscriptions E372,04/01/2021,3819701-A128859,"1,200.00",IRRV OF REVENUES RATING & VALUATION.
Adult and Health Services,Head of Adults,Transport,230005,Contract Hire,04/01/2021,3819703-1968,"1,558.00",JDS PRIVATE HIRE DURHAM.
Children and Young Peoples Services,Head of Education and Skills,Transport,230034,Contract Hire,04/01/2021,3819703-1946,862.12,JDS PRIVATE HIRE DURHAM.
Children and Young Peoples Services,Head of Education and Skills,Transport,230008,Contract Hire,04/01/2021,3819703-1958,950.00,JDS PRIVATE HIRE DURHAM.
Children and Young Peoples Services,Head of Education and Skills,Transport,230012,Contract Hire,04/01/2021,3819703-1953,"1,023.12",JDS PRIVATE HIRE DURHAM.
Children and Young Peoples Services,Head of Education and Skills,Transport,230034,Contract Hire,04/01/2021,3819703-1972,"1,263.00",JDS PRIVATE HIRE DURHAM.
Children and Young Peoples Services,Head of Education and Skills,Transport,230009,Contract Hire,04/01/2021,3819703-1948,596.26,JDS PRIVATE HIRE DURHAM.
Children and Young Peoples Services,Head of Education and Skills,Transport,230009,Contract Hire,04/01/2021,3819703-1949,"1,174.32",JDS PRIVATE HIRE DURHAM.
Children and Young Peoples Services,Head of Education and Skills,Transport,230008,Contract Hire,04/01/2021,3819703-1950,"1,988.00",JDS PRIVATE HIRE DURHAM.
Children and Young Peoples Services,Head of Education and Skills,Transport,230008,Contract Hire,04/01/2021,3819703-1971,"1,988.00",JDS PRIVATE HIRE DURHAM.
Children and Young Peoples Services,Head of Education and Skills,Transport,230008,Contract Hire,04/01/2021,3819703-1959,"1,897.80",JDS PRIVATE HIRE DURHAM.
Children and Young Peoples Services,Head of Education and Skills,Transport,230008,Contract Hire,04/01/2021,3819703-1961,"1,403.22",JDS PRIVATE HIRE DURHAM.
Children and Young Peoples Services,Head of Education and Skills,Transport,230008,Contract Hire,04/01/2021,3819703-1969,"1,988.00",JDS PRIVATE HIRE DURHAM.
Children and Young Peoples Services,Head of Education and Skills,Transport,230008,Contract Hire,04/01/2021,3819703-1970,"1,666.98",JDS PRIVATE HIRE DURHAM.
Children and Young Peoples Services,Head of Education and Skills,Transport,230008,Contract Hire,04/01/2021,3819703-1957,"1,098.00",JDS PRIVATE HIRE DURHAM.
Children and Young Peoples Services,Head of Education and Skills,Transport,230008,Contract Hire,04/01/2021,3819703-1925,"4,377.00",JDS PRIVATE HIRE DURHAM.
Children and Young Peoples Services,Head of Education and Skills,Transport,230008,Contract Hire,04/01/2021,3819703-1952,"3,428.00",JDS PRIVATE HIRE DURHAM.
Children and Young Peoples Services,Head of Education and Skills,Transport,230008,Contract Hire,04/01/2021,3819703-1954,"1,156.82",JDS PRIVATE HIRE DURHAM.
Children and Young Peoples Services,Head of Education and Skills,Transport,230008,Contract Hire,04/01/2021,3819703-1955,"1,272.88",JDS PRIVATE HIRE DURHAM.
Children and Young Peoples Services,Head of Education and Skills,Transport,230008,Contract Hire,04/01/2021,3819703-1956,"1,068.46",JDS PRIVATE HIRE DURHAM.
Children and Young Peoples Services,Head of Education and Skills,Transport,230008,Contract Hire,04/01/2021,3819703-1962,958.00,JDS PRIVATE HIRE DURHAM.
Children and Young Peoples Services,Head of Education and Skills,Transport,230008,Contract Hire,04/01/2021,3819703-1963,"1,141.00",JDS PRIVATE HIRE DURHAM.
Children and Young Peoples Services,Head of Education and Skills,Transport,230008,Contract Hire,04/01/2021,3819703-1964,"1,157.10",JDS PRIVATE HIRE DURHAM.
Children and Young Peoples Services,Head of Education and Skills,Transport,230008,Contract Hire,04/01/2021,3819703-1965,"1,960.00",JDS PRIVATE HIRE DURHAM.
Children and Young Peoples Services,Head of Education and Skills,Transport,230008,Contract Hire,04/01/2021,3819703-1966,904.00,JDS PRIVATE HIRE DURHAM.
Children and Young Peoples Services,Head of Education and Skills,Transport,230008,Contract Hire,04/01/2021,3819703-1951,"1,675.50",JDS PRIVATE HIRE DURHAM.
Children and Young Peoples Services,Head of Education and Skills,Transport,230010,Contract Hire,04/01/2021,3819703-1967,"1,587.88",JDS PRIVATE HIRE DURHAM.
Dedicated Schools Grant BG0015,DSG High Needs Block,Transport,230009,Contract Hire,04/01/2021,3819703-1960,"1,057.82",JDS PRIVATE HIRE DURHAM.
Neighbourhoods and Climate Change,Technical Services CM0300,Supplies and Services,304358,Equipment and Materials,04/01/2021,3819705-31096,"1,712.00",JOHN R BUTTERFIELD LTD.
Neighbourhoods and Climate Change,Technical Services CM0300,Supplies and Services,304358,Equipment and Materials,04/01/2021,3819705-31108,"1,052.00",JOHN R BUTTERFIELD LTD.
Neighbourhoods and Climate Change,Technical Services CM0300,Supplies and Services,304358,Equipment and Materials,04/01/2021,3819705-31120,987.50,JOHN R BUTTERFIELD LTD.
Neighbourhoods and Climate Change,Technical Services CM0300,Supplies and Services,304358,Equipment and Materials,04/01/2021,3819705-31121,"1,219.75",JOHN R BUTTERFIELD LTD.
Neighbourhoods and Climate Change,Technical Services CM0300,Supplies and Services,304358,Equipment and Materials,04/01/2021,3819705-31122,556.00,JOHN R BUTTERFIELD LTD.
Neighbourhoods and Climate Change,Technical Services CM0300,Supplies and Services,304358,Equipment and Materials,04/01/2021,3819705-31125,"1,031.50",JOHN R BUTTERFIELD LTD.
Neighbourhoods and Climate Change,Technical Services CM0300,Supplies and Services,304358,Equipment and Materials,04/01/2021,3819705-31127,814.00,JOHN R BUTTERFIELD LTD.
Neighbourhoods and Climate Change,Technical Services CM0300,Supplies and Services,304358,Equipment and Materials,04/01/2021,3819705-31128,814.00,JOHN R BUTTERFIELD LTD.
Children and Young Peoples Services,Head of Education and Skills,Transport,230008,Contract Hire,04/01/2021,3819706-223,"1,597.32",JOHN ROBSON T/A ACE TAXIS.
Children and Young Peoples Services,Head of Education and Skills,Transport,230034,Contract Hire,04/01/2021,3819706-224,742.00,JOHN ROBSON T/A ACE TAXIS.
Children and Young Peoples Services,Head of Education and Skills,Transport,230006,Contract Hire,04/01/2021,3819706-222,583.70,JOHN ROBSON T/A ACE TAXIS.
Children and Young Peoples Services,Head of Education and Skills,Transport,230006,Contract Hire,04/01/2021,3819708-F80107,621.00,JOVIAL PRIVATE HIRE.
"Regeneration, Economy and Growth",Culture Sport and Tourism,Supplies and Services,304259,Equipment and Materials,04/01/2021,3819709-981252,"2,908.94",JP LENNARD LTD.
Neighbourhoods and Climate Change,Technical Services CM0300,Stock A926,926900,Stock in hand-Inventory system,04/01/2021,3819710-0113/00254016,"1,005.60",JT DOVE LTD.
Children and Young Peoples Services,Head of Education and Skills,Transport,230008,Contract Hire,04/01/2021,3819711-1136,"2,254.00",K & R TAXIS (STANLEY).
Children and Young Peoples Services,Head of Education and Skills,Transport,230008,Contract Hire,04/01/2021,3819711-1134,"2,250.00",K & R TAXIS (STANLEY).
Children and Young Peoples Services,Head of Education and Skills,Transport,230006,Contract Hire,04/01/2021,3819711-1137,"1,764.00",K & R TAXIS (STANLEY).
Children and Young Peoples Services,Head of Education and Skills,Transport,230016,Contract Hire,04/01/2021,3819711-1139,"1,840.00",K & R TAXIS (STANLEY).
Children and Young Peoples Services,Head of Education and Skills,Transport,230008,Contract Hire,04/01/2021,3819711-1132,"2,258.20",K & R TAXIS (STANLEY).
Adult and Health Services,Head of Adults,Third Party Payments,478151,Purchase of Care,04/01/2021,3819712-53ADUR/2020/DEC,582.96,KARBON HOMES LTD FORMERLY CESTRIA HOUSING ASSOCIATION LTD.
Neighbourhoods and Climate Change,Technical Services CM0300,Supplies and Services,304358,Equipment and Materials,04/01/2021,3819718-3506,"1,124.00",KEVIN SNOWDON GROUNDWORKS LTD.
Neighbourhoods and Climate Change,Technical Services CM0300,Supplies and Services,304358,Equipment and Materials,04/01/2021,3819718-3519,888.00,KEVIN SNOWDON GROUNDWORKS LTD.
Neighbourhoods and Climate Change,Technical Services CM0300,Supplies and Services,304358,Equipment and Materials,04/01/2021,3819718-3521,708.00,KEVIN SNOWDON GROUNDWORKS LTD.
Neighbourhoods and Climate Change,Technical Services CM0300,Supplies and Services,304358,Equipment and Materials,04/01/2021,3819718-3523,720.00,KEVIN SNOWDON GROUNDWORKS LTD.
Neighbourhoods and Climate Change,Technical Services CM0300,Supplies and Services,304358,Equipment and Materials,04/01/2021,3819718-3525,892.50,KEVIN SNOWDON GROUNDWORKS LTD.
Neighbourhoods and Climate Change,Technical Services CM0300,Supplies and Services,304358,Equipment and Materials,04/01/2021,3819718-3526,540.00,KEVIN SNOWDON GROUNDWORKS LTD.
Neighbourhoods and Climate Change,Technical Services CM0300,Supplies and Services,304358,Equipment and Materials,04/01/2021,3819718-3530,669.38,KEVIN SNOWDON GROUNDWORKS LTD.
Neighbourhoods and Climate Change,Technical Services CM0300,Supplies and Services,304358,Equipment and Materials,04/01/2021,3819718-3531,851.00,KEVIN SNOWDON GROUNDWORKS LTD.
Neighbourhoods and Climate Change,Technical Services CM0300,Supplies and Services,304358,Equipment and Materials,04/01/2021,3819718-3532,879.13,KEVIN SNOWDON GROUNDWORKS LTD.
Children and Young Peoples Services,Head of Education and Skills,Transport,230007,Contract Hire,04/01/2021,3819720-29452,"1,477.00",LEE`S COACHES LTD.
Children and Young Peoples Services,Head of Education and Skills,Transport,230007,Contract Hire,04/01/2021,3819720-29454,"2,730.00",LEE`S COACHES LTD.
Children and Young Peoples Services,Head of Education and Skills,Transport,230007,Contract Hire,04/01/2021,3819720-29447,"1,517.18",LEE`S COACHES LTD.
Children and Young Peoples Services,Head of Education and Skills,Transport,230007,Contract Hire,04/01/2021,3819720-29448,"1,517.18",LEE`S COACHES LTD.
Children and Young Peoples Services,Head of Education and Skills,Transport,230007,Contract Hire,04/01/2021,3819720-29449,"1,517.18",LEE`S COACHES LTD.
Children and Young Peoples Services,Head of Education and Skills,Transport,230007,Contract Hire,04/01/2021,3819720-29450,"1,554.28",LEE`S COACHES LTD.
Children and Young Peoples Services,Head of Education and Skills,Transport,230003,Contract Hire,04/01/2021,3819720-29451,"3,150.00",LEE`S COACHES LTD.
Children and Young Peoples Services,Head of Education and Skills,Transport,230003,Contract Hire,04/01/2021,3819720-29443,"3,437.00",LEE`S COACHES LTD.
Children and Young Peoples Services,Head of Education and Skills,Transport,230003,Contract Hire,04/01/2021,3819720-29444,"3,297.00",LEE`S COACHES LTD.
"Regeneration, Economy and Growth",Corporate Property and Land,Supplies and Services,304221,Equipment and Materials,04/01/2021,3819721-88796,890.00,LEISURETEQ.
Neighbourhoods and Climate Change,Environmental Services,Supplies and Services,304221,Equipment and Materials,04/01/2021,3819723-397,"1,485.00",LH CHAINSAW SCULPTING.
Children and Young Peoples Services,Head of Childrens Social Care,Supplies and Services,384956,Miscellaneous Expenses,04/01/2021,3819724-3438,"10,622.40",LINK MAKER SYSTEMS LTD.
Children and Young Peoples Services,Head of Education and Skills,Transport,230010,Contract Hire,04/01/2021,3819727-253,"1,034.04",LUMLEY TAXIS.
Neighbourhoods and Climate Change,Technical Services CM0300,Stock A926,926900,Stock in hand-Inventory system,04/01/2021,3819728-174436,"1,391.20",MALLATITE LTD T/A MALLATITE PLASTICS LTD.
Children and Young Peoples Services,Head of Education and Skills,Transport,230035,Contract Hire,04/01/2021,3819730-INV12202009,"1,365.70",MARK & JOHN CHISHOLM T/A (CHEVRON).
Children and Young Peoples Services,Head of Education and Skills,Transport,230007,Contract Hire,04/01/2021,3819730-INV12202012,"1,150.00",MARK & JOHN CHISHOLM T/A (CHEVRON).
Children and Young Peoples Services,Head of Education and Skills,Transport,230007,Contract Hire,04/01/2021,3819730-INV12202013,"1,290.58",MARK & JOHN CHISHOLM T/A (CHEVRON).
Children and Young Peoples Services,Head of Education and Skills,Transport,230008,Contract Hire,04/01/2021,3819730-INV12202024,"1,020.00",MARK & JOHN CHISHOLM T/A (CHEVRON).
Children and Young Peoples Services,Head of Education and Skills,Transport,230034,Contract Hire,04/01/2021,3819730-INV12202027,640.00,MARK & JOHN CHISHOLM T/A (CHEVRON).
Children and Young Peoples Services,Head of Education and Skills,Transport,230008,Contract Hire,04/01/2021,3819730-INV12202021,"2,455.52",MARK & JOHN CHISHOLM T/A (CHEVRON).
Children and Young Peoples Services,Head of Education and Skills,Transport,230008,Contract Hire,04/01/2021,3819730-INV12202022,"2,602.00",MARK & JOHN CHISHOLM T/A (CHEVRON).
Children and Young Peoples Services,Head of Education and Skills,Transport,230008,Contract Hire,04/01/2021,3819730-INV12202020,"2,058.00",MARK & JOHN CHISHOLM T/A (CHEVRON).
Children and Young Peoples Services,Head of Education and Skills,Transport,230008,Contract Hire,04/01/2021,3819730-INV12202010,"1,572.62",MARK & JOHN CHISHOLM T/A (CHEVRON).
Children and Young Peoples Services,Head of Education and Skills,Transport,230008,Contract Hire,04/01/2021,3819730-INV12202011,"1,372.00",MARK & JOHN CHISHOLM T/A (CHEVRON).
Children and Young Peoples Services,Head of Education and Skills,Transport,230008,Contract Hire,04/01/2021,3819730-INV12202018,"2,339.96",MARK & JOHN CHISHOLM T/A (CHEVRON).
Children and Young Peoples Services,Head of Education and Skills,Transport,230008,Contract Hire,04/01/2021,3819730-INV12202019,"1,815.80",MARK & JOHN CHISHOLM T/A (CHEVRON).
Children and Young Peoples Services,Head of Education and Skills,Transport,230008,Contract Hire,04/01/2021,3819730-INV12202006,"1,887.76",MARK & JOHN CHISHOLM T/A (CHEVRON).
Children and Young Peoples Services,Head of Education and Skills,Transport,230008,Contract Hire,04/01/2021,3819730-INV12202007,"1,745.80",MARK & JOHN CHISHOLM T/A (CHEVRON).
Children and Young Peoples Services,Head of Education and Skills,Transport,230008,Contract Hire,04/01/2021,3819730-INV12202008,"1,498.00",MARK & JOHN CHISHOLM T/A (CHEVRON).
Children and Young Peoples Services,Head of Education and Skills,Transport,230008,Contract Hire,04/01/2021,3819730-INV12202017,"1,422.82",MARK & JOHN CHISHOLM T/A (CHEVRON).
Children and Young Peoples Services,Head of Education and Skills,Transport,230010,Contract Hire,04/01/2021,3819730-INV12202001,"2,282.00",MARK & JOHN CHISHOLM T/A (CHEVRON).
Children and Young Peoples Services,Head of Education and Skills,Transport,230010,Contract Hire,04/01/2021,3819730-INV12202002,"2,352.00",MARK & JOHN CHISHOLM T/A (CHEVRON).
Children and Young Peoples Services,Head of Education and Skills,Transport,230010,Contract Hire,04/01/2021,3819730-INV12202003,"1,330.84",MARK & JOHN CHISHOLM T/A (CHEVRON).
Children and Young Peoples Services,Head of Education and Skills,Transport,230010,Contract Hire,04/01/2021,3819730-INV12202004,"1,982.26",MARK & JOHN CHISHOLM T/A (CHEVRON).
Children and Young Peoples Services,Head of Education and Skills,Transport,230010,Contract Hire,04/01/2021,3819730-INV12202005,"1,610.02",MARK & JOHN CHISHOLM T/A (CHEVRON).
Children and Young Peoples Services,Head of Education and Skills,Transport,230010,Contract Hire,04/01/2021,3819730-INV12202014,"1,498.00",MARK & JOHN CHISHOLM T/A (CHEVRON).
Dedicated Schools Grant BG0015,DSG High Needs Block,Transport,230009,Contract Hire,04/01/2021,3819730-INV12202023,728.00,MARK & JOHN CHISHOLM T/A (CHEVRON).
Children and Young Peoples Services,Head of Education and Skills,Transport,230012,Contract Hire,04/01/2021,3819737-CHPK1220,"1,269.80",MR CT WALKER T/A CW TAXIS.
Children and Young Peoples Services,Head of Education and Skills,Transport,230035,Contract Hire,04/01/2021,3819737-HERM1220,"1,028.40",MR CT WALKER T/A CW TAXIS.
Children and Young Peoples Services,Head of Education and Skills,Transport,230007,Contract Hire,04/01/2021,3819737-DJS1220,"1,268.26",MR CT WALKER T/A CW TAXIS.
Children and Young Peoples Services,Head of Education and Skills,Transport,230008,Contract Hire,04/01/2021,3819737-E11220,"1,550.70",MR CT WALKER T/A CW TAXIS.
Children and Young Peoples Services,Head of Education and Skills,Transport,230006,Contract Hire,04/01/2021,3819737-DT21220,671.16,MR CT WALKER T/A CW TAXIS.
Children and Young Peoples Services,Head of Education and Skills,Transport,230008,Contract Hire,04/01/2021,3819737-OAK11220,"1,411.20",MR CT WALKER T/A CW TAXIS.
Children and Young Peoples Services,Head of Education and Skills,Transport,230008,Contract Hire,04/01/2021,3819737-OAK21220,"1,663.20",MR CT WALKER T/A CW TAXIS.
Children and Young Peoples Services,Head of Education and Skills,Transport,230008,Contract Hire,04/01/2021,3819738-DEC204,"1,148.00",MR DOMINICK JONES T/A DJ PRIVATE HIRE.
Children and Young Peoples Services,Head of Education and Skills,Transport,230008,Contract Hire,04/01/2021,3819738-DEC205,"1,848.00",MR DOMINICK JONES T/A DJ PRIVATE HIRE.
Children and Young Peoples Services,Head of Education and Skills,Transport,230006,Contract Hire,04/01/2021,3819738-DEC203,680.20,MR DOMINICK JONES T/A DJ PRIVATE HIRE.
Children and Young Peoples Services,Head of Education and Skills,Transport,230008,Contract Hire,04/01/2021,3819738-DEC201,728.00,MR DOMINICK JONES T/A DJ PRIVATE HIRE.
Children and Young Peoples Services,Head of Education and Skills,Transport,230034,Contract Hire,04/01/2021,3819739-KDKDEC20,995.12,MR IAN KELSEY T/A KDK TAXIS.
Children and Young Peoples Services,Head of Education and Skills,Transport,230009,Contract Hire,04/01/2021,3819739-KDKCED20,650.72,MR IAN KELSEY T/A KDK TAXIS.
Children and Young Peoples Services,Head of Education and Skills,Transport,230008,Contract Hire,04/01/2021,3819740-33B-N031,"1,156.82",MR RAYMOND RENWICK T/A RAY`S TAXIS & MINIBUSES.
Children and Young Peoples Services,Head of Education and Skills,Transport,230008,Contract Hire,04/01/2021,3819740-34A-N043,"1,216.18",MR RAYMOND RENWICK T/A RAY`S TAXIS & MINIBUSES.
Neighbourhoods and Climate Change,Technical Services CM0300,Supplies and Services,304358,Equipment and Materials,04/01/2021,3819746-NC/130/BW,"2,447.50",NEDCO CONTRACTS (NE) LTD.
Children and Young Peoples Services,Head of Early Help Inclusion & Vulnerable Children.,Third Party Payments,440999,Other third party payments E440,04/01/2021,3819748-00000001/H392300,"6,126.78",NHS PROPERTY SERVICES LTD.
"Regeneration, Economy and Growth",Culture Sport and Tourism,Supplies and Services,384199,Miscellaneous Expenses,04/01/2021,3819749-NX280A,"10,000.00",NO XCUSE LTD.
Neighbourhoods and Climate Change,Technical Services CM0300,Supplies and Services,304221,Equipment and Materials,04/01/2021,3819752-505434,580.00,NORTHERN TOOLS & ACCESSORIES.
Neighbourhoods and Climate Change,Environmental Services,Transport,215005,Running Costs of Vehicles,04/01/2021,3819753-680777,"12,812.80",OIL NRG LTD.
Neighbourhoods and Climate Change,Environmental Services,Transport,215005,Running Costs of Vehicles,04/01/2021,3819753-680780,933.20,OIL NRG LTD.
Neighbourhoods and Climate Change,Environmental Services,Transport,215005,Running Costs of Vehicles,04/01/2021,3819753-682194,"10,114.32",OIL NRG LTD.
Resources BK0010,Legal & Democratic Services,Supplies and Services,338042,Services,04/01/2021,3819756-313900-DEC2020,525.00,PARKLANE PLOWDEN CHAMBERS (BARRISTERS).
Dedicated Schools Grant BG0015,DSG High Needs Block,Supplies and Services,304259,Equipment and Materials,04/01/2021,3819757-2968680,645.75,PEARSON EDUCATION LTD.
Children and Young Peoples Services,Head of Education and Skills,Transport,230007,Contract Hire,04/01/2021,3819759-42,703.50,PETER NAYLOR.
Children and Young Peoples Services,Head of Education and Skills,Transport,230007,Contract Hire,04/01/2021,3819759-43,"1,134.00",PETER NAYLOR.
Children and Young Peoples Services,Head of Education and Skills,Transport,230007,Contract Hire,04/01/2021,3819759-41,806.40,PETER NAYLOR.
Children and Young Peoples Services,Head of Education and Skills,Transport,230006,Contract Hire,04/01/2021,3819760-690-VAT,"3,024.00",PETERLEE EXECUTIVE CARS.
Children and Young Peoples Services,Head of Education and Skills,Transport,230006,Contract Hire,04/01/2021,3819762-38602,"1,722.00",PHOENIX TAXIS T/A PRATT`S TAXIS.
Adult and Health Services,Commissioning inc Supporting People,Supplies and Services,304516,Equipment and Materials,04/01/2021,3819763-INV0834104,662.35,POSTURITE (UK) LTD.
Resources BK0010,Digital and Customer Services,Supplies and Services,338099,Services,04/01/2021,3819765-6476348,"1,728.00",PUBLIC HEALTH ENGLAND (PHE).
Adult and Health Services,Public Health CC0450,Premises,145009,Cleaning and Domestic Supplies,04/01/2021,3819766-INV-2779,"1,162.80",QUALITY CLEANING SERVICES (NORTHERN) LTD.
Adult and Health Services,Head of Adults,Supplies and Services,304259,Equipment and Materials,04/01/2021,3819770-145051,823.95,ROMPA LTD.
Children and Young Peoples Services,Head of Education and Skills,Supplies and Services,384199,Miscellaneous Expenses,04/01/2021,3819773-LWE0006-2EL,"1,965.01",SACRISTON YOUTH PROJECT.
Children and Young Peoples Services,Head of Education and Skills,Transport,230008,Contract Hire,04/01/2021,3819775-TAS1122020,"1,668.50",SAFELINE TRAVEL.
Children and Young Peoples Services,Head of Education and Skills,Transport,230008,Contract Hire,04/01/2021,3819775-TAS1122020CM,"2,042.16",SAFELINE TRAVEL.
"Regeneration, Economy and Growth",Transport and Contracted Services,Third Party Payments,430106,Rendered by Private Contractors,04/01/2021,3819776-3072,"157,275.14",SCARLET BAND BUS & COACH LTD.
Children and Young Peoples Services,Head of Childrens Social Care,Supplies and Services,338045,Services,04/01/2021,3819777-INVSF53,"9,225.00",SEVEN BEDFORD ROW (BARRISTERS CHAMBERS).
Children and Young Peoples Services,Head of Education and Skills,Transport,230008,Contract Hire,04/01/2021,3819778-201210,"1,544.01",SHOTTON PRIVATE HIRE.
Children and Young Peoples Services,Head of Education and Skills,Transport,230008,Contract Hire,04/01/2021,3819778-201206,"1,520.00",SHOTTON PRIVATE HIRE.
Children and Young Peoples Services,Head of Education and Skills,Transport,230010,Contract Hire,04/01/2021,3819778-201208,"2,063.18",SHOTTON PRIVATE HIRE.
Neighbourhoods and Climate Change,Environmental Services,Third Party Payments,430113,Rendered by Private Contractors,04/01/2021,3819779-171916,"4,464.62",SHOWSEC INTERNATIONAL LTD.
Neighbourhoods and Climate Change,Environmental Services,Third Party Payments,430113,Rendered by Private Contractors,04/01/2021,3819779-171919,"4,565.63",SHOWSEC INTERNATIONAL LTD.
Neighbourhoods and Climate Change,Environmental Services,Third Party Payments,430113,Rendered by Private Contractors,04/01/2021,3819779-171922,"1,516.02",SHOWSEC INTERNATIONAL LTD.
"Regeneration, Economy and Growth",Corporate Property and Land,Supplies and Services,304221,Equipment and Materials,04/01/2021,3819780-599290,"1,012.00",SIG TRADING LTD T/A CARPET & FLOORING LTD.*
Resources BK0010,Digital and Customer Services,Supplies and Services,342051,Computers and Communications,04/01/2021,3819781-INV02782536,"1,054.80",SOFTCAT LTD.
Neighbourhoods and Climate Change,Technical Services CM0300,Stock A926,926900,Stock in hand-Inventory system,04/01/2021,3819782-SI200013274,"1,116.00",SOLON SECURITY LTD.
"Regeneration, Economy and Growth",Corporate Property and Land,Supplies and Services,304221,Equipment and Materials,04/01/2021,3819783-38084,516.27,STAIRLIFT SPARES.
Children and Young Peoples Services,Head of Education and Skills,Transport,230007,Contract Hire,04/01/2021,3819784-56221,693.84,STANLEY TRAVEL (NORTH EAST) LTD.
Children and Young Peoples Services,Head of Education and Skills,Transport,230003,Contract Hire,04/01/2021,3819784-56214,"3,010.00",STANLEY TRAVEL (NORTH EAST) LTD.
Children and Young Peoples Services,Head of Education and Skills,Transport,230003,Contract Hire,04/01/2021,3819784-56215,"2,184.00",STANLEY TRAVEL (NORTH EAST) LTD.
Children and Young Peoples Services,Head of Education and Skills,Transport,230003,Contract Hire,04/01/2021,3819784-56216,"2,674.00",STANLEY TRAVEL (NORTH EAST) LTD.
Children and Young Peoples Services,Head of Education and Skills,Transport,230003,Contract Hire,04/01/2021,3819784-56217,"2,730.00",STANLEY TRAVEL (NORTH EAST) LTD.
Children and Young Peoples Services,Head of Education and Skills,Transport,230003,Contract Hire,04/01/2021,3819784-56218,"2,436.00",STANLEY TRAVEL (NORTH EAST) LTD.
Children and Young Peoples Services,Head of Education and Skills,Transport,230003,Contract Hire,04/01/2021,3819784-56219,"2,590.00",STANLEY TRAVEL (NORTH EAST) LTD.
Children and Young Peoples Services,Head of Education and Skills,Transport,230008,Contract Hire,04/01/2021,3819784-56220,"1,988.00",STANLEY TRAVEL (NORTH EAST) LTD.
Neighbourhoods and Climate Change,Environmental Services,Supplies and Services,338078,Services,04/01/2021,3819785-16172,"6,506.50",STEADFAST SECURITY SOLUTIONS LTD.
Neighbourhoods and Climate Change,Environmental Services,Supplies and Services,338078,Services,04/01/2021,3819785-16177,"6,085.00",STEADFAST SECURITY SOLUTIONS LTD.
"Regeneration, Economy and Growth",Culture Sport and Tourism,Supplies and Services,384199,Miscellaneous Expenses,04/01/2021,3819785-16183,"1,158.72",STEADFAST SECURITY SOLUTIONS LTD.
Children and Young Peoples Services,Head of Education and Skills,Transport,230007,Contract Hire,04/01/2021,3819786-6562,"1,371.50",STEPHEN MAUDE LTD T/A MAUDES COACHES.
Adult and Health Services,Commissioning inc Supporting People,Third Party Payments,479101,Purchase of Care,04/01/2021,3819789-1624-OCT-DEC,"48,000.00",SUPPORTIVE SRC LTD.
Resources BK0010,Digital and Customer Services,Supplies and Services,344131,Telephones,04/01/2021,3819791-135219,"4,836.00",SWITCHSHOP LTD.
Neighbourhoods and Climate Change,Partnerships & Community Engagement Div.,Supplies and Services,338027,Services,04/01/2021,3819795-2020/128,"2,700.00",THE FOUNDATION FOR FAMILIES.
Children and Young Peoples Services,Head of Childrens Social Care,Supplies and Services,338045,Services,04/01/2021,3819796-42578,"1,715.00",THE RICHMOND PARTNERSHIP.
Neighbourhoods and Climate Change,Technical Services CM0300,Stock A926,926900,Stock in hand-Inventory system,04/01/2021,3819797-NSIN00048239,945.13,THOMAS OWEN & SONS (NEWCASTLE) LTD.
"Regeneration, Economy and Growth",Corporate Property and Land,Supplies and Services,304221,Equipment and Materials,04/01/2021,3819798-127341,661.40,TOMMY WARDLE.
Children and Young Peoples Services,Head of Education and Skills,Transport,230007,Contract Hire,04/01/2021,3819800-WA10015,868.67,TRAVEL 6.
Children and Young Peoples Services,Head of Education and Skills,Transport,230010,Contract Hire,04/01/2021,3819800-WL20015,"1,081.92",TRAVEL 6.
Children and Young Peoples Services,Head of Education and Skills,Transport,230006,Contract Hire,04/01/2021,3819800-HK10002,512.00,TRAVEL 6.
Adult and Health Services,Commissioning inc Supporting People,Supplies and Services,372009,Subscriptions E372,04/01/2021,3819802-UKCIL-INV-1603,"4,000.00",UKCIL LTD.
Resources BK0010,Digital and Customer Services,Supplies and Services,384199,Miscellaneous Expenses,04/01/2021,3819803-R-63591,"2,055.00",UPNORTH ENGINEERING SERVICES LTD.
Neighbourhoods and Climate Change,Technical Services CM0300,Third Party Payments,430100,Rendered by Private Contractors,04/01/2021,3819804-INV059952,793.64,URBIS SCHREDER LTD.
"Regeneration, Economy and Growth",Corporate Property and Land,Third Party Payments,430105,Rendered by Private Contractors,04/01/2021,3819805-8541207741,"1,137.50",VEOLIA ENVIRONMENTAL SERVICES ES (UK) LTD.
Resources BK0010,Legal & Democratic Services,Supplies and Services,344014,Telephones,04/01/2021,3819806-OR38565,789.95,VODAFONE LTD.
Children and Young Peoples Services,Head of Education and Skills,Transport,235005,Public Transport,04/01/2021,3819809-16291,"1,720.41",WEARDALE MOTOR SERVICES LTD.
Children and Young Peoples Services,Head of Education and Skills,Transport,230010,Contract Hire,04/01/2021,3819810-7385,"1,496.00",WEARDALE PRIVATE HIRE.
Neighbourhoods and Climate Change,Environmental Services,Premises,150015,Apportioned Exps of Operational Blds,04/01/2021,3819811-1071070,671.58,WERNICK HIRE LTD.
Neighbourhoods and Climate Change,Technical Services CM0300,Premises,150015,Apportioned Exps of Operational Blds,04/01/2021,3819811-1070992,569.97,WERNICK HIRE LTD.
Neighbourhoods and Climate Change,Technical Services CM0300,Premises,150015,Apportioned Exps of Operational Blds,04/01/2021,3819811-1070998,637.14,WERNICK HIRE LTD.
Neighbourhoods and Climate Change,Technical Services CM0300,Premises,150015,Apportioned Exps of Operational Blds,04/01/2021,3819811-1071016,"1,230.77",WERNICK HIRE LTD.
"Regeneration, Economy and Growth",Corporate Property and Land,Premises,150015,Apportioned Exps of Operational Blds,04/01/2021,3819811-1071080,671.58,WERNICK HIRE LTD.
Children and Young Peoples Services,Head of Education and Skills,Transport,230008,Contract Hire,04/01/2021,3819812-WESTLEA181220,668.36,WESTLEA TAXIS.
Neighbourhoods and Climate Change,Technical Services CM0300,Stock A926,926900,Stock in hand-Inventory system,04/01/2021,3819813-70678652,"2,684.10",WOLSELEY UK LTD.
Resources BK0010,Digital and Customer Services,Supplies and Services,342033,Computers and Communications,04/01/2021,3819814-KY12065,705.13,XMA LTD.
Neighbourhoods and Climate Change,Technical Services CM0300,Supplies and Services,304358,Equipment and Materials,04/01/2021,3819816-8388,635.63,YOULL CONSTRUCTION LTD.
Non-Service Specific,Insurances,Expenditure 8INSEX,810001,Insurance Expenditure,04/01/2021,3819819-EI08U0070017,"85,062.32",ZURICH MUNICIPAL.
Adult and Health Services,Public Health CC0450,Third Party Payments,460803,Contract Payments,05/01/2021,3820385-INV-0918,"124,855.00",ABL HEALTH LTD.
Neighbourhoods and Climate Change,Technical Services CM0300,Supplies and Services,338044,Services,05/01/2021,3820387-28444705,"9,348.00",AECOM LTD.
Neighbourhoods and Climate Change,Environmental Services,Transport,210057,Repair and Maintenance of Vehicles,05/01/2021,3820397-35193517,517.18,BELL TRUCK SALES LTD T/A BELL TRUCK & VAN.
Neighbourhoods and Climate Change,Environmental Services,Transport,210057,Repair and Maintenance of Vehicles,05/01/2021,3820397-35193819,500.76,BELL TRUCK SALES LTD T/A BELL TRUCK & VAN.
Neighbourhoods and Climate Change,Environmental Services,Transport,210057,Repair and Maintenance of Vehicles,05/01/2021,3820397-15176475,958.87,BELL TRUCK SALES LTD T/A BELL TRUCK & VAN.
"Regeneration, Economy and Growth",Development and Housing,Supplies and Services,384999,Miscellaneous Expenses,05/01/2021,3820407-75CRADDOCKRENT,705.00,CASTLEDENE SALES & LETTINGS.
Resources BK0010,Digital and Customer Services,Supplies and Services,338099,Services,05/01/2021,3820408-103119,909.65,CENTRAL POWER SERVICES LTD (CPS).
Neighbourhoods and Climate Change,Technical Services CM0300,Supplies and Services,304358,Equipment and Materials,05/01/2021,3820409-1797,"4,291.28",CG SIMPSON & SON.
Children and Young Peoples Services,Head of Childrens Social Care,Third Party Payments,440038,Other third party payments E440,05/01/2021,3820412-3938,"1,028.61",CITY OF SUNDERLAND YMCA LTD.
Children and Young Peoples Services,Head of Childrens Social Care,Third Party Payments,440038,Other third party payments E440,05/01/2021,3820412-3939,800.00,CITY OF SUNDERLAND YMCA LTD.
Children and Young Peoples Services,Head of Childrens Social Care,Third Party Payments,440038,Other third party payments E440,05/01/2021,3820412-3945,858.90,CITY OF SUNDERLAND YMCA LTD.
Children and Young Peoples Services,Head of Childrens Social Care,Third Party Payments,440038,Other third party payments E440,05/01/2021,3820412-3948,800.00,CITY OF SUNDERLAND YMCA LTD.
Children and Young Peoples Services,Head of Childrens Social Care,Third Party Payments,440038,Other third party payments E440,05/01/2021,3820412-3956,858.90,CITY OF SUNDERLAND YMCA LTD.
Children and Young Peoples Services,Head of Childrens Social Care,Third Party Payments,440038,Other third party payments E440,05/01/2021,3820412-3971,878.90,CITY OF SUNDERLAND YMCA LTD.
Children and Young Peoples Services,Head of Childrens Social Care,Transport,230005,Contract Hire,05/01/2021,3820414-CLUB2051M,500.00,CLUBMAN CABS.
Resources BK0010,Legal & Democratic Services,Supplies and Services,338025,Services,05/01/2021,3820416-HMC06,"1,560.00",COMPLETE FUNERAL SERVICES LTD.
Resources BK0010,Legal & Democratic Services,Supplies and Services,338025,Services,05/01/2021,3820415-S44997-01112,"1,400.00",CO-OPERATIVE FUNERAL CARE.
"Regeneration, Economy and Growth",Business Durham CL0850,Premises,120021,Energy Costs,05/01/2021,3820417-15744231,674.94,CORONA ENERGY RETAIL 2 LTD.
"Regeneration, Economy and Growth",Business Durham CL0850,Premises,120021,Energy Costs,05/01/2021,3820417-15744232,881.79,CORONA ENERGY RETAIL 2 LTD.
Children and Young Peoples Services,Head of Childrens Social Care,Transport,230005,Contract Hire,05/01/2021,3820418-110483,878.80,CROFT BUSINESS SERVICES (UK) LTD T/A CROFT TAXIS.
Children and Young Peoples Services,Head of Childrens Social Care,Transport,230005,Contract Hire,05/01/2021,3820418-110482,521.20,CROFT BUSINESS SERVICES (UK) LTD T/A CROFT TAXIS.
Neighbourhoods and Climate Change,Environmental Services,Transport,210057,Repair and Maintenance of Vehicles,05/01/2021,3820422-96399268,610.65,DENNIS EAGLE LTD T/A TERBERG MATEC (UK) LTD.
Neighbourhoods and Climate Change,Environmental Services,Transport,210057,Repair and Maintenance of Vehicles,05/01/2021,3820422-96399341,732.71,DENNIS EAGLE LTD T/A TERBERG MATEC (UK) LTD.
Neighbourhoods and Climate Change,Environmental Services,Transport,210057,Repair and Maintenance of Vehicles,05/01/2021,3820423-DE11369975,563.29,DENNIS EAGLE LTD.
Resources BK0010,Legal & Democratic Services,Supplies and Services,338042,Services,05/01/2021,3820424-342842/INVCM185,"2,475.00",DERE STREET BARRISTERS.
Resources BK0010,Legal & Democratic Services,Supplies and Services,338101,Services,05/01/2021,3820426-PB167,"2,240.40",DR PAUL BARRETT.
"Regeneration, Economy and Growth",Transport and Contracted Services,Intangible Assets,917001,Software capitalised licence fees,05/01/2021,3820428-DRA1335,638.00,DRAKEWELL LTD.
Neighbourhoods and Climate Change,Technical Services CM0300,Construction work A908,908105,Construction work,05/01/2021,3820434-168486,"90,030.32",ESH CONSTRUCTION LTD FORMERLY LUMSDEN & CARROLL CONSTRUCTION LTD.
Adult and Health Services,Head of Adults,Third Party Payments,478151,Purchase of Care,05/01/2021,3820435-20954,"1,911.00",ESSENTIAL CARE & SUPPORT LTD.
"Regeneration, Economy and Growth",Corporate Property and Land,Fees,901002,Professional services,05/01/2021,3820437-131148/12,"1,950.00",FAIRHURST (CONSULTING ENGINEERS).
"Regeneration, Economy and Growth",Corporate Property and Land,Fees,901002,Professional services,05/01/2021,3820437-131148/13,"8,920.00",FAIRHURST (CONSULTING ENGINEERS).
"Regeneration, Economy and Growth",Culture Sport and Tourism,Premises,145023,Cleaning and Domestic Supplies,05/01/2021,3820441-06/102151,"1,688.23",GREENHAM TRADING LTD.
Resources BK0010,Digital and Customer Services,Supplies and Services,304303,Equipment and Materials,05/01/2021,3820443-INV0181293,781.68,GVAV LTD.
Neighbourhoods and Climate Change,Environmental Services,Transport,215013,Running Costs of Vehicles,05/01/2021,3820444-9001933035,730.00,HAKO MACHINES LTD.
"Regeneration, Economy and Growth",Business Durham CL0850,Supplies and Services,384199,Miscellaneous Expenses,05/01/2021,3820446-IHI100-2511,840.00,HAYFIELDS CONTRACTING LTD T/A COMPLETE WEED CONTROL (DUR & TEESIDE).
"Regeneration, Economy and Growth",Corporate Property and Land,Supplies and Services,304221,Equipment and Materials,05/01/2021,3820447-4687010,768.69,HEADLAM (FLOORCOVERING DISTRIBUTORS) LTD.
Adult and Health Services,Head of Adults,Third Party Payments,478151,Purchase of Care,05/01/2021,3820448-HLC296,"1,953.00",HIGHLEA CARE LTD.
Adult and Health Services,Head of Adults,Third Party Payments,478151,Purchase of Care,05/01/2021,3820448-HLC297,"2,475.70",HIGHLEA CARE LTD.
Adult and Health Services,Head of Adults,Third Party Payments,478151,Purchase of Care,05/01/2021,3820448-HLC298,"2,836.32",HIGHLEA CARE LTD.
Adult and Health Services,Head of Adults,Third Party Payments,478151,Purchase of Care,05/01/2021,3820448-HLC299,"3,060.75",HIGHLEA CARE LTD.
Adult and Health Services,Head of Adults,Third Party Payments,478151,Purchase of Care,05/01/2021,3820450-HLC295,"1,019.34",HIGHLEA CARE.
Neighbourhoods and Climate Change,Technical Services CM0300,Third Party Payments,430127,Rendered by Private Contractors,05/01/2021,3820453-2833,525.00,IAN C LIDDLE T/A IC LIDDLE SERVICES.
Neighbourhoods and Climate Change,Technical Services CM0300,Third Party Payments,430127,Rendered by Private Contractors,05/01/2021,3820453-2834,525.00,IAN C LIDDLE T/A IC LIDDLE SERVICES.
Children and Young Peoples Services,Head of Education and Skills,Supplies and Services,338027,Services,05/01/2021,3820456-624145,"1,050.00",INGLEBY MILL PRIMARY SCHOOL.
Neighbourhoods and Climate Change,Environmental Services,Supplies and Services,338027,Services,05/01/2021,3820457-88721,"1,760.00",INITIAL PROJECTS LTD T/A ENITIAL.
Neighbourhoods and Climate Change,Technical Services CM0300,Third Party Payments,430127,Rendered by Private Contractors,05/01/2021,3820461-5306029,525.00,JA GILSON (AGRICULTURAL CONTRACTORS) LTD.
"Regeneration, Economy and Growth",Development and Housing,Construction work A908,908105,Construction work,05/01/2021,3820465-0000082974,"15,493.75",JOHN WADE (HAULAGE) LTD.
Neighbourhoods and Climate Change,Technical Services CM0300,Supplies and Services,304221,Equipment and Materials,05/01/2021,3820467-0303/00234970,976.30,JT DOVE LTD.
"Regeneration, Economy and Growth",Development and Housing,Supplies and Services,338042,Services,05/01/2021,3820469-167500-8/12/20,"7,750.00",LANDMARK CHAMBERS.
Children and Young Peoples Services,Head of Childrens Social Care,Transport,230005,Contract Hire,05/01/2021,3820474-4856,"2,405.00",LOCAL TRANSPORT LTD.
Children and Young Peoples Services,Head of Childrens Social Care,Transport,230005,Contract Hire,05/01/2021,3820474-4859,"2,325.00",LOCAL TRANSPORT LTD.
Neighbourhoods and Climate Change,Technical Services CM0300,Supplies and Services,304358,Equipment and Materials,05/01/2021,3820478-MS2429,621.00,M SPENCE SURFACING LTD.
Neighbourhoods and Climate Change,Technical Services CM0300,Supplies and Services,304358,Equipment and Materials,05/01/2021,3820478-MS2430,621.00,M SPENCE SURFACING LTD.
Children and Young Peoples Services,Head of Education and Skills,Transport,230007,Contract Hire,05/01/2021,3820479-5980,834.30,MAKEPEACE MOTORS.
Neighbourhoods and Climate Change,Environmental Services,Supplies and Services,304221,Equipment and Materials,05/01/2021,3820480-1123,"2,260.00",MATTHEW ALLISON T/A ARBOR 82.
"Regeneration, Economy and Growth",Corporate Property and Land,Third Party Payments,430100,Rendered by Private Contractors,05/01/2021,3820481-30559/92199734,625.00,MITIE PROPERTY SERVICES (UK) LTD.
Neighbourhoods and Climate Change,Technical Services CM0300,Supplies and Services,336005,Advertising E336,05/01/2021,3820498-35299086,511.78,NEWSQUEST (YORKSHIRE & NORTH EAST) LTD.
Children and Young Peoples Services,Head of Early Help Inclusion & Vulnerable Children.,Third Party Payments,479101,Purchase of Care,05/01/2021,3820499-4010001207,"8,833.44",NHS SYNCHRONICITY CARE LTD.
Children and Young Peoples Services,Head of Early Help Inclusion & Vulnerable Children.,Third Party Payments,479101,Purchase of Care,05/01/2021,3820499-4010001208,"2,752.82",NHS SYNCHRONICITY CARE LTD.
Dedicated Schools Grant BG0015,DSG High Needs Block,Supplies and Services,384302,Miscellaneous Expenses,05/01/2021,3820500-5100440,"4,000.00",NORTH DURHAM ACADEMY.
Neighbourhoods and Climate Change,Environmental Services,Transport,210057,Repair and Maintenance of Vehicles,05/01/2021,3820501-21862617,525.49,NORTH EAST TRUCK & VAN LTD.
Resources BK0010,Legal & Democratic Services,Supplies and Services,338102,Services,05/01/2021,3820503-7510389345,"1,269.47",NORTHUMBRIA HEALTHCARE NHS FOUNDATION TRUST.
Neighbourhoods and Climate Change,Environmental Services,Transport,215005,Running Costs of Vehicles,05/01/2021,3820506-683603,"8,301.60",OIL NRG LTD.
Neighbourhoods and Climate Change,Environmental Services,Transport,215022,Running Costs of Vehicles,05/01/2021,3820506-680452,933.20,OIL NRG LTD.
Neighbourhoods and Climate Change,Environmental Services,Transport,215005,Running Costs of Vehicles,05/01/2021,3820506-681564,"9,224.00",OIL NRG LTD.
Neighbourhoods and Climate Change,Environmental Services,Transport,215005,Running Costs of Vehicles,05/01/2021,3820506-683774,"9,278.40",OIL NRG LTD.
Neighbourhoods and Climate Change,Environmental Services,Transport,215005,Running Costs of Vehicles,05/01/2021,3820506-682876,"14,678.40",OIL NRG LTD.
Neighbourhoods and Climate Change,Environmental Services,Transport,215022,Running Costs of Vehicles,05/01/2021,3820506-682878,941.60,OIL NRG LTD.
Neighbourhoods and Climate Change,Environmental Services,Transport,215005,Running Costs of Vehicles,05/01/2021,3820506-682879,"6,463.80",OIL NRG LTD.
Neighbourhoods and Climate Change,Technical Services CM0300,Stock A926,926900,Stock in hand-Inventory system,05/01/2021,3820508-XL264190,"1,137.92",PARK ELECTRICAL DISTRIBUTORS LTD.
Resources BK0010,Legal & Democratic Services,Supplies and Services,338101,Services,05/01/2021,3820510-PPSLPMSNOV-DEC2020,"4,961.40",PATEL PATH SERVICES LTD.
Children and Young Peoples Services,Head of Education and Skills,Construction work A908,908105,Construction work,05/01/2021,3820515-900907189,"22,847.75",PORTAKABIN LTD.
Children and Young Peoples Services,Head of Education and Skills,Construction work A908,908105,Construction work,05/01/2021,3820517-PFI1462,"6,021.65",PREMIER FLOORING INSTALLATIONS LTD.
Resources BK0010,Legal & Democratic Services,Supplies and Services,340001,Postages E340,05/01/2021,3820519-RES-01-2021-002,"2,000.00",QUADIENT FINANCE UK LTD FORMERLY NEOPOST LTD.
Neighbourhoods and Climate Change,Technical Services CM0300,Third Party Payments,430100,Rendered by Private Contractors,05/01/2021,3820520-13007,"13,847.78",QUANTUM POWER CONNECTIONS LTD.
Neighbourhoods and Climate Change,Technical Services CM0300,Third Party Payments,430100,Rendered by Private Contractors,05/01/2021,3820520-13008,"2,798.55",QUANTUM POWER CONNECTIONS LTD.
Neighbourhoods and Climate Change,Technical Services CM0300,Third Party Payments,430100,Rendered by Private Contractors,05/01/2021,3820521-2858/201241,"13,065.97",RAINTON CONSTRUCTION LTD.
"Regeneration, Economy and Growth",Corporate Property and Land,Third Party Payments,430100,Rendered by Private Contractors,05/01/2021,3820522-INV-2668,"2,170.00",REDWOOD CABLE PROJECTS LTD.
Neighbourhoods and Climate Change,Technical Services CM0300,Supplies and Services,304358,Equipment and Materials,05/01/2021,3820528-38A,"1,048.70",S & R LANDSCAPES.
Neighbourhoods and Climate Change,Technical Services CM0300,Supplies and Services,304358,Equipment and Materials,05/01/2021,3820528-51,"1,128.75",S & R LANDSCAPES.
Neighbourhoods and Climate Change,Technical Services CM0300,Supplies and Services,304358,Equipment and Materials,05/01/2021,3820528-53,"2,034.00",S & R LANDSCAPES.
"Regeneration, Economy and Growth",Culture Sport and Tourism,Supplies and Services,304252,Equipment and Materials,05/01/2021,3820530-231220,"1,837.50",SCREEN WITH ENVY LTD.
"Regeneration, Economy and Growth",Corporate Property and Land,Supplies and Services,304221,Equipment and Materials,05/01/2021,3820531-0000113873,509.00,SHORTS INDUSTRIES LTD T/A SHORTS LIFTS.
Neighbourhoods and Climate Change,Environmental Services,Transport,230710,Contract Hire,05/01/2021,3820533-105/20/31877,"30,104.50",SOCIETE GENERALE EQUIPMENT FINANCE LTD.
Adult and Health Services,Head of Adults,Third Party Payments,478151,Purchase of Care,05/01/2021,3820535-41220,"1,945.55",SOVEREIGN CARE (NORTH EAST) LTD.
"Regeneration, Economy and Growth",Corporate Property and Land,Third Party Payments,430100,Rendered by Private Contractors,05/01/2021,3820538-16174,"9,269.76",STEADFAST SECURITY SOLUTIONS LTD.
Children and Young Peoples Services,Head of Childrens Social Care,Transport,230005,Contract Hire,05/01/2021,3820540-SI-784,"1,500.00",STEVEN PRATT T/A PTL TAXIS DURHAM.
Children and Young Peoples Services,Head of Childrens Social Care,Transport,230005,Contract Hire,05/01/2021,3820540-SI-778,547.00,STEVEN PRATT T/A PTL TAXIS DURHAM.
Children and Young Peoples Services,Head of Childrens Social Care,Transport,230005,Contract Hire,05/01/2021,3820540-SI-785,547.00,STEVEN PRATT T/A PTL TAXIS DURHAM.
Children and Young Peoples Services,Head of Childrens Social Care,Transport,230005,Contract Hire,05/01/2021,3820540-SI-780,878.00,STEVEN PRATT T/A PTL TAXIS DURHAM.
Children and Young Peoples Services,Head of Childrens Social Care,Transport,230005,Contract Hire,05/01/2021,3820540-SI-787,595.00,STEVEN PRATT T/A PTL TAXIS DURHAM.
Children and Young Peoples Services,Head of Childrens Social Care,Transport,230005,Contract Hire,05/01/2021,3820541-DEC3/STL,760.00,STL CABS.
"Regeneration, Economy and Growth",Corporate Property and Land,Third Party Payments,430100,Rendered by Private Contractors,05/01/2021,3820544-180474,765.00,SUPATINT LTD T/A SUPATINT WINDOW FILMS & BLINDS.
Neighbourhoods and Climate Change,Technical Services CM0300,Supplies and Services,338066,Services,05/01/2021,3820545-32296,"1,200.00",SURVEY OPERATIONS LTD.
Neighbourhoods and Climate Change,Environmental Services,Supplies and Services,304999,Equipment and Materials,05/01/2021,3820547-2060,"1,131.00",TEESDALE COMMUNICATION & SECURITY.
"Regeneration, Economy and Growth",Development and Housing,Construction work A908,908110,Capital - Reconstruction,05/01/2021,3820554-TV00463,"211,149.94",TOLENT LIVING LTD.
"Regeneration, Economy and Growth",Development and Housing,Construction work A908,908110,Capital - Reconstruction,05/01/2021,3820554-TV00480,"21,660.57",TOLENT LIVING LTD.
Neighbourhoods and Climate Change,Technical Services CM0300,Stock A926,926900,Stock in hand-Inventory system,05/01/2021,3820555-104179,"2,812.50",TOTAL RENTAL SOLUTIONS.
Neighbourhoods and Climate Change,Technical Services CM0300,Stock A926,926900,Stock in hand-Inventory system,05/01/2021,3820555-104181,"1,200.00",TOTAL RENTAL SOLUTIONS.
Neighbourhoods and Climate Change,Technical Services CM0300,Stock A926,926900,Stock in hand-Inventory system,05/01/2021,3820555-104183,"1,344.00",TOTAL RENTAL SOLUTIONS.
Neighbourhoods and Climate Change,Technical Services CM0300,Stock A926,926900,Stock in hand-Inventory system,05/01/2021,3820555-104185,"2,134.71",TOTAL RENTAL SOLUTIONS.
Neighbourhoods and Climate Change,Environmental Services,Supplies and Services,384199,Miscellaneous Expenses,05/01/2021,3820556-TRNE024042,837.00,TOTAL RESOURCES UK LTD.
"Regeneration, Economy and Growth",Corporate Property and Land,Third Party Payments,430100,Rendered by Private Contractors,05/01/2021,3820557-16788,"2,180.09",TYNE TEES THERMAL LTD.
Neighbourhoods and Climate Change,Environmental Services,Premises,135005,Water Services,05/01/2021,3820562-210364310088346275,"9,320.73",WAVE (AWBN).
Neighbourhoods and Climate Change,Environmental Services,Premises,135005,Water Services,05/01/2021,3820562-307411330018344576,"1,595.15",WAVE (AWBN).
"Regeneration, Economy and Growth",Business Durham CL0850,Premises,135005,Water Services,05/01/2021,3820562-888888994648325795,649.47,WAVE (AWBN).
"Regeneration, Economy and Growth",Corporate Property and Land,Premises,150015,Apportioned Exps of Operational Blds,05/01/2021,3820564-1071006,750.20,WERNICK HIRE LTD.
Resources BK0010,Digital and Customer Services,Vehicles Equipment Furniture and Fittings,912701,Computer equipment,05/01/2021,3820566-KY13455,"1,755.58",XMA LTD.
Children and Young Peoples Services,Head of Education and Skills,Transport,230006,Contract Hire,06/01/2021,3820572-102016,"2,139.50",24/7 TAXI SERVICES LTD.
Adult and Health Services,Head of Adults,Transport,230005,Contract Hire,06/01/2021,3820573-I1220/SF,570.53,AABAT TAXIS.
Adult and Health Services,Head of Adults,Transport,230005,Contract Hire,06/01/2021,3820573-I1220/SB,615.00,AABAT TAXIS.
Adult and Health Services,Head of Adults,Transport,230005,Contract Hire,06/01/2021,3820573-I1220/SH,"1,288.00",AABAT TAXIS.
Children and Young Peoples Services,Head of Education and Skills,Transport,230012,Contract Hire,06/01/2021,3820573-I1220/SG,"1,204.00",AABAT TAXIS.
Children and Young Peoples Services,Head of Education and Skills,Transport,230012,Contract Hire,06/01/2021,3820573-I1220/SS,924.00,AABAT TAXIS.
Children and Young Peoples Services,Head of Education and Skills,Transport,230007,Contract Hire,06/01/2021,3820573-I1220/SL,839.72,AABAT TAXIS.
Children and Young Peoples Services,Head of Education and Skills,Transport,230007,Contract Hire,06/01/2021,3820573-I1220/SM,663.00,AABAT TAXIS.
Children and Young Peoples Services,Head of Education and Skills,Transport,230034,Contract Hire,06/01/2021,3820573-I1220/SO,617.50,AABAT TAXIS.
Children and Young Peoples Services,Head of Education and Skills,Transport,230008,Contract Hire,06/01/2021,3820573-I1220/SP,784.32,AABAT TAXIS.
Children and Young Peoples Services,Head of Education and Skills,Transport,230008,Contract Hire,06/01/2021,3820573-I1220/SR,"1,750.00",AABAT TAXIS.
Children and Young Peoples Services,Head of Education and Skills,Transport,230008,Contract Hire,06/01/2021,3820573-I1220/SN,"2,162.44",AABAT TAXIS.
Children and Young Peoples Services,Head of Education and Skills,Transport,230008,Contract Hire,06/01/2021,3820573-I1220/SC,"2,268.00",AABAT TAXIS.
Children and Young Peoples Services,Head of Education and Skills,Transport,230008,Contract Hire,06/01/2021,3820573-I1220/SX,"1,134.00",AABAT TAXIS.
Children and Young Peoples Services,Head of Education and Skills,Transport,230008,Contract Hire,06/01/2021,3820573-I1220/SD,"1,620.92",AABAT TAXIS.
Children and Young Peoples Services,Head of Education and Skills,Transport,230008,Contract Hire,06/01/2021,3820573-I1220/SJ,874.72,AABAT TAXIS.
Children and Young Peoples Services,Head of Education and Skills,Transport,230006,Contract Hire,06/01/2021,3820573-I1220/SA,"2,027.00",AABAT TAXIS.
Children and Young Peoples Services,Head of Education and Skills,Transport,230006,Contract Hire,06/01/2021,3820573-I1220/SI,"1,408.00",AABAT TAXIS.
Children and Young Peoples Services,Head of Education and Skills,Transport,230012,Contract Hire,06/01/2021,3820574-1/12/20,686.34,ABA TAXIS.
Children and Young Peoples Services,Head of Education and Skills,Transport,230012,Contract Hire,06/01/2021,3820576-0486,"1,302.00",ABC & OUSTON CABS.
Children and Young Peoples Services,Head of Education and Skills,Transport,230012,Contract Hire,06/01/2021,3820576-O479,"1,860.00",ABC & OUSTON CABS.
Children and Young Peoples Services,Head of Education and Skills,Transport,230007,Contract Hire,06/01/2021,3820576-O481,582.10,ABC & OUSTON CABS.
Children and Young Peoples Services,Head of Education and Skills,Transport,230008,Contract Hire,06/01/2021,3820576-0483,"1,510.32",ABC & OUSTON CABS.
Children and Young Peoples Services,Head of Education and Skills,Transport,230008,Contract Hire,06/01/2021,3820576-O482,"2,265.48",ABC & OUSTON CABS.
Children and Young Peoples Services,Head of Education and Skills,Transport,230008,Contract Hire,06/01/2021,3820576-0485,"1,528.10",ABC & OUSTON CABS.
Children and Young Peoples Services,Head of Education and Skills,Transport,230008,Contract Hire,06/01/2021,3820576-O480,"2,183.00",ABC & OUSTON CABS.
Neighbourhoods and Climate Change,Environmental Services,Construction work A908,908105,Construction work,06/01/2021,3820577-46049148,"3,015.95",ADT FIRE & SECURITY PLC.
Neighbourhoods and Climate Change,Environmental Services,Supplies and Services,304221,Equipment and Materials,06/01/2021,3820578-CD971061490,"1,835.20",AGROVISTA UK LTD FORMERLY SHERRIFF AMENITY.
Adult and Health Services,Head of Adults,Third Party Payments,479140,Purchase of Care,06/01/2021,3820579-SUSTAINABILITYPAYMENT9/9,"18,481.27",AKARI CARE LTD.
Adult and Health Services,Head of Adults,Third Party Payments,479140,Purchase of Care,06/01/2021,3820580-SUSTAINABILITYPAYMENT9/1,"39,172.25",AKARI CARE LTD.
Children and Young Peoples Services,Head of Education and Skills,Transport,230008,Contract Hire,06/01/2021,3820582-11,"1,778.00",AMANDA SMITH T/A WEARDALE WHEELS.
Children and Young Peoples Services,Head of Education and Skills,Transport,230008,Contract Hire,06/01/2021,3820583-041220AT,842.52,AMBER TRAVEL.
Children and Young Peoples Services,Head of Education and Skills,Transport,230008,Contract Hire,06/01/2021,3820584-DEC20,"1,310.40",ANDREW PYGALL T/A ARP TAXIS.
Children and Young Peoples Services,Head of Education and Skills,Transport,230008,Contract Hire,06/01/2021,3820584-M002DEC20,"1,412.32",ANDREW PYGALL T/A ARP TAXIS.
Children and Young Peoples Services,Head of Education and Skills,Transport,230007,Contract Hire,06/01/2021,3820586-0553776,"1,343.42",ANTHONY HOBSON (TAXI).
Children and Young Peoples Services,Head of Childrens Social Care,Third Party Payments,486043,Service level agreements E486,06/01/2021,3820588-ARC2021-427,"2,713.33",ARC ADOPTION NORTH EAST.
Children and Young Peoples Services,Head of Childrens Social Care,Third Party Payments,486043,Service level agreements E486,06/01/2021,3820588-ARC2021-428,"1,913.33",ARC ADOPTION NORTH EAST.
Children and Young Peoples Services,Head of Education and Skills,Transport,230008,Contract Hire,06/01/2021,3820590-4DEC20,753.00,B&C YELLOWCAB TAXI`S.
Children and Young Peoples Services,Head of Education and Skills,Transport,230008,Contract Hire,06/01/2021,3820593-942,"1,260.56",BEELINE MINI BUSES.
Children and Young Peoples Services,Head of Education and Skills,Transport,230006,Contract Hire,06/01/2021,3820593-944,"1,098.37",BEELINE MINI BUSES.
Children and Young Peoples Services,Head of Education and Skills,Transport,230008,Contract Hire,06/01/2021,3820593-943,"1,460.34",BEELINE MINI BUSES.
Children and Young Peoples Services,Head of Education and Skills,Transport,230006,Contract Hire,06/01/2021,3820595-18,"1,576.18",BELMONT TAXIS.
Adult and Health Services,Head of Adults,Transport,230005,Contract Hire,06/01/2021,3820601-8071-31/12/20,"1,081.50",BOBBY DOVE PRIVATE HIRE.
Neighbourhoods and Climate Change,Technical Services CM0300,Third Party Payments,430100,Rendered by Private Contractors,06/01/2021,3820603-1278014272,"13,429.12",BOUYGUES E&S INFRASTRUCTURE UK LTD.
Neighbourhoods and Climate Change,Technical Services CM0300,Third Party Payments,430100,Rendered by Private Contractors,06/01/2021,3820603-1278014273,"10,721.15",BOUYGUES E&S INFRASTRUCTURE UK LTD.
Neighbourhoods and Climate Change,Technical Services CM0300,Third Party Payments,430100,Rendered by Private Contractors,06/01/2021,3820603-1278014274,"11,157.30",BOUYGUES E&S INFRASTRUCTURE UK LTD.
Children and Young Peoples Services,Head of Education and Skills,Transport,230034,Contract Hire,06/01/2021,3820610-BIL0217,"1,708.00",CA MUSGROVE.
Neighbourhoods and Climate Change,Environmental Services,Transport,210057,Repair and Maintenance of Vehicles,06/01/2021,3820612-417270,869.17,CARRS BILLINGTON AGRICULTURE.
Neighbourhoods and Climate Change,Environmental Services,Third Party Payments,430100,Rendered by Private Contractors,06/01/2021,3820617-170938,"2,792.24",CG ROBINSON LTD.
Neighbourhoods and Climate Change,Environmental Services,Transport,215012,Running Costs of Vehicles,06/01/2021,3820619-195492,"1,634.50",CHEVIN FLEET SOLUTIONS LTD.
Neighbourhoods and Climate Change,Environmental Services,Supplies and Services,338066,Services,06/01/2021,3820622-7257,"3,200.00",CHRIS CLARK NETHERGILL ASSOCIATES.
Children and Young Peoples Services,Head of Education and Skills,Transport,230006,Contract Hire,06/01/2021,3820624-F830/09,561.00,CHRISTOPHER MADDISON (TAXI).
Children and Young Peoples Services,Head of Education and Skills,Transport,230008,Contract Hire,06/01/2021,3820627-A072-SP1220,"1,296.78",CJ`S EXECUTIVE TRAVEL LTD.
Children and Young Peoples Services,Head of Education and Skills,Transport,230008,Contract Hire,06/01/2021,3820627-E031-KC1220,"2,200.76",CJ`S EXECUTIVE TRAVEL LTD.
Children and Young Peoples Services,Head of Education and Skills,Transport,230008,Contract Hire,06/01/2021,3820627-N115-CB1220,"1,470.00",CJ`S EXECUTIVE TRAVEL LTD.
Children and Young Peoples Services,Head of Education and Skills,Transport,230006,Contract Hire,06/01/2021,3820627-N112-GHH1220,"1,397.99",CJ`S EXECUTIVE TRAVEL LTD.
Children and Young Peoples Services,Head of Education and Skills,Transport,230008,Contract Hire,06/01/2021,3820627-M011-AA1220,"1,351.84",CJ`S EXECUTIVE TRAVEL LTD.
Children and Young Peoples Services,Head of Childrens Social Care,Supplies and Services,338044,Services,06/01/2021,3820632-106487,504.00,COMPLEMENT GENOMICS LTD.
Resources BK0010,Legal & Democratic Services,Supplies and Services,338025,Services,06/01/2021,3820631-S44995-01953,"1,190.00",CO-OPERATIVE FUNERAL CARE.
"Regeneration, Economy and Growth",Culture Sport and Tourism,Supplies and Services,384999,Miscellaneous Expenses,06/01/2021,3820637-SI-4234,"1,576.00",COUNTY DURHAM SPORT.
Adult and Health Services,Head of Adults,Third Party Payments,479140,Purchase of Care,06/01/2021,3820640-SUSTAINABILITYPAYMENT9/6,"114,693.59",CROWN CARE VI LTD.
Resources BK0010,Digital and Customer Services,Supplies and Services,342033,Computers and Communications,06/01/2021,3820647-7402674312,"5,140.00",DELL COMPUTER CORPORATION LTD.
Resources BK0010,Legal & Democratic Services,Supplies and Services,338042,Services,06/01/2021,3820649-357134/INVEL165,"1,200.00",DERE STREET BARRISTERS.
Resources BK0010,Legal & Democratic Services,Supplies and Services,338042,Services,06/01/2021,3820649-361951/INVSEB1X265,550.00,DERE STREET BARRISTERS.
Adult and Health Services,Head of Adults,Third Party Payments,479140,Purchase of Care,06/01/2021,3820650-SUSTAINABILITYPAYMENT9/4,"40,980.20",DIPTON CARE HOME LTD.
Resources BK0010,Legal & Democratic Services,Supplies and Services,338101,Services,06/01/2021,3820654-PB168,"2,177.60",DR PAUL BARRETT.
Children and Young Peoples Services,Head of Childrens Social Care,Supplies and Services,338044,Services,06/01/2021,3820655-SI-948,631.80,DR SUSAN COOPER.
"Regeneration, Economy and Growth",Culture Sport and Tourism,Fees,901002,Professional services,06/01/2021,3820658-801,"3,225.00",DURHAM COUNTY FOOTBALL ASSOCIATION LTD.
"Regeneration, Economy and Growth",Development and Housing,Supplies and Services,338066,Services,06/01/2021,3820663-109129,930.00,E3 ECOLOGY LTD.
Children and Young Peoples Services,Head of Education and Skills,Transport,230007,Contract Hire,06/01/2021,3820667-5234/1220,"1,651.00",ELLIOTTS OF TRIMDON.
Children and Young Peoples Services,Head of Education and Skills,Transport,230007,Contract Hire,06/01/2021,3820667-4402/1220,513.80,ELLIOTTS OF TRIMDON.
Children and Young Peoples Services,Head of Education and Skills,Transport,230007,Contract Hire,06/01/2021,3820667-5124/1220,643.37,ELLIOTTS OF TRIMDON.
Children and Young Peoples Services,Head of Education and Skills,Transport,230008,Contract Hire,06/01/2021,3820667-M042/1220,"1,330.94",ELLIOTTS OF TRIMDON.
Children and Young Peoples Services,Head of Education and Skills,Transport,230008,Contract Hire,06/01/2021,3820667-E060/1220,"1,382.50",ELLIOTTS OF TRIMDON.
Neighbourhoods and Climate Change,Technical Services CM0300,Supplies and Services,304221,Equipment and Materials,06/01/2021,3820671-134514,"3,585.96",FABRIKAT (NOTTINGHAM) LTD.
"Regeneration, Economy and Growth",Transport and Contracted Services,Third Party Payments,430106,Rendered by Private Contractors,06/01/2021,3820673-NOV/DEC2020,"3,539.09",FERRYHILL VILLAGE TRAVEL.
Neighbourhoods and Climate Change,Environmental Services,Third Party Payments,430120,Rendered by Private Contractors,06/01/2021,3820674-SINV9670407,589.30,FINNING (UK) LTD.
Children and Young Peoples Services,Head of Education and Skills,Transport,230009,Contract Hire,06/01/2021,3820678-1515,937.58,FMR SILVA PITA.
Children and Young Peoples Services,Head of Education and Skills,Transport,230007,Contract Hire,06/01/2021,3820678-1516,795.48,FMR SILVA PITA.
Children and Young Peoples Services,Head of Education and Skills,Transport,230008,Contract Hire,06/01/2021,3820678-1514,"1,228.36",FMR SILVA PITA.
Children and Young Peoples Services,Head of Education and Skills,Transport,230003,Contract Hire,06/01/2021,3820682-22503,"3,759.00",GARNETTS LTD (COACHES).
Children and Young Peoples Services,Head of Education and Skills,Transport,230007,Contract Hire,06/01/2021,3820682-22502-3029-NOV,"2,860.00",GARNETTS LTD (COACHES).
Children and Young Peoples Services,Head of Education and Skills,Transport,230007,Contract Hire,06/01/2021,3820682-22502-3199-NOV,"2,720.00",GARNETTS LTD (COACHES).
Children and Young Peoples Services,Head of Education and Skills,Transport,230003,Contract Hire,06/01/2021,3820682-22502-3020-NOV,"2,880.00",GARNETTS LTD (COACHES).
Children and Young Peoples Services,Head of Education and Skills,Transport,230003,Contract Hire,06/01/2021,3820682-22502-3024-NOV,"2,380.00",GARNETTS LTD (COACHES).
Children and Young Peoples Services,Head of Education and Skills,Transport,230003,Contract Hire,06/01/2021,3820682-22502-3027-NOV,"2,540.00",GARNETTS LTD (COACHES).
Children and Young Peoples Services,Head of Education and Skills,Transport,230003,Contract Hire,06/01/2021,3820682-22502-3028-NOV,"2,780.00",GARNETTS LTD (COACHES).
Children and Young Peoples Services,Head of Education and Skills,Transport,230007,Contract Hire,06/01/2021,3820682-22507-4227-NOV,"3,580.00",GARNETTS LTD (COACHES).
Children and Young Peoples Services,Head of Education and Skills,Transport,230007,Contract Hire,06/01/2021,3820682-22507-4404-NOV,"14,720.00",GARNETTS LTD (COACHES).
Children and Young Peoples Services,Head of Education and Skills,Transport,230003,Contract Hire,06/01/2021,3820682-22503-3301-NOV,"3,759.00",GARNETTS LTD (COACHES).
Children and Young Peoples Services,Head of Education and Skills,Transport,230003,Contract Hire,06/01/2021,3820682-22503-3303-NOV,"3,759.00",GARNETTS LTD (COACHES).
Children and Young Peoples Services,Head of Education and Skills,Transport,230003,Contract Hire,06/01/2021,3820682-22504-3004-NOV,"3,280.00",GARNETTS LTD (COACHES).
Children and Young Peoples Services,Head of Education and Skills,Transport,230003,Contract Hire,06/01/2021,3820682-22504-3005-NOV,"5,960.00",GARNETTS LTD (COACHES).
Children and Young Peoples Services,Head of Education and Skills,Transport,230003,Contract Hire,06/01/2021,3820682-22504-3008-NOV,"3,380.00",GARNETTS LTD (COACHES).
Children and Young Peoples Services,Head of Education and Skills,Transport,230003,Contract Hire,06/01/2021,3820682-22504-3203-NOV,"3,180.00",GARNETTS LTD (COACHES).
Children and Young Peoples Services,Head of Education and Skills,Transport,230003,Contract Hire,06/01/2021,3820682-22504-3223-NOV,"6,360.00",GARNETTS LTD (COACHES).
Children and Young Peoples Services,Head of Education and Skills,Transport,230003,Contract Hire,06/01/2021,3820682-22504-3262-NOV,"3,740.00",GARNETTS LTD (COACHES).
Children and Young Peoples Services,Head of Education and Skills,Transport,230003,Contract Hire,06/01/2021,3820682-22504-3333-NOV,"3,360.00",GARNETTS LTD (COACHES).
Children and Young Peoples Services,Head of Education and Skills,Transport,230008,Contract Hire,06/01/2021,3820682-22519-S011-NOV,"3,334.50",GARNETTS LTD (COACHES).
Children and Young Peoples Services,Head of Education and Skills,Transport,230008,Contract Hire,06/01/2021,3820682-22519-W099-NOV,"3,885.00",GARNETTS LTD (COACHES).
Neighbourhoods and Climate Change,Environmental Services,Premises,108099,Service Repairs and Maintenance,06/01/2021,3820683-SI-083931,"4,061.00",GDUK DOOR SOLUTIONS LTD.
Neighbourhoods and Climate Change,Environmental Services,Supplies and Services,304259,Equipment and Materials,06/01/2021,3820684-I242837,511.72,GEMCO SERVICE LTD.
Children and Young Peoples Services,Head of Childrens Social Care,Employees,080025,Agency Staff,06/01/2021,3820686-2444928,"87,145.80",GEOMETRIC RESULTS INTERNATIONAL.
"Regeneration, Economy and Growth",Corporate Property and Land,Supplies and Services,304221,Equipment and Materials,06/01/2021,3820692-7466,"1,824.00",GROVE REED JOINERY LTD.
Neighbourhoods and Climate Change,Environmental Services,Supplies and Services,304221,Equipment and Materials,06/01/2021,3820693-153906,863.75,GUSTHARTS LTD.
"Regeneration, Economy and Growth",Culture Sport and Tourism,Supplies and Services,384302,Miscellaneous Expenses,06/01/2021,3820695-018,"1,500.00",HARAMBEE PASADIA CIC.
Neighbourhoods and Climate Change,Environmental Services,Supplies and Services,304221,Equipment and Materials,06/01/2021,3820696-SI-6429,"1,595.74",HARELAW SAWMILL LTD.
Neighbourhoods and Climate Change,Environmental Services,Supplies and Services,304221,Equipment and Materials,06/01/2021,3820696-SI-6438,952.61,HARELAW SAWMILL LTD.
Neighbourhoods and Climate Change,Environmental Services,Supplies and Services,304221,Equipment and Materials,06/01/2021,3820696-SI-6426,674.82,HARELAW SAWMILL LTD.
Neighbourhoods and Climate Change,Environmental Services,Supplies and Services,304221,Equipment and Materials,06/01/2021,3820696-SI-6440,863.38,HARELAW SAWMILL LTD.
Neighbourhoods and Climate Change,Environmental Services,Supplies and Services,304221,Equipment and Materials,06/01/2021,3820696-SI-6445,829.39,HARELAW SAWMILL LTD.
Neighbourhoods and Climate Change,Environmental Services,Supplies and Services,304221,Equipment and Materials,06/01/2021,3820696-SI-6461,"1,132.99",HARELAW SAWMILL LTD.
Adult and Health Services,Public Health CC0450,Third Party Payments,460803,Contract Payments,06/01/2021,3820697-2510038117,"935,514.29",HARROGATE & DISTRICT NHS FOUNDATION TRUST.
"Regeneration, Economy and Growth",Business Durham CL0850,Premises,108125,Service Repairs and Maintenance,06/01/2021,3820699-IHI100-2516,"1,560.00",HAYFIELDS CONTRACTING LTD T/A COMPLETE WEED CONTROL (DUR & TEESIDE).
Neighbourhoods and Climate Change,Environmental Services,Supplies and Services,338066,Services,06/01/2021,3820704-139154,540.00,HUTCHINSON ENVIRONMENTAL SOLUTIONS LTD.
Children and Young Peoples Services,Head of Education and Skills,Transport,230010,Contract Hire,06/01/2021,3820705-004DEC20,"1,083.74",IAN SOULSBY.
Adult and Health Services,Head of Adults,Third Party Payments,479140,Purchase of Care,06/01/2021,3820706-SUSTAINABILITYPAYMENT9/8,"10,134.89",IDEAL CARE (NORTH) LTD.
"Regeneration, Economy and Growth",Corporate Property and Land,Third Party Payments,430100,Rendered by Private Contractors,06/01/2021,3820707-10166,"2,450.00",INGLEFORD SCAFFOLDING LTD.
"Regeneration, Economy and Growth",Corporate Property and Land,Third Party Payments,430100,Rendered by Private Contractors,06/01/2021,3820707-10167,"2,634.00",INGLEFORD SCAFFOLDING LTD.
"Regeneration, Economy and Growth",Business Durham CL0850,Premises,108099,Service Repairs and Maintenance,06/01/2021,3820710-TW-2826,"1,960.00",IW ADAMSON LTD T/A COMPLETE WEED CONTROL (TYNE & WEAR).
Children and Young Peoples Services,Head of Education and Skills,Transport,230006,Contract Hire,06/01/2021,3820711-6027,883.00,J YOUNG T/A VIP TAXIS.
"Regeneration, Economy and Growth",Transport and Contracted Services,Supplies and Services,336005,Advertising E336,06/01/2021,3820712-INV-0563,"1,500.00",JAK HQ LTD.
Children and Young Peoples Services,Head of Education and Skills,Transport,230034,Contract Hire,06/01/2021,3820719-CTD030/20,728.00,KEVIN WALKER T/A CENTRAL TAXIS.
Neighbourhoods and Climate Change,Environmental Services,Stock A926,926900,Stock in hand-Inventory system,06/01/2021,3820720-SI02-0297262,697.55,KILLGERM CHEMICALS LTD.
Adult and Health Services,Head of Adults,Third Party Payments,479140,Purchase of Care,06/01/2021,3820724-SUSTAINABILITYPAYMENT9/5,"19,077.44",LAMBTON HOUSE LTD.
Children and Young Peoples Services,Head of Education and Skills,Transport,230008,Contract Hire,06/01/2021,3820728-0017,"1,680.00",LEWIS PATTISON T/A LEWIS TAXIS.
Dedicated Schools Grant BG0015,DSG High Needs Block,Supplies and Services,304259,Equipment and Materials,06/01/2021,3820733-INV-6645,"1,375.00",LYNCH HEALTHCARE LTD.
Children and Young Peoples Services,Head of Education and Skills,Transport,230035,Contract Hire,06/01/2021,3820735-204,"1,204.11",M BUTCHER T/A M & M`S TAXIS.
Children and Young Peoples Services,Head of Education and Skills,Transport,230008,Contract Hire,06/01/2021,3820735-206,936.00,M BUTCHER T/A M & M`S TAXIS.
Children and Young Peoples Services,Head of Education and Skills,Transport,230016,Contract Hire,06/01/2021,3820735-205,560.00,M BUTCHER T/A M & M`S TAXIS.
Children and Young Peoples Services,Head of Education and Skills,Transport,230008,Contract Hire,06/01/2021,3820735-207,868.00,M BUTCHER T/A M & M`S TAXIS.
Neighbourhoods and Climate Change,Environmental Services,Third Party Payments,430100,Rendered by Private Contractors,06/01/2021,3820737-370,599.91,MAINLINE GARAGE.
Adult and Health Services,Head of Adults,Third Party Payments,479140,Purchase of Care,06/01/2021,3820738-SUSTAINABILITYPAYMENT9/10,"30,735.15",MALHOTRA CARE HOMES LTD.
Children and Young Peoples Services,Head of Education and Skills,Transport,230008,Contract Hire,06/01/2021,3820740-0054,"1,008.00",MARK WATSON T/A MARK`S TAXIS.
Children and Young Peoples Services,Head of Education and Skills,Transport,230008,Contract Hire,06/01/2021,3820743-DECEMBER20,931.19,MICHAEL A BODDY T/A MBS TAXIS.
Children and Young Peoples Services,Head of Education and Skills,Transport,230008,Contract Hire,06/01/2021,3820744-A032DEC20,"2,298.00",MICHAEL ANDERSON T/A TAXI DURHAM.
Children and Young Peoples Services,Head of Education and Skills,Transport,230034,Contract Hire,06/01/2021,3820746-337,884.00,MICKS TAXIS - MURTON.
Children and Young Peoples Services,Head of Education and Skills,Transport,230007,Contract Hire,06/01/2021,3820746-332,"1,288.00",MICKS TAXIS - MURTON.
Children and Young Peoples Services,Head of Education and Skills,Transport,230034,Contract Hire,06/01/2021,3820746-333,936.00,MICKS TAXIS - MURTON.
Children and Young Peoples Services,Head of Education and Skills,Transport,230007,Contract Hire,06/01/2021,3820746-330,671.19,MICKS TAXIS - MURTON.
Children and Young Peoples Services,Head of Education and Skills,Transport,230006,Contract Hire,06/01/2021,3820746-334,756.00,MICKS TAXIS - MURTON.
Children and Young Peoples Services,Head of Education and Skills,Transport,230010,Contract Hire,06/01/2021,3820746-336,868.00,MICKS TAXIS - MURTON.
Children and Young Peoples Services,Head of Education and Skills,Transport,230006,Contract Hire,06/01/2021,3820746-331,616.00,MICKS TAXIS - MURTON.
Children and Young Peoples Services,Head of Education and Skills,Supplies and Services,338027,Services,06/01/2021,3820747-DCC4013,"1,710.00",MIKE REDSHAW EDUCATION CONSULTANT.
Children and Young Peoples Services,Head of Education and Skills,Transport,230008,Contract Hire,06/01/2021,3820750-DEC20,"1,274.00",MR D DONNELLY.
Children and Young Peoples Services,Head of Education and Skills,Transport,230034,Contract Hire,06/01/2021,3820751-149,840.00,MR JOHN ALLINSON T/A AALPHA TAXIS.
Children and Young Peoples Services,Head of Education and Skills,Transport,230007,Contract Hire,06/01/2021,3820751-147,"1,036.00",MR JOHN ALLINSON T/A AALPHA TAXIS.
Children and Young Peoples Services,Head of Education and Skills,Transport,230006,Contract Hire,06/01/2021,3820751-150,666.00,MR JOHN ALLINSON T/A AALPHA TAXIS.
Children and Young Peoples Services,Head of Education and Skills,Transport,230034,Contract Hire,06/01/2021,3820752-104,700.00,MR LJ TARRY T/A TARRY`S TAXI`S.
Children and Young Peoples Services,Head of Education and Skills,Transport,230007,Contract Hire,06/01/2021,3820752-103,"1,066.00",MR LJ TARRY T/A TARRY`S TAXI`S.
Children and Young Peoples Services,Head of Education and Skills,Transport,230008,Contract Hire,06/01/2021,3820753-3DEC20,"1,680.00",MR M FARREY T/A TK TAXIS.
Children and Young Peoples Services,Head of Education and Skills,Transport,230034,Contract Hire,06/01/2021,3820754-98/2020,"1,120.00",MR MARIUSZ LASOTA T/A BM TAXI.
Children and Young Peoples Services,Head of Education and Skills,Transport,230034,Contract Hire,06/01/2021,3820754-102/2020,980.00,MR MARIUSZ LASOTA T/A BM TAXI.
Children and Young Peoples Services,Head of Education and Skills,Transport,230034,Contract Hire,06/01/2021,3820754-97/2020,"1,120.00",MR MARIUSZ LASOTA T/A BM TAXI.
Children and Young Peoples Services,Head of Education and Skills,Transport,230034,Contract Hire,06/01/2021,3820754-101/2020,690.00,MR MARIUSZ LASOTA T/A BM TAXI.
Children and Young Peoples Services,Head of Education and Skills,Transport,230006,Contract Hire,06/01/2021,3820754-103/2020,727.50,MR MARIUSZ LASOTA T/A BM TAXI.
Children and Young Peoples Services,Head of Education and Skills,Transport,230006,Contract Hire,06/01/2021,3820754-104/2020,878.50,MR MARIUSZ LASOTA T/A BM TAXI.
Children and Young Peoples Services,Head of Education and Skills,Transport,230006,Contract Hire,06/01/2021,3820754-105/2020,"1,295.00",MR MARIUSZ LASOTA T/A BM TAXI.
Children and Young Peoples Services,Head of Education and Skills,Transport,230007,Contract Hire,06/01/2021,3820755-1970,"1,115.40",MR PETER YOUNG.
Children and Young Peoples Services,Head of Education and Skills,Transport,230007,Contract Hire,06/01/2021,3820755-1971,"1,008.00",MR PETER YOUNG.
Children and Young Peoples Services,Head of Education and Skills,Transport,230010,Contract Hire,06/01/2021,3820756-BL0301220,"1,443.82",MR RICHARD STANDLEY T/A RS TAXI SERVICES.
Children and Young Peoples Services,Head of Education and Skills,Transport,230008,Contract Hire,06/01/2021,3820757-048,"1,520.00",MR SCOTT MALCOLM MACKENZIE T/A SCOTTS TAXIS.
Children and Young Peoples Services,Head of Education and Skills,Transport,230008,Contract Hire,06/01/2021,3820757-045,"1,463.02",MR SCOTT MALCOLM MACKENZIE T/A SCOTTS TAXIS.
Children and Young Peoples Services,Head of Education and Skills,Transport,230008,Contract Hire,06/01/2021,3820757-046,"1,873.00",MR SCOTT MALCOLM MACKENZIE T/A SCOTTS TAXIS.
Children and Young Peoples Services,Head of Education and Skills,Transport,230010,Contract Hire,06/01/2021,3820758-4-2020,"1,458.40",MR TERENCE DOUGHERTY T/A TERRYS TAXIS.
Neighbourhoods and Climate Change,Technical Services CM0300,Third Party Payments,430128,Rendered by Private Contractors,06/01/2021,3820760-5144,"8,024.50",N FLETCHER.
Neighbourhoods and Climate Change,Environmental Services,Third Party Payments,430100,Rendered by Private Contractors,06/01/2021,3820761-12570,624.80,N1 JETTING SYSTEMS LTD.
Neighbourhoods and Climate Change,Environmental Services,Supplies and Services,304403,Equipment and Materials,06/01/2021,3820763-INVDUR003I4153,539.61,NE TRUCK SPARES LTD (NETS).
Children and Young Peoples Services,Head of Education and Skills,Transport,230016,Contract Hire,06/01/2021,3820764-70,"1,196.00",NEIL PASSMOOR T/A NEIL`S TAXI.
Neighbourhoods and Climate Change,Technical Services CM0300,Supplies and Services,336005,Advertising E336,06/01/2021,3820765-35315098,511.78,NEWSQUEST (YORKSHIRE & NORTH EAST) LTD.
"Regeneration, Economy and Growth",Development and Housing,Supplies and Services,336005,Advertising E336,06/01/2021,3820765-35314344,751.75,NEWSQUEST (YORKSHIRE & NORTH EAST) LTD.
Children and Young Peoples Services,Head of Early Help Inclusion & Vulnerable Children.,Third Party Payments,479101,Purchase of Care,06/01/2021,3820766-4010001209,"1,261.92",NHS SYNCHRONICITY CARE LTD.
Neighbourhoods and Climate Change,Technical Services CM0300,Supplies and Services,338066,Services,06/01/2021,3820769-76429,767.00,NORTH EAST GRANITE COMPANY LTD.
Neighbourhoods and Climate Change,Technical Services CM0300,Construction work A908,908105,Construction work,06/01/2021,3820771-20186,"2,800.00",NORTH EAST TRAFFIC DATA COLLECTION LTD.
"Regeneration, Economy and Growth",Culture Sport and Tourism,Supplies and Services,384199,Miscellaneous Expenses,06/01/2021,3820777-00014819,623.82,NSL LTD.
Children and Young Peoples Services,Head of Education and Skills,Transport,230006,Contract Hire,06/01/2021,3820786-DEC20,"1,008.00",PAUL WILSON.
Adult and Health Services,Head of Adults,Transport,230005,Contract Hire,06/01/2021,3820790-DEC203,558.00,PETER`S TAXIS.
Children and Young Peoples Services,Head of Education and Skills,Transport,230034,Contract Hire,06/01/2021,3820790-DEC20,728.00,PETER`S TAXIS.
Children and Young Peoples Services,Head of Education and Skills,Transport,230007,Contract Hire,06/01/2021,3820790-DEC205,"1,148.00",PETER`S TAXIS.
Children and Young Peoples Services,Head of Education and Skills,Transport,230008,Contract Hire,06/01/2021,3820787-691,"1,008.00",PETERLEE EXECUTIVE CARS.
Children and Young Peoples Services,Head of Education and Skills,Transport,230009,Contract Hire,06/01/2021,3820787-695,546.00,PETERLEE EXECUTIVE CARS.
Children and Young Peoples Services,Head of Education and Skills,Transport,230034,Contract Hire,06/01/2021,3820787-692,"1,610.18",PETERLEE EXECUTIVE CARS.
Children and Young Peoples Services,Head of Education and Skills,Transport,230006,Contract Hire,06/01/2021,3820787-696,"1,988.00",PETERLEE EXECUTIVE CARS.
"Regeneration, Economy and Growth",Corporate Property and Land,Fees,901002,Professional services,06/01/2021,3820791-6571518,"2,208.00",PINSENT MASONS LLP.
Neighbourhoods and Climate Change,Technical Services CM0300,Third Party Payments,430100,Rendered by Private Contractors,06/01/2021,3820799-18501,"2,313.69",PRM FABRICATIONS LTD.
"Regeneration, Economy and Growth",Transport and Contracted Services,Third Party Payments,430109,Rendered by Private Contractors,06/01/2021,3820800-IN15842QTDC,"1,625.00",Q-FREE (BRISTOL) UK LTD.
Neighbourhoods and Climate Change,Technical Services CM0300,Third Party Payments,430100,Rendered by Private Contractors,06/01/2021,3820801-13003,"17,817.11",QUANTUM POWER CONNECTIONS LTD.
"Regeneration, Economy and Growth",Transport and Contracted Services,Third Party Payments,430106,Rendered by Private Contractors,06/01/2021,3820804-2113,"4,319.00",R COOPER T/A DC TAXIS.
"Regeneration, Economy and Growth",Development and Housing,Supplies and Services,336005,Advertising E336,06/01/2021,3820805-5417211,768.60,REACH PUBLISHING SERVICES LTD.*
Neighbourhoods and Climate Change,Environmental Services,Transport,210057,Repair and Maintenance of Vehicles,06/01/2021,3820809-750939,"1,651.83",RICKERBY LTD.
"Regeneration, Economy and Growth",Culture Sport and Tourism,Supplies and Services,304259,Equipment and Materials,06/01/2021,3820812-SI652760-1,695.00,RLSS UK ENTERPRISES LTD T/A LIFESAVERS DIRECT.
Adult and Health Services,Head of Adults,Third Party Payments,479140,Purchase of Care,06/01/2021,3820813-SUSTAINABILITYPAYMENT9/3,"19,077.44",ROSEBERRY CARE CENTRES GB LTD.
Resources BK0010,Finance & Transactional Services,Supplies and Services,340001,Postages E340,06/01/2021,3820814-9062034468,"8,191.27",ROYAL MAIL GROUP PLC.
Resources BK0010,Legal & Democratic Services,Supplies and Services,340001,Postages E340,06/01/2021,3820814-9062078869,516.04,ROYAL MAIL GROUP PLC.
Neighbourhoods and Climate Change,Environmental Services,Third Party Payments,430100,Rendered by Private Contractors,06/01/2021,3820819-55,"2,300.00",S & R LANDSCAPES.
Children and Young Peoples Services,Head of Education and Skills,Transport,230008,Contract Hire,06/01/2021,3820822-197,"1,708.00",SAM MONTAGUE T/A 8 SEATER TRAVEL.
Neighbourhoods and Climate Change,Technical Services CM0300,Third Party Payments,460224,Contract Payments,06/01/2021,3820826-22454,"265,486.23",SEYMOUR (CIVIL ENGINEERING CONTRACTORS) LTD.
Children and Young Peoples Services,Head of Education and Skills,Transport,230007,Contract Hire,06/01/2021,3820827-5275DEC20,"1,469.00",SHAUN MILLS T/A ASM TRAVEL.
Children and Young Peoples Services,Head of Education and Skills,Transport,230006,Contract Hire,06/01/2021,3820828-DEC20,"1,118.18",SHOEY`S TAXIS.
Adult and Health Services,Head of Adults,Third Party Payments,479140,Purchase of Care,06/01/2021,3820829-SUSTAINABILITYPAYMENT9/7,"19,955.16",SHOTLEY PARK HOMES FOR THE ELDERLY LTD.
Children and Young Peoples Services,Head of Education and Skills,Transport,230008,Contract Hire,06/01/2021,3820830-201204,"1,800.00",SHOTTON PRIVATE HIRE.
Children and Young Peoples Services,Head of Education and Skills,Transport,230008,Contract Hire,06/01/2021,3820830-201203,"2,027.50",SHOTTON PRIVATE HIRE.
Children and Young Peoples Services,Head of Education and Skills,Transport,230006,Contract Hire,06/01/2021,3820830-201212DEC20,"1,671.32",SHOTTON PRIVATE HIRE.
Children and Young Peoples Services,Head of Education and Skills,Transport,230008,Contract Hire,06/01/2021,3820830-201211,"2,081.80",SHOTTON PRIVATE HIRE.
Children and Young Peoples Services,Head of Education and Skills,Transport,230006,Contract Hire,06/01/2021,3820830-201201,561.00,SHOTTON PRIVATE HIRE.
Children and Young Peoples Services,Head of Education and Skills,Transport,230034,Contract Hire,06/01/2021,3820832-3114,"1,558.74",SIMONS TAXIS.
Children and Young Peoples Services,Head of Education and Skills,Transport,230006,Contract Hire,06/01/2021,3820832-3115,"1,305.36",SIMONS TAXIS.
Neighbourhoods and Climate Change,Environmental Services,Supplies and Services,338027,Professional services,06/01/2021,3820834-0000859173,987.50,SOCOTEC UK LTD.
Children and Young Peoples Services,Head of Childrens Social Care,Third Party Payments,425028,Rendered by Voluntary Organisations,06/01/2021,3820836-159,"20,640.00",SPORT WORKS LTD.
Adult and Health Services,Head of Adults,Third Party Payments,479140,Purchase of Care,06/01/2021,3820838-SUSTAINABILITYPAYMENT9/2,"29,212.33",ST PHILIPS CARE LTD.
Children and Young Peoples Services,Head of Education and Skills,Transport,230006,Contract Hire,06/01/2021,3820841-2103,"1,778.00",STEPHEN REED T/A STEVE`S TAXIS.
Children and Young Peoples Services,Head of Education and Skills,Transport,230007,Contract Hire,06/01/2021,3820842-00747,"1,028.95",STEPHEN VALLANCE T/A SELECT CABS.
Children and Young Peoples Services,Head of Education and Skills,Transport,230006,Contract Hire,06/01/2021,3820843-00137,693.42,STEVES TAXIS.
Adult and Health Services,Commissioning inc Supporting People,Transport,240045,Car allowances E240,06/01/2021,3820845-10837,"1,938.76",SUPPORTIVE SRC LTD.
Resources BK0010,Digital and Customer Services,Supplies and Services,304040,Equipment and Materials,06/01/2021,3820847-135276,823.11,SWITCHSHOP LTD.
Children and Young Peoples Services,Head of Education and Skills,Transport,230008,Contract Hire,06/01/2021,3820849-DCC/2020/61,946.56,TAYLOR`S TAXIS.
Neighbourhoods and Climate Change,Technical Services CM0300,Third Party Payments,460401,Contract Payments,06/01/2021,3820853-13634,927.50,TEESDALE MERCURY LTD.
Dedicated Schools Grant BG0015,DSG High Needs Block,Third Party Payments,440999,Other third party payments E440,06/01/2021,3820856-20007735,"1,437.80",THE GUIDE DOGS FOR THE BLIND ASSOCIATION.
Adult and Health Services,Head of Adults,Transport,230005,Contract Hire,06/01/2021,3820858-221,508.44,THE TAXI COMPANY (MURTON) LTD.
Children and Young Peoples Services,Head of Education and Skills,Transport,230010,Contract Hire,06/01/2021,3820859-BL027DEC20,"1,139.80",THOMAS GLEN.
Children and Young Peoples Services,Head of Education and Skills,Transport,230010,Contract Hire,06/01/2021,3820862-PR10002,683.00,TRAVEL 6.
Children and Young Peoples Services,Head of Education and Skills,Transport,230010,Contract Hire,06/01/2021,3820863-21-2020,"2,040.98",TREVOR GARDNER T/A TCG TAXIS.
Children and Young Peoples Services,Head of Education and Skills,Transport,230008,Contract Hire,06/01/2021,3820864-15DEC,"1,491.68",TRIDENT TAXIS.
Children and Young Peoples Services,Head of Education and Skills,Transport,230008,Contract Hire,06/01/2021,3820864-14DEC20,"1,483.44",TRIDENT TAXIS.
Neighbourhoods and Climate Change,Technical Services CM0300,Supplies and Services,304221,Equipment and Materials,06/01/2021,3820867-217697,743.30,TYNEDALE ROADSTONE LTD.
Neighbourhoods and Climate Change,Technical Services CM0300,Supplies and Services,304221,Equipment and Materials,06/01/2021,3820867-217706,723.50,TYNEDALE ROADSTONE LTD.
Neighbourhoods and Climate Change,Technical Services CM0300,Supplies and Services,304221,Equipment and Materials,06/01/2021,3820867-217713,880.72,TYNEDALE ROADSTONE LTD.
Neighbourhoods and Climate Change,Technical Services CM0300,Supplies and Services,304221,Equipment and Materials,06/01/2021,3820867-217789,629.45,TYNEDALE ROADSTONE LTD.
Neighbourhoods and Climate Change,Technical Services CM0300,Supplies and Services,304221,Equipment and Materials,06/01/2021,3820867-217793,855.17,TYNEDALE ROADSTONE LTD.
Adult and Health Services,Adults Excluded,Supplies and Services,338027,Professional services,06/01/2021,3820869-VB0015,"1,500.00",VANESSA BAINBRIDGE (CONSULTANT).
Neighbourhoods and Climate Change,Technical Services CM0300,Supplies and Services,304221,Equipment and Materials,06/01/2021,3820873-25027,533.60,WARD TIMBER LTD.
Children and Young Peoples Services,Head of Education and Skills,Transport,230007,Contract Hire,06/01/2021,3820875-0002809,560.00,WATSON OF SPENNYMOOR.
Children and Young Peoples Services,Head of Education and Skills,Transport,230008,Contract Hire,06/01/2021,3820875-0002808,"1,578.40",WATSON OF SPENNYMOOR.
Children and Young Peoples Services,Head of Education and Skills,Transport,230008,Contract Hire,06/01/2021,3820875-0002810,"1,792.00",WATSON OF SPENNYMOOR.
"Regeneration, Economy and Growth",Transport and Contracted Services,Third Party Payments,430106,Rendered by Private Contractors,06/01/2021,3820877-16283,"46,223.92",WEARDALE MOTOR SERVICES LTD.
"Regeneration, Economy and Growth",Transport and Contracted Services,Third Party Payments,430106,Rendered by Private Contractors,06/01/2021,3820877-16313,"39,947.70",WEARDALE MOTOR SERVICES LTD.
Children and Young Peoples Services,Head of Education and Skills,Transport,230008,Contract Hire,06/01/2021,3820878-7417,"2,436.68",WEARDALE PRIVATE HIRE.
Children and Young Peoples Services,Head of Education and Skills,Transport,230008,Contract Hire,06/01/2021,3820878-7405,"3,571.80",WEARDALE PRIVATE HIRE.
Children and Young Peoples Services,Head of Education and Skills,Transport,230010,Contract Hire,06/01/2021,3820878-7412,"1,232.00",WEARDALE PRIVATE HIRE.
Children and Young Peoples Services,Head of Education and Skills,Transport,230006,Contract Hire,06/01/2021,3820878-7388,743.40,WEARDALE PRIVATE HIRE.
Children and Young Peoples Services,Head of Education and Skills,Transport,230008,Contract Hire,06/01/2021,3820879-1539034,"1,148.00",WENDYS` TAXIS.
Children and Young Peoples Services,Head of Education and Skills,Transport,230010,Contract Hire,06/01/2021,3820880-1220,"1,015.75",WEST AUCKLAND TOWN TRAVEL (WATT).
Children and Young Peoples Services,Head of Education and Skills,Transport,230016,Contract Hire,06/01/2021,3820882-VR153,"1,075.36",WHITTONSTALL TAXIS SERVICE.
Children and Young Peoples Services,Head of Education and Skills,Supplies and Services,338045,Services,06/01/2021,3820884-INTERIM4,"1,615.00",WILLIAM J MARSHALL & PARTNERS.
Children and Young Peoples Services,Head of Education and Skills,Transport,230008,Contract Hire,06/01/2021,3820885-11,"2,330.72",WISS TAXIS.
Children and Young Peoples Services,Head of Education and Skills,Transport,230008,Contract Hire,06/01/2021,3820885-004DEC20,"1,708.00",WISS TAXIS.
Children and Young Peoples Services,Head of Education and Skills,Transport,230007,Contract Hire,07/01/2021,3820895-122002,793.00,24/7 TAXI SERVICES LTD.
Children and Young Peoples Services,Head of Education and Skills,Transport,230034,Contract Hire,07/01/2021,3820895-122001,"1,056.90",24/7 TAXI SERVICES LTD.
Children and Young Peoples Services,Head of Education and Skills,Transport,230008,Contract Hire,07/01/2021,3820895-112009,"1,302.00",24/7 TAXI SERVICES LTD.
Children and Young Peoples Services,Head of Education and Skills,Transport,230008,Contract Hire,07/01/2021,3820895-122004,"2,092.02",24/7 TAXI SERVICES LTD.
Children and Young Peoples Services,Head of Education and Skills,Transport,230008,Contract Hire,07/01/2021,3820895-122005,"1,601.04",24/7 TAXI SERVICES LTD.
Children and Young Peoples Services,Head of Education and Skills,Transport,230008,Contract Hire,07/01/2021,3820895-122006,"2,061.08",24/7 TAXI SERVICES LTD.
Children and Young Peoples Services,Head of Education and Skills,Transport,230008,Contract Hire,07/01/2021,3820895-122007,868.00,24/7 TAXI SERVICES LTD.
Children and Young Peoples Services,Head of Education and Skills,Transport,230008,Contract Hire,07/01/2021,3820895-112011,"2,769.27",24/7 TAXI SERVICES LTD.
Children and Young Peoples Services,Head of Education and Skills,Transport,230008,Contract Hire,07/01/2021,3820895-122009,"1,846.18",24/7 TAXI SERVICES LTD.
Children and Young Peoples Services,Head of Education and Skills,Transport,230034,Contract Hire,07/01/2021,3820895-122011,"1,834.00",24/7 TAXI SERVICES LTD.
Children and Young Peoples Services,Head of Education and Skills,Transport,230008,Contract Hire,07/01/2021,3820895-122010,"2,245.60",24/7 TAXI SERVICES LTD.
Children and Young Peoples Services,Head of Education and Skills,Transport,230008,Contract Hire,07/01/2021,3820895-122018,"2,128.00",24/7 TAXI SERVICES LTD.
Children and Young Peoples Services,Head of Education and Skills,Transport,230008,Contract Hire,07/01/2021,3820895-122012,"1,708.00",24/7 TAXI SERVICES LTD.
Children and Young Peoples Services,Head of Education and Skills,Transport,230008,Contract Hire,07/01/2021,3820895-122013,"1,288.00",24/7 TAXI SERVICES LTD.
Children and Young Peoples Services,Head of Education and Skills,Transport,230008,Contract Hire,07/01/2021,3820895-122019,"1,694.00",24/7 TAXI SERVICES LTD.
Children and Young Peoples Services,Head of Education and Skills,Transport,230006,Contract Hire,07/01/2021,3820895-112010,"1,313.00",24/7 TAXI SERVICES LTD.
Children and Young Peoples Services,Head of Education and Skills,Transport,230006,Contract Hire,07/01/2021,3820895-122008,707.00,24/7 TAXI SERVICES LTD.
Children and Young Peoples Services,Head of Education and Skills,Transport,230006,Contract Hire,07/01/2021,3820895-122015,"1,011.06",24/7 TAXI SERVICES LTD.
Children and Young Peoples Services,Head of Education and Skills,Transport,230006,Contract Hire,07/01/2021,3820895-122016,"1,898.00",24/7 TAXI SERVICES LTD.
Children and Young Peoples Services,Head of Education and Skills,Transport,230006,Contract Hire,07/01/2021,3820896-611,950.00,A BARKER.
Adult and Health Services,Head of Adults,Transport,230005,Contract Hire,07/01/2021,3820898-0040,"1,105.74",AIRPORT TAXIS 4U.
Children and Young Peoples Services,Head of Education and Skills,Transport,230006,Contract Hire,07/01/2021,3820899-F787/DEC,"1,212.00",ALANS TAXIS BARNARD CASTLE.
"Regeneration, Economy and Growth",Corporate Property and Land,Third Party Payments,430100,Rendered by Private Contractors,07/01/2021,3820902-SI18302,"10,000.00",AMBIC LTD.
"Regeneration, Economy and Growth",Corporate Property and Land,Third Party Payments,430100,Rendered by Private Contractors,07/01/2021,3820902-SI8360,"1,175.00",AMBIC LTD.
"Regeneration, Economy and Growth",Corporate Property and Land,Third Party Payments,430100,Rendered by Private Contractors,07/01/2021,3820902-SI18358,"2,250.00",AMBIC LTD.
Resources BK0010,Legal & Democratic Services,Supplies and Services,338042,Services,07/01/2021,3820903-159849-23DEC2020,700.00,ANDREW NIXON.*
Children and Young Peoples Services,Head of Education and Skills,Transport,230008,Contract Hire,07/01/2021,3820906-DEC2020-01,"1,023.12",ARMSTRONG`S TAXIS.
"Regeneration, Economy and Growth",Culture Sport and Tourism,Supplies and Services,384199,Miscellaneous Expenses,07/01/2021,3820908-SI-295,"2,250.00",ARTY INC.
Adult and Health Services,Head of Adults,Transport,230005,Contract Hire,07/01/2021,3820909-DCC5DEC20,"1,326.68",ATLAS TAXIS BISHOP AUCKLAND.
Adult and Health Services,Head of Adults,Transport,230005,Contract Hire,07/01/2021,3820909-DCC13DEC2020,"1,512.00",ATLAS TAXIS BISHOP AUCKLAND.
Children and Young Peoples Services,Head of Education and Skills,Transport,230008,Contract Hire,07/01/2021,3820909-DCC04DEC20,"1,790.00",ATLAS TAXIS BISHOP AUCKLAND.
Children and Young Peoples Services,Head of Education and Skills,Transport,230008,Contract Hire,07/01/2021,3820909-DCC03DEC20,"2,058.00",ATLAS TAXIS BISHOP AUCKLAND.
Children and Young Peoples Services,Head of Education and Skills,Transport,230008,Contract Hire,07/01/2021,3820909-DCC11DEC20,"2,008.00",ATLAS TAXIS BISHOP AUCKLAND.
Children and Young Peoples Services,Head of Education and Skills,Transport,230008,Contract Hire,07/01/2021,3820909-DCC7DEC20,"2,857.92",ATLAS TAXIS BISHOP AUCKLAND.
Children and Young Peoples Services,Head of Education and Skills,Transport,230008,Contract Hire,07/01/2021,3820909-DCC10DEC20,"2,828.00",ATLAS TAXIS BISHOP AUCKLAND.
Children and Young Peoples Services,Head of Education and Skills,Transport,230008,Contract Hire,07/01/2021,3820909-DCC9DEC20,"1,503.60",ATLAS TAXIS BISHOP AUCKLAND.
Children and Young Peoples Services,Head of Education and Skills,Transport,230007,Contract Hire,07/01/2021,3820910-04178,621.44,ATLAS TAXIS CONSETT.
"Regeneration, Economy and Growth",Culture Sport and Tourism,Supplies and Services,384302,Miscellaneous Expenses,07/01/2021,3820915-BEC-DFC-4100704057-04012021,600.00,BETHANY ELEN COYLE (MUSICIAN).
"Regeneration, Economy and Growth",Corporate Property and Land,Supplies and Services,384199,Miscellaneous Expenses,07/01/2021,3820916-39669,750.00,BGP CONSULTING LTD T/A BILLINGHURST GEORGE & PARTNERS.
Neighbourhoods and Climate Change,Technical Services CM0300,Third Party Payments,430100,Rendered by Private Contractors,07/01/2021,3820917-207R00808A,"1,483.30",BIFFA WASTE SERVICES LTD.
Neighbourhoods and Climate Change,Technical Services CM0300,Third Party Payments,430100,Rendered by Private Contractors,07/01/2021,3820917-207R00842A,713.30,BIFFA WASTE SERVICES LTD.
Neighbourhoods and Climate Change,Technical Services CM0300,Third Party Payments,430100,Rendered by Private Contractors,07/01/2021,3820917-207R00851A,"1,749.30",BIFFA WASTE SERVICES LTD.
Adult and Health Services,Head of Adults,Transport,230005,Contract Hire,07/01/2021,3820918-000326,"1,680.00",BIRDS TAXIS LTD.
Dedicated Schools Grant BG0015,DSG Early Years Block,Transfer Payments,510030,School Children,07/01/2021,3820919-TOPUPFUNDING-AUTUMN,"10,387.56",BISHOP CHADWICK CATHOLIC EDUCATION TRUST (NSCET).
Adult and Health Services,Head of Adults,Transport,230005,Contract Hire,07/01/2021,3820920-EAS1963/DEC,"1,210.00",BLACKHALL TAXIS.
"Regeneration, Economy and Growth",Culture Sport and Tourism,Premises,145023,Cleaning and Domestic Supplies,07/01/2021,3820923-22SI2265910,587.84,BRENNTAG UK LTD.
Children and Young Peoples Services,Head of Education and Skills,Transport,230008,Contract Hire,07/01/2021,3820924-BZ00358,"1,288.00",BREZ`S TAXIS.
Children and Young Peoples Services,Head of Education and Skills,Transport,230008,Contract Hire,07/01/2021,3820935-SS15,"1,605.57",CHIPPERS TAXIS.
Children and Young Peoples Services,Head of Education and Skills,Transport,230008,Contract Hire,07/01/2021,3820935-CW15,"1,230.80",CHIPPERS TAXIS.
Children and Young Peoples Services,Head of Education and Skills,Transport,230003,Contract Hire,07/01/2021,3820937-47160,"4,354.00",CHRISTOPHER JAMES GRIERSON T/A GRIERSONS COACHES.
Children and Young Peoples Services,Head of Education and Skills,Transport,230003,Contract Hire,07/01/2021,3820937-47161,"2,324.00",CHRISTOPHER JAMES GRIERSON T/A GRIERSONS COACHES.
Children and Young Peoples Services,Head of Education and Skills,Transport,230007,Contract Hire,07/01/2021,3820937-47162,"1,733.03",CHRISTOPHER JAMES GRIERSON T/A GRIERSONS COACHES.
Children and Young Peoples Services,Head of Education and Skills,Transport,230007,Contract Hire,07/01/2021,3820937-47165,"3,668.00",CHRISTOPHER JAMES GRIERSON T/A GRIERSONS COACHES.
Children and Young Peoples Services,Head of Education and Skills,Transport,230003,Contract Hire,07/01/2021,3820937-47166,"2,324.00",CHRISTOPHER JAMES GRIERSON T/A GRIERSONS COACHES.
Children and Young Peoples Services,Head of Education and Skills,Transport,230003,Contract Hire,07/01/2021,3820937-47167-2020,"2,254.00",CHRISTOPHER JAMES GRIERSON T/A GRIERSONS COACHES.
Children and Young Peoples Services,Head of Education and Skills,Transport,230003,Contract Hire,07/01/2021,3820937-47168,"2,394.00",CHRISTOPHER JAMES GRIERSON T/A GRIERSONS COACHES.
Children and Young Peoples Services,Head of Education and Skills,Transport,230003,Contract Hire,07/01/2021,3820937-47169,"1,890.00",CHRISTOPHER JAMES GRIERSON T/A GRIERSONS COACHES.
Children and Young Peoples Services,Head of Education and Skills,Transport,230008,Contract Hire,07/01/2021,3820940-E031-KC1120,"3,452.39",CJ`S EXECUTIVE TRAVEL LTD.
Neighbourhoods and Climate Change,Partnerships & Community Engagement Div.,Supplies and Services,308011,Furniture,07/01/2021,3820947-WEV003,"2,250.00",COUNTY DURHAM FURNITURE HELP SCHEME (CDFHS).
Children and Young Peoples Services,Head of Education and Skills,Transport,230034,Contract Hire,07/01/2021,3820950-SEDGE311220,658.00,D IRVING T/A BJ TAXIS.
"Regeneration, Economy and Growth",Transport and Contracted Services,Supplies and Services,342053,Computers and Communications,07/01/2021,3820951-2310,"12,868.75",DATA IMAGES SOFTWARE SOLUTIONS LTD.
Children and Young Peoples Services,Head of Education and Skills,Transport,230008,Contract Hire,07/01/2021,3820952-B10,"1,438.92",DAVID FOREMAN T/A DAVES TAXIS.
Children and Young Peoples Services,Head of Education and Skills,Transport,230008,Contract Hire,07/01/2021,3820952-B4,"1,713.26",DAVID FOREMAN T/A DAVES TAXIS.
Children and Young Peoples Services,Head of Education and Skills,Transport,230008,Contract Hire,07/01/2021,3820952-B12,"1,555.40",DAVID FOREMAN T/A DAVES TAXIS.
Children and Young Peoples Services,Head of Education and Skills,Transport,230008,Contract Hire,07/01/2021,3820952-B5,"1,854.70",DAVID FOREMAN T/A DAVES TAXIS.
Children and Young Peoples Services,Head of Education and Skills,Transport,230008,Contract Hire,07/01/2021,3820952-B8,"2,291.10",DAVID FOREMAN T/A DAVES TAXIS.
Resources BK0010,Legal & Democratic Services,Supplies and Services,338042,Services,07/01/2021,3820955-362387/INVGHE235,800.00,DERE STREET BARRISTERS.
Children and Young Peoples Services,Head of Education and Skills,Transport,230008,Contract Hire,07/01/2021,3820956-015,"2,075.50",DEXTERS PRIVATE HIRE.
"Regeneration, Economy and Growth",Corporate Property and Land,Third Party Payments,430100,Rendered by Private Contractors,07/01/2021,3820958-11097,660.00,DUNELM GEOTECHNICAL & ENVIRONMENTAL LTD.
Children and Young Peoples Services,Head of Education and Skills,Supplies and Services,384199,Miscellaneous Expenses,07/01/2021,3820960-2168,"3,971.67",DURHAM CATHEDRAL LTD.
Neighbourhoods and Climate Change,Environmental Services,Transport,230005,Contract Hire,07/01/2021,3820966-8166740,595.72,ENTERPRISE FLEX-E-RENT T/A BURNT TREE GROUP LTD.
Neighbourhoods and Climate Change,Environmental Services,Transport,230005,Contract Hire,07/01/2021,3820966-8166759,"1,152.86",ENTERPRISE FLEX-E-RENT T/A BURNT TREE GROUP LTD.
Neighbourhoods and Climate Change,Environmental Services,Transport,230005,Contract Hire,07/01/2021,3820966-8166760,"1,152.86",ENTERPRISE FLEX-E-RENT T/A BURNT TREE GROUP LTD.
"Regeneration, Economy and Growth",Culture Sport and Tourism,Supplies and Services,384199,Miscellaneous Expenses,07/01/2021,3820971-120340,"1,000.00",FORESIGHT FACTORY INTERNATIONAL LTD.
Children and Young Peoples Services,Head of Education and Skills,Supplies and Services,338045,Services,07/01/2021,3820973-218741,"1,369.00",FREETHS LLP.
Children and Young Peoples Services,Head of Education and Skills,Transport,230007,Contract Hire,07/01/2021,3820975-22590/4034,"2,017.68",GARNETTS LTD (COACHES).
Children and Young Peoples Services,Head of Education and Skills,Transport,230007,Contract Hire,07/01/2021,3820975-22590/4035,"1,788.92",GARNETTS LTD (COACHES).
Children and Young Peoples Services,Head of Education and Skills,Transport,230007,Contract Hire,07/01/2021,3820975-22590/4036,"2,017.68",GARNETTS LTD (COACHES).
Children and Young Peoples Services,Head of Education and Skills,Transport,230007,Contract Hire,07/01/2021,3820975-22590/4037,"3,494.12",GARNETTS LTD (COACHES).
Children and Young Peoples Services,Head of Education and Skills,Transport,230007,Contract Hire,07/01/2021,3820975-22590/4038,"1,872.92",GARNETTS LTD (COACHES).
Children and Young Peoples Services,Head of Education and Skills,Transport,230003,Contract Hire,07/01/2021,3820975-22592/3301,"2,590.00",GARNETTS LTD (COACHES).
Children and Young Peoples Services,Head of Education and Skills,Transport,230003,Contract Hire,07/01/2021,3820975-22592/3302,"2,590.00",GARNETTS LTD (COACHES).
Children and Young Peoples Services,Head of Education and Skills,Transport,230007,Contract Hire,07/01/2021,3820975-22595,"2,170.00",GARNETTS LTD (COACHES).
Children and Young Peoples Services,Head of Education and Skills,Transport,230007,Contract Hire,07/01/2021,3820975-22591/3029,"2,086.00",GARNETTS LTD (COACHES).
Children and Young Peoples Services,Head of Education and Skills,Transport,230007,Contract Hire,07/01/2021,3820975-22591/3199,"1,988.00",GARNETTS LTD (COACHES).
Children and Young Peoples Services,Head of Education and Skills,Transport,230003,Contract Hire,07/01/2021,3820975-22591/3020,"2,100.00",GARNETTS LTD (COACHES).
Children and Young Peoples Services,Head of Education and Skills,Transport,230003,Contract Hire,07/01/2021,3820975-22591/3024,"1,750.00",GARNETTS LTD (COACHES).
Children and Young Peoples Services,Head of Education and Skills,Transport,230003,Contract Hire,07/01/2021,3820975-22591/3027,"1,862.00",GARNETTS LTD (COACHES).
Children and Young Peoples Services,Head of Education and Skills,Transport,230003,Contract Hire,07/01/2021,3820975-22591/3028,"2,030.00",GARNETTS LTD (COACHES).
Children and Young Peoples Services,Head of Education and Skills,Transport,230007,Contract Hire,07/01/2021,3820975-22589/3007,"1,684.67",GARNETTS LTD (COACHES).
Children and Young Peoples Services,Head of Education and Skills,Transport,230007,Contract Hire,07/01/2021,3820975-22589/3435,"2,340.00",GARNETTS LTD (COACHES).
Children and Young Peoples Services,Head of Education and Skills,Transport,230007,Contract Hire,07/01/2021,3820975-22594,"4,606.00",GARNETTS LTD (COACHES).
Children and Young Peoples Services,Head of Education and Skills,Transport,230007,Contract Hire,07/01/2021,3820975-22596/4227,"2,590.00",GARNETTS LTD (COACHES).
Children and Young Peoples Services,Head of Education and Skills,Transport,230007,Contract Hire,07/01/2021,3820975-22596/4404,"10,640.00",GARNETTS LTD (COACHES).
Children and Young Peoples Services,Head of Education and Skills,Transport,230007,Contract Hire,07/01/2021,3820975-22587,"3,315.00",GARNETTS LTD (COACHES).
Children and Young Peoples Services,Head of Education and Skills,Transport,230003,Contract Hire,07/01/2021,3820975-22592/3303,"2,590.00",GARNETTS LTD (COACHES).
Children and Young Peoples Services,Head of Education and Skills,Transport,230007,Contract Hire,07/01/2021,3820975-22588,"3,263.00",GARNETTS LTD (COACHES).
Children and Young Peoples Services,Head of Education and Skills,Transport,230003,Contract Hire,07/01/2021,3820975-22593/3004,"2,210.00",GARNETTS LTD (COACHES).
Children and Young Peoples Services,Head of Education and Skills,Transport,230003,Contract Hire,07/01/2021,3820975-22593/3005,"4,030.00",GARNETTS LTD (COACHES).
Children and Young Peoples Services,Head of Education and Skills,Transport,230003,Contract Hire,07/01/2021,3820975-22593/3203,"2,145.00",GARNETTS LTD (COACHES).
Children and Young Peoples Services,Head of Education and Skills,Transport,230003,Contract Hire,07/01/2021,3820975-22593/3223,"4,290.00",GARNETTS LTD (COACHES).
Children and Young Peoples Services,Head of Education and Skills,Transport,230003,Contract Hire,07/01/2021,3820975-22593/3262,"2,509.00",GARNETTS LTD (COACHES).
Children and Young Peoples Services,Head of Education and Skills,Transport,230003,Contract Hire,07/01/2021,3820975-22593/3333,"2,262.00",GARNETTS LTD (COACHES).
Children and Young Peoples Services,Head of Education and Skills,Transport,230003,Contract Hire,07/01/2021,3820975-25593/3008,"2,275.00",GARNETTS LTD (COACHES).
Children and Young Peoples Services,Head of Education and Skills,Transport,230008,Contract Hire,07/01/2021,3820975-22597/S011,"2,261.00",GARNETTS LTD (COACHES).
Children and Young Peoples Services,Head of Education and Skills,Transport,230008,Contract Hire,07/01/2021,3820975-22597/W099,"2,618.00",GARNETTS LTD (COACHES).
Children and Young Peoples Services,Head of Education and Skills,Transport,230006,Contract Hire,07/01/2021,3820976-13300/3,"1,988.00",GATESHEAD CENTRAL TAXIS LTD.
Children and Young Peoples Services,Head of Education and Skills,Transport,230008,Contract Hire,07/01/2021,3820976-13300,"2,380.00",GATESHEAD CENTRAL TAXIS LTD.
Children and Young Peoples Services,Head of Education and Skills,Transport,230008,Contract Hire,07/01/2021,3820976-13300/1,"2,604.00",GATESHEAD CENTRAL TAXIS LTD.
Children and Young Peoples Services,Head of Education and Skills,Transport,230008,Contract Hire,07/01/2021,3820976-13300/5,"1,929.20",GATESHEAD CENTRAL TAXIS LTD.
Children and Young Peoples Services,Head of Education and Skills,Transport,230008,Contract Hire,07/01/2021,3820976-13300/6,"2,716.00",GATESHEAD CENTRAL TAXIS LTD.
Children and Young Peoples Services,Head of Education and Skills,Transport,230016,Contract Hire,07/01/2021,3820976-13300/4,"2,940.00",GATESHEAD CENTRAL TAXIS LTD.
Children and Young Peoples Services,Head of Education and Skills,Transport,230008,Contract Hire,07/01/2021,3820976-13300/2,"1,932.00",GATESHEAD CENTRAL TAXIS LTD.
Children and Young Peoples Services,Head of Education and Skills,Transport,230006,Contract Hire,07/01/2021,3820981-004/F711,783.00,GUY`S TAXIS.
Children and Young Peoples Services,Head of Education and Skills,Transport,230006,Contract Hire,07/01/2021,3820981-004/F782,504.00,GUY`S TAXIS.
Adult and Health Services,Head of Adults,Transport,230005,Contract Hire,07/01/2021,3820989-IR2011012,614.25,I & R EXECUTIVE TRAVEL.
Adult and Health Services,Head of Adults,Transport,230005,Contract Hire,07/01/2021,3820989-IR2012004/2003,"1,702.00",I & R EXECUTIVE TRAVEL.
Adult and Health Services,Head of Adults,Transport,230005,Contract Hire,07/01/2021,3820989-IR2012005,714.00,I & R EXECUTIVE TRAVEL.
Children and Young Peoples Services,Head of Education and Skills,Transport,230008,Contract Hire,07/01/2021,3820989-IR2012002-DEC,"1,905.84",I & R EXECUTIVE TRAVEL.
Children and Young Peoples Services,Head of Education and Skills,Transport,230016,Contract Hire,07/01/2021,3820989-IR2011002-DEC,"1,438.92",I & R EXECUTIVE TRAVEL.
Neighbourhoods and Climate Change,Environmental Services,Supplies and Services,304221,Equipment and Materials,07/01/2021,3820992-18671,"1,903.00",J & B FARNABY LTD.
Neighbourhoods and Climate Change,Technical Services CM0300,Construction work A908,908105,Construction work,07/01/2021,3820994-24877,571.86,JACK COUPE & SONS LTD T/A COUPE LINE.
Children and Young Peoples Services,Head of Education and Skills,Transport,230006,Contract Hire,07/01/2021,3820995-0785,"1,358.00",JACKSON`S TAXI.
Children and Young Peoples Services,Head of Education and Skills,Transport,230008,Contract Hire,07/01/2021,3820995-0788,"1,337.00",JACKSON`S TAXI.
Children and Young Peoples Services,Head of Education and Skills,Transport,230008,Contract Hire,07/01/2021,3820995-0787,"1,558.06",JACKSON`S TAXI.
Children and Young Peoples Services,Head of Education and Skills,Transport,230008,Contract Hire,07/01/2021,3820995-0786,"1,686.60",JACKSON`S TAXI.
Children and Young Peoples Services,Head of Education and Skills,Transport,230034,Contract Hire,07/01/2021,3820997-65-DEC,"1,680.00",JAYS TAXIS/JOHN GARLAND (TAXIS).
Children and Young Peoples Services,Head of Education and Skills,Transport,230008,Contract Hire,07/01/2021,3820997-66/DEC,"1,120.00",JAYS TAXIS/JOHN GARLAND (TAXIS).
Children and Young Peoples Services,Head of Education and Skills,Transport,230008,Contract Hire,07/01/2021,3820997-68,"2,240.00",JAYS TAXIS/JOHN GARLAND (TAXIS).
Children and Young Peoples Services,Head of Education and Skills,Transport,230016,Contract Hire,07/01/2021,3820997-69,"1,410.00",JAYS TAXIS/JOHN GARLAND (TAXIS).
Children and Young Peoples Services,Head of Education and Skills,Transport,230008,Contract Hire,07/01/2021,3820997-67,"1,680.00",JAYS TAXIS/JOHN GARLAND (TAXIS).
Adult and Health Services,Head of Adults,Transport,230005,Contract Hire,07/01/2021,3820998-1957-DEC,"2,331.00",JDS PRIVATE HIRE DURHAM.
Children and Young Peoples Services,Head of Education and Skills,Transport,230034,Contract Hire,07/01/2021,3820999-18/12/2020G,963.00,JL EBDON. T/A DIAL-A-CAB.
Children and Young Peoples Services,Head of Education and Skills,Transport,230008,Contract Hire,07/01/2021,3820999-18/12/2020H,"1,828.16",JL EBDON. T/A DIAL-A-CAB.
Children and Young Peoples Services,Head of Education and Skills,Transport,230008,Contract Hire,07/01/2021,3820999-12/12/2020A,"1,421.00",JL EBDON. T/A DIAL-A-CAB.
Children and Young Peoples Services,Head of Education and Skills,Transport,230008,Contract Hire,07/01/2021,3820999-18/12/2020B,"2,013.20",JL EBDON. T/A DIAL-A-CAB.
Children and Young Peoples Services,Head of Education and Skills,Transport,230008,Contract Hire,07/01/2021,3820999-18/12/2020C,"1,988.00",JL EBDON. T/A DIAL-A-CAB.
Children and Young Peoples Services,Head of Education and Skills,Transport,230006,Contract Hire,07/01/2021,3821001-F80109,672.75,JOVIAL PRIVATE HIRE.
"Regeneration, Economy and Growth",Corporate Property and Land,Supplies and Services,304221,Equipment and Materials,07/01/2021,3821003-0113/00254721,"2,965.93",JT DOVE LTD.
"Regeneration, Economy and Growth",Corporate Property and Land,Supplies and Services,304221,Equipment and Materials,07/01/2021,3821003-0113/00255381,"2,086.25",JT DOVE LTD.
Children and Young Peoples Services,Head of Education and Skills,Transport,230007,Contract Hire,07/01/2021,3821004-2154,655.00,KEN HINDS.
Children and Young Peoples Services,Head of Education and Skills,Transport,230008,Contract Hire,07/01/2021,3821008-004-DEC2,"1,134.00",KULDEEP MAHIL T/A KOLARS CAB.
Adult and Health Services,Head of Adults,Transport,230005,Contract Hire,07/01/2021,3821011-1863,"1,487.60",LD TAXIS.
Children and Young Peoples Services,Head of Education and Skills,Transport,230034,Contract Hire,07/01/2021,3821011-1861,910.00,LD TAXIS.
Children and Young Peoples Services,Head of Education and Skills,Transport,230006,Contract Hire,07/01/2021,3821011-F788/DECEMBER,572.00,LD TAXIS.
Children and Young Peoples Services,Head of Education and Skills,Transport,230008,Contract Hire,07/01/2021,3821011-1862,"1,522.92",LD TAXIS.
Children and Young Peoples Services,Head of Education and Skills,Transport,230008,Contract Hire,07/01/2021,3821011-1864,"1,326.00",LD TAXIS.
Children and Young Peoples Services,Head of Education and Skills,Transport,230008,Contract Hire,07/01/2021,3821011-1866,656.00,LD TAXIS.
Children and Young Peoples Services,Head of Education and Skills,Transport,230006,Contract Hire,07/01/2021,3821011-1867,714.00,LD TAXIS.
Children and Young Peoples Services,Head of Childrens Social Care,Supplies and Services,338044,Services,07/01/2021,3821014-181298,565.00,LEXTOX.
Children and Young Peoples Services,Head of Childrens Social Care,Supplies and Services,338044,Services,07/01/2021,3821014-181382,848.00,LEXTOX.
Children and Young Peoples Services,Head of Childrens Social Care,Supplies and Services,338044,Services,07/01/2021,3821014-188242,"1,115.00",LEXTOX.
Children and Young Peoples Services,Head of Childrens Social Care,Supplies and Services,338044,Services,07/01/2021,3821014-188335,740.00,LEXTOX.
Children and Young Peoples Services,Head of Education and Skills,Supplies and Services,384199,Miscellaneous Expenses,07/01/2021,3821015-111,"3,150.00",LK HEALTH & WELLBEING.
Neighbourhoods and Climate Change,Environmental Services,Construction work A908,908105,Construction work,07/01/2021,3821017-124812,"4,950.00",LUCION ENVIRONMENTAL LLP LTD.
Children and Young Peoples Services,Head of Education and Skills,Construction work A908,908105,Construction work,07/01/2021,3821017-125530,"1,950.00",LUCION ENVIRONMENTAL LLP LTD.
Children and Young Peoples Services,Head of Education and Skills,Transport,230008,Contract Hire,07/01/2021,3821020-10/W094,"1,700.00",MARK SUMMERS T/A MARK`S TAXI.
Children and Young Peoples Services,Head of Education and Skills,Transport,230008,Contract Hire,07/01/2021,3821020-11/W094,"1,190.00",MARK SUMMERS T/A MARK`S TAXI.
Children and Young Peoples Services,Head of Education and Skills,Transport,230006,Contract Hire,07/01/2021,3821027-CEW83,924.00,MOOR PRIVATE HIRE.
"Regeneration, Economy and Growth",Development and Housing,Supplies and Services,384999,Miscellaneous Expenses,07/01/2021,3821028-62JOHNSTREET,800.00,REDACTED - PAYMENT TO INDIVIDUAL
Children and Young Peoples Services,Head of Education and Skills,Transport,230008,Contract Hire,07/01/2021,3821029-W174/04,"2,768.00",MR DANIEL HUTCHINSON T/A ALPHACABS.
Children and Young Peoples Services,Head of Education and Skills,Transport,230007,Contract Hire,07/01/2021,3821030-191,588.00,MR DAVID CULLEN T/A JED`S TAXIS.
Children and Young Peoples Services,Head of Education and Skills,Transport,230007,Contract Hire,07/01/2021,3821031-212,"1,155.00",MR GS ANDERSON.
Children and Young Peoples Services,Head of Education and Skills,Transport,230008,Contract Hire,07/01/2021,3821031-211,"1,118.88",MR GS ANDERSON.
Children and Young Peoples Services,Head of Education and Skills,Transport,230008,Contract Hire,07/01/2021,3821034-3148,"3,309.46",MR S BOWERS T/A DH7 TAXIS.
Children and Young Peoples Services,Head of Education and Skills,Transport,230008,Contract Hire,07/01/2021,3821034-3147,"1,651.00",MR S BOWERS T/A DH7 TAXIS.
Children and Young Peoples Services,Head of Education and Skills,Transport,230034,Contract Hire,07/01/2021,3821035-12-20-5283,938.00,MR S DOCKERY T/A SEAN'S TAXIS.
Resources BK0010,Legal & Democratic Services,Supplies and Services,338101,Services,07/01/2021,3821040-3010015190,"14,027.90",NEWCASTLE UPON TYNE HOSPITALS NHS FOUNDATION TRUST.
Neighbourhoods and Climate Change,Technical Services CM0300,Fees,901004,Capital - Detailed Design,07/01/2021,3821041-35314575,618.44,NEWSQUEST (YORKSHIRE & NORTH EAST) LTD.
"Regeneration, Economy and Growth",Transport and Contracted Services,Supplies and Services,336005,Advertising E336,07/01/2021,3821041-35314139,788.97,NEWSQUEST (YORKSHIRE & NORTH EAST) LTD.
"Regeneration, Economy and Growth",Development and Housing,Supplies and Services,340001,Postages E340,07/01/2021,3821042-7032600141,"7,528.39",NHS DDES CCG.
Children and Young Peoples Services,Head of Education and Skills,Transport,230007,Contract Hire,07/01/2021,3821046-6640,"2,382.25",NORTH EAST COACHWAYS LTD.
Adult and Health Services,Public Health CC0450,Third Party Payments,460803,Contract Payments,07/01/2021,3821052-7510390424,"24,318.00",NORTHUMBRIA HEALTHCARE NHS FOUNDATION TRUST.
Neighbourhoods and Climate Change,Environmental Services,Third Party Payments,430100,Rendered by Private Contractors,07/01/2021,3821056-01075,640.00,PAUL TIERNEY.
Neighbourhoods and Climate Change,Environmental Services,Third Party Payments,430100,Rendered by Private Contractors,07/01/2021,3821056-01074,616.00,PAUL TIERNEY.
Children and Young Peoples Services,Head of Education and Skills,Transport,230008,Contract Hire,07/01/2021,3821057-DCC333,"1,380.80",PAUL`S TAXIS..
Neighbourhoods and Climate Change,Technical Services CM0300,Third Party Payments,430100,Rendered by Private Contractors,07/01/2021,3821059-6051,"31,520.88",PINKNEY BUILDING CONTRACTORS LTD.
Neighbourhoods and Climate Change,Technical Services CM0300,Third Party Payments,430100,Rendered by Private Contractors,07/01/2021,3821059-6056REVISED,"2,477.02",PINKNEY BUILDING CONTRACTORS LTD.
"Regeneration, Economy and Growth",Corporate Property and Land,Supplies and Services,304221,Equipment and Materials,07/01/2021,3821070-0000057915,"4,544.80",RINNAI UK LTD.
Children and Young Peoples Services,Head of Education and Skills,Transport,230012,Contract Hire,07/01/2021,3821071-336,"1,420.86",ROBBIE`S PRIVATE HIRE.
Children and Young Peoples Services,Head of Education and Skills,Transport,230012,Contract Hire,07/01/2021,3821071-341,947.24,ROBBIE`S PRIVATE HIRE.
Children and Young Peoples Services,Head of Education and Skills,Transport,230008,Contract Hire,07/01/2021,3821071-335,"1,624.42",ROBBIE`S PRIVATE HIRE.
Children and Young Peoples Services,Head of Education and Skills,Transport,230008,Contract Hire,07/01/2021,3821071-343,"1,038.52",ROBBIE`S PRIVATE HIRE.
Children and Young Peoples Services,Head of Education and Skills,Transport,230008,Contract Hire,07/01/2021,3821071-334,"1,443.12",ROBBIE`S PRIVATE HIRE.
Children and Young Peoples Services,Head of Education and Skills,Transport,230008,Contract Hire,07/01/2021,3821071-337,629.37,ROBBIE`S PRIVATE HIRE.
Children and Young Peoples Services,Head of Education and Skills,Transport,230008,Contract Hire,07/01/2021,3821071-339,962.08,ROBBIE`S PRIVATE HIRE.
Children and Young Peoples Services,Head of Education and Skills,Transport,230008,Contract Hire,07/01/2021,3821071-342,503.58,ROBBIE`S PRIVATE HIRE.
Adult and Health Services,Head of Adults,Transport,230005,Contract Hire,07/01/2021,3821073-1836,"1,041.66",RON`S TAXIS (FISHBURN).
Children and Young Peoples Services,Head of Education and Skills,Transport,230008,Contract Hire,07/01/2021,3821073-1837,"1,428.00",RON`S TAXIS (FISHBURN).
Children and Young Peoples Services,Head of Education and Skills,Transport,230008,Contract Hire,07/01/2021,3821073-1838,"2,154.60",RON`S TAXIS (FISHBURN).
Children and Young Peoples Services,Head of Education and Skills,Transport,230008,Contract Hire,07/01/2021,3821072-15,"1,890.00",RONS TAXI (CHESTER LE ST).
Children and Young Peoples Services,Head of Education and Skills,Transport,230003,Contract Hire,07/01/2021,3821074-ROXDCC223,"1,904.00",ROXBYS BUS HIRE.
Children and Young Peoples Services,Head of Education and Skills,Transport,230003,Contract Hire,07/01/2021,3821074-ROXDCC224,"6,105.40",ROXBYS BUS HIRE.
"Regeneration, Economy and Growth",Corporate Property and Land,Supplies and Services,384199,Miscellaneous Expenses,07/01/2021,3821075-TEC561713,"3,374.00",RPS CONSULTING SERVICES LTD.
"Regeneration, Economy and Growth",Corporate Property and Land,Fees,901002,Professional services,07/01/2021,3821075-TEC561710,"31,026.00",RPS CONSULTING SERVICES LTD.
"Regeneration, Economy and Growth",Business Durham CL0850,Premises,108099,Service Repairs and Maintenance,07/01/2021,3821079-12931,696.00,SAFEGUARD SECURITY (NE) LTD.
Children and Young Peoples Services,Head of Early Help Inclusion & Vulnerable Children.,Supplies and Services,342053,Computers and Communications,07/01/2021,3821083-0033603010,"3,800.00",SERVELEC LTD.
Children and Young Peoples Services,Head of Education and Skills,Transport,230006,Contract Hire,07/01/2021,3821084-201213,832.00,SHOTTON PRIVATE HIRE.
Children and Young Peoples Services,Head of Education and Skills,Transport,230006,Contract Hire,07/01/2021,3821084-6008A,738.00,SHOTTON PRIVATE HIRE.
Neighbourhoods and Climate Change,Technical Services CM0300,Stock A926,926900,Stock in hand-Inventory system,07/01/2021,3821092-SI21000004,606.00,SOLON SECURITY LTD.
Children and Young Peoples Services,Head of Education and Skills,Transport,230034,Contract Hire,07/01/2021,3821095-05510,938.00,STANLEY TRAVEL (NORTH EAST) LTD.
Children and Young Peoples Services,Head of Education and Skills,Transport,230009,Contract Hire,07/01/2021,3821095-05498,"1,691.85",STANLEY TRAVEL (NORTH EAST) LTD.
Children and Young Peoples Services,Head of Education and Skills,Transport,230007,Contract Hire,07/01/2021,3821095-05497,786.52,STANLEY TRAVEL (NORTH EAST) LTD.
Children and Young Peoples Services,Head of Education and Skills,Transport,230013,Contract Hire,07/01/2021,3821095-05513,851.20,STANLEY TRAVEL (NORTH EAST) LTD.
Children and Young Peoples Services,Head of Education and Skills,Transport,230003,Contract Hire,07/01/2021,3821095-56240,"7,224.00",STANLEY TRAVEL (NORTH EAST) LTD.
Children and Young Peoples Services,Head of Education and Skills,Transport,230035,Contract Hire,07/01/2021,3821095-05511,"1,412.60",STANLEY TRAVEL (NORTH EAST) LTD.
Children and Young Peoples Services,Head of Education and Skills,Transport,230007,Contract Hire,07/01/2021,3821095-05496,"2,389.80",STANLEY TRAVEL (NORTH EAST) LTD.
Children and Young Peoples Services,Head of Education and Skills,Transport,230008,Contract Hire,07/01/2021,3821095-05508,"1,342.00",STANLEY TRAVEL (NORTH EAST) LTD.
Children and Young Peoples Services,Head of Education and Skills,Transport,230008,Contract Hire,07/01/2021,3821095-05499,854.00,STANLEY TRAVEL (NORTH EAST) LTD.
Children and Young Peoples Services,Head of Education and Skills,Transport,230008,Contract Hire,07/01/2021,3821095-05500,"1,414.00",STANLEY TRAVEL (NORTH EAST) LTD.
Children and Young Peoples Services,Head of Education and Skills,Transport,230008,Contract Hire,07/01/2021,3821095-05501,"1,627.56",STANLEY TRAVEL (NORTH EAST) LTD.
Children and Young Peoples Services,Head of Education and Skills,Transport,230008,Contract Hire,07/01/2021,3821095-05506,784.00,STANLEY TRAVEL (NORTH EAST) LTD.
Children and Young Peoples Services,Head of Education and Skills,Transport,230031,Contract Hire,07/01/2021,3821095-05504,"2,250.22",STANLEY TRAVEL (NORTH EAST) LTD.
Children and Young Peoples Services,Head of Education and Skills,Transport,230008,Contract Hire,07/01/2021,3821095-05507,"1,110.22",STANLEY TRAVEL (NORTH EAST) LTD.
Children and Young Peoples Services,Head of Education and Skills,Transport,230008,Contract Hire,07/01/2021,3821095-05512,"1,881.08",STANLEY TRAVEL (NORTH EAST) LTD.
Children and Young Peoples Services,Head of Education and Skills,Transport,230008,Contract Hire,07/01/2021,3821095-05505,"3,223.56",STANLEY TRAVEL (NORTH EAST) LTD.
Children and Young Peoples Services,Head of Education and Skills,Transport,230010,Contract Hire,07/01/2021,3821095-05514,"1,279.70",STANLEY TRAVEL (NORTH EAST) LTD.
Dedicated Schools Grant BG0015,DSG High Needs Block,Transport,230009,Contract Hire,07/01/2021,3821095-05502,812.00,STANLEY TRAVEL (NORTH EAST) LTD.
Neighbourhoods and Climate Change,Technical Services CM0300,Third Party Payments,430100,Rendered by Private Contractors,07/01/2021,3821096-15730,"2,072.00",STEADFAST SECURITY SOLUTIONS LTD.
"Regeneration, Economy and Growth",Corporate Property and Land,Third Party Payments,430100,Rendered by Private Contractors,07/01/2021,3821100-180533,557.00,SUPATINT LTD T/A SUPATINT WINDOW FILMS & BLINDS.
"Regeneration, Economy and Growth",Corporate Property and Land,Supplies and Services,304221,Equipment and Materials,07/01/2021,3821101-509519,510.00,T CROSSLING & CO LTD.
Children and Young Peoples Services,Head of Education and Skills,Supplies and Services,336005,Advertising E336,07/01/2021,3821104-INVTES00167886,759.05,TES GLOBAL LTD.
Neighbourhoods and Climate Change,Environmental Services,Construction work A908,908105,Construction work,07/01/2021,3821105-D6764,"2,235.00",TGA CONSULTING ENGINEERS LLP.
Adult and Health Services,Head of Adults,Transport,230005,Contract Hire,07/01/2021,3821113-0002203,"3,344.00",TONY RIDLEY T/A COLORS TAXIS LTD.
Children and Young Peoples Services,Head of Education and Skills,Transport,230008,Contract Hire,07/01/2021,3821113-0002202,"1,708.00",TONY RIDLEY T/A COLORS TAXIS LTD.
Children and Young Peoples Services,Head of Education and Skills,Transport,230006,Contract Hire,07/01/2021,3821113-0002204,"1,218.00",TONY RIDLEY T/A COLORS TAXIS LTD.
Children and Young Peoples Services,Head of Education and Skills,Transport,230008,Contract Hire,07/01/2021,3821113-0002200,"2,996.00",TONY RIDLEY T/A COLORS TAXIS LTD.
Children and Young Peoples Services,Head of Education and Skills,Transport,230008,Contract Hire,07/01/2021,3821113-0002201,"1,358.00",TONY RIDLEY T/A COLORS TAXIS LTD.
Children and Young Peoples Services,Head of Education and Skills,Transport,230012,Contract Hire,07/01/2021,3821114-88-2020,"1,570.58",TONYS TAXIS (A BIRCH).
Children and Young Peoples Services,Head of Education and Skills,Transport,230006,Contract Hire,07/01/2021,3821114-81-2020,"3,209.11",TONYS TAXIS (A BIRCH).
Resources BK0010,Legal & Democratic Services,Supplies and Services,338042,Services,07/01/2021,3821116-285217/INVEM44,500.00,TRINITY CHAMBERS.
Resources BK0010,Legal & Democratic Services,Supplies and Services,338042,Services,07/01/2021,3821116-285217/INVTS468,850.00,TRINITY CHAMBERS.
Resources BK0010,Legal & Democratic Services,Supplies and Services,338042,Services,07/01/2021,3821116-285437/INVGR295,500.00,TRINITY CHAMBERS.
Resources BK0010,Legal & Democratic Services,Supplies and Services,338042,Services,07/01/2021,3821116-286035/INVGR294,500.00,TRINITY CHAMBERS.
"Regeneration, Economy and Growth",Transport and Contracted Services,Supplies and Services,304259,Equipment and Materials,07/01/2021,3821118-3IN/10365557,"35,840.00",TUNSTALL HEALTHCARE (UK) LTD.
"Regeneration, Economy and Growth",Transport and Contracted Services,Supplies and Services,304245,Equipment and Materials,07/01/2021,3821118-3IN/10365556,"1,873.50",TUNSTALL HEALTHCARE (UK) LTD.
"Regeneration, Economy and Growth",Corporate Property and Land,Third Party Payments,430100,Rendered by Private Contractors,07/01/2021,3821121-DCC/GT/163,584.20,TYNE VALLEY FLOORING & CARPETS.
Neighbourhoods and Climate Change,Technical Services CM0300,Supplies and Services,304221,Equipment and Materials,07/01/2021,3821122-217058,"1,068.20",TYNEDALE ROADSTONE LTD.
Neighbourhoods and Climate Change,Technical Services CM0300,Supplies and Services,304221,Equipment and Materials,07/01/2021,3821122-217063,"1,085.05",TYNEDALE ROADSTONE LTD.
Neighbourhoods and Climate Change,Technical Services CM0300,Supplies and Services,304221,Equipment and Materials,07/01/2021,3821122-217175,"1,075.15",TYNEDALE ROADSTONE LTD.
Neighbourhoods and Climate Change,Technical Services CM0300,Supplies and Services,304221,Equipment and Materials,07/01/2021,3821122-217184,"1,084.06",TYNEDALE ROADSTONE LTD.
Neighbourhoods and Climate Change,Technical Services CM0300,Supplies and Services,304221,Equipment and Materials,07/01/2021,3821122-217190,794.98,TYNEDALE ROADSTONE LTD.
Neighbourhoods and Climate Change,Technical Services CM0300,Supplies and Services,304221,Equipment and Materials,07/01/2021,3821122-217193,"1,070.20",TYNEDALE ROADSTONE LTD.
Neighbourhoods and Climate Change,Technical Services CM0300,Supplies and Services,304221,Equipment and Materials,07/01/2021,3821122-217404,"1,086.04",TYNEDALE ROADSTONE LTD.
Neighbourhoods and Climate Change,Technical Services CM0300,Supplies and Services,304221,Equipment and Materials,07/01/2021,3821122-217414,"1,074.16",TYNEDALE ROADSTONE LTD.
Neighbourhoods and Climate Change,Technical Services CM0300,Supplies and Services,304221,Equipment and Materials,07/01/2021,3821122-217415,630.74,TYNEDALE ROADSTONE LTD.
Neighbourhoods and Climate Change,Technical Services CM0300,Supplies and Services,304221,Equipment and Materials,07/01/2021,3821122-217418,600.24,TYNEDALE ROADSTONE LTD.
Neighbourhoods and Climate Change,Technical Services CM0300,Supplies and Services,304221,Equipment and Materials,07/01/2021,3821122-217420,926.65,TYNEDALE ROADSTONE LTD.
Neighbourhoods and Climate Change,Technical Services CM0300,Supplies and Services,304221,Equipment and Materials,07/01/2021,3821122-217426,737.30,TYNEDALE ROADSTONE LTD.
Neighbourhoods and Climate Change,Technical Services CM0300,Supplies and Services,304221,Equipment and Materials,07/01/2021,3821122-217427,"1,089.01",TYNEDALE ROADSTONE LTD.
Neighbourhoods and Climate Change,Technical Services CM0300,Supplies and Services,304221,Equipment and Materials,07/01/2021,3821122-217533,600.94,TYNEDALE ROADSTONE LTD.
Neighbourhoods and Climate Change,Technical Services CM0300,Supplies and Services,304221,Equipment and Materials,07/01/2021,3821122-217535,603.91,TYNEDALE ROADSTONE LTD.
Neighbourhoods and Climate Change,Technical Services CM0300,Supplies and Services,304221,Equipment and Materials,07/01/2021,3821122-217546,730.00,TYNEDALE ROADSTONE LTD.
Neighbourhoods and Climate Change,Technical Services CM0300,Supplies and Services,304221,Equipment and Materials,07/01/2021,3821122-217549,"1,068.22",TYNEDALE ROADSTONE LTD.
Neighbourhoods and Climate Change,Technical Services CM0300,Supplies and Services,304221,Equipment and Materials,07/01/2021,3821122-217550,713.29,TYNEDALE ROADSTONE LTD.
Neighbourhoods and Climate Change,Technical Services CM0300,Supplies and Services,304221,Equipment and Materials,07/01/2021,3821122-217555,"1,098.72",TYNEDALE ROADSTONE LTD.
Neighbourhoods and Climate Change,Technical Services CM0300,Supplies and Services,304221,Equipment and Materials,07/01/2021,3821122-217696,990.81,TYNEDALE ROADSTONE LTD.
Neighbourhoods and Climate Change,Technical Services CM0300,Supplies and Services,304221,Equipment and Materials,07/01/2021,3821122-217698,715.88,TYNEDALE ROADSTONE LTD.
Neighbourhoods and Climate Change,Technical Services CM0300,Supplies and Services,304221,Equipment and Materials,07/01/2021,3821122-217700,"1,074.16",TYNEDALE ROADSTONE LTD.
Neighbourhoods and Climate Change,Technical Services CM0300,Supplies and Services,304221,Equipment and Materials,07/01/2021,3821122-217703,"1,071.19",TYNEDALE ROADSTONE LTD.
Neighbourhoods and Climate Change,Technical Services CM0300,Supplies and Services,304221,Equipment and Materials,07/01/2021,3821122-217704,855.37,TYNEDALE ROADSTONE LTD.
Neighbourhoods and Climate Change,Technical Services CM0300,Supplies and Services,304221,Equipment and Materials,07/01/2021,3821122-217708,993.97,TYNEDALE ROADSTONE LTD.
Neighbourhoods and Climate Change,Technical Services CM0300,Supplies and Services,304221,Equipment and Materials,07/01/2021,3821122-217709,619.00,TYNEDALE ROADSTONE LTD.
Neighbourhoods and Climate Change,Technical Services CM0300,Supplies and Services,304221,Equipment and Materials,07/01/2021,3821122-217710,619.87,TYNEDALE ROADSTONE LTD.
Neighbourhoods and Climate Change,Technical Services CM0300,Supplies and Services,304221,Equipment and Materials,07/01/2021,3821122-217711,994.96,TYNEDALE ROADSTONE LTD.
Neighbourhoods and Climate Change,Technical Services CM0300,Supplies and Services,304221,Equipment and Materials,07/01/2021,3821122-217715,"1,098.72",TYNEDALE ROADSTONE LTD.
Neighbourhoods and Climate Change,Technical Services CM0300,Supplies and Services,304221,Equipment and Materials,07/01/2021,3821122-217791,963.27,TYNEDALE ROADSTONE LTD.
Neighbourhoods and Climate Change,Technical Services CM0300,Supplies and Services,304221,Equipment and Materials,07/01/2021,3821122-217792,"1,085.05",TYNEDALE ROADSTONE LTD.
Neighbourhoods and Climate Change,Technical Services CM0300,Supplies and Services,304221,Equipment and Materials,07/01/2021,3821122-217795,888.88,TYNEDALE ROADSTONE LTD.
Neighbourhoods and Climate Change,Technical Services CM0300,Supplies and Services,304221,Equipment and Materials,07/01/2021,3821122-217796,607.87,TYNEDALE ROADSTONE LTD.
Neighbourhoods and Climate Change,Technical Services CM0300,Supplies and Services,304221,Equipment and Materials,07/01/2021,3821122-217800,804.88,TYNEDALE ROADSTONE LTD.
Adult and Health Services,Head of Adults,Supplies and Services,338099,Services,07/01/2021,3821128-3516,720.00,WESTERN COUNSELLING SERVICES LTD.
Resources BK0010,Legal & Democratic Services,Supplies and Services,338025,Services,07/01/2021,3821129-MISC302/2020-21,720.00,WHITEHOUSE FUNERAL SERVICES.
"Regeneration, Economy and Growth",Culture Sport and Tourism,Supplies and Services,312013,Newspapers books and periodicals E312,08/01/2021,3821136-95645940,"3,964.00",(BSI) BRITISH STANDARDS INSTITUTION.
Neighbourhoods and Climate Change,Environmental Services,Third Party Payments,430100,Rendered by Private Contractors,08/01/2021,3821139-46038666,"2,087.22",ADT FIRE & SECURITY PLC.
"Regeneration, Economy and Growth",Corporate Property and Land,Third Party Payments,430100,Rendered by Private Contractors,08/01/2021,3821139-45338761-61,599.67,ADT FIRE & SECURITY PLC.
"Regeneration, Economy and Growth",Corporate Property and Land,Supplies and Services,304221,Equipment and Materials,08/01/2021,3821139-46035745,"1,200.00",ADT FIRE & SECURITY PLC.
Neighbourhoods and Climate Change,Technical Services CM0300,Supplies and Services,304221,Equipment and Materials,08/01/2021,3821140-30810949,535.84,AGGREGATE INDUSTRIES UK LTD.
Children and Young Peoples Services,Head of Childrens Social Care,Third Party Payments,440038,Other third party payments E440,08/01/2021,3821143-5727,964.36,ALBERT KENNEDY TRUST T/A AKT.
Neighbourhoods and Climate Change,Environmental Services,Supplies and Services,384899,Miscellaneous Expenses,08/01/2021,3821145-RED-01-2021-010,"3,000.00",ALLEN VALLEYS PROMOTIONS LTD.
Resources BK0010,Legal & Democratic Services,Supplies and Services,338102,Services,08/01/2021,3821148-008173,"5,600.00",ANALYTICAL SERVICES INTERNATIONAL LTD.
Resources BK0010,Legal & Democratic Services,Supplies and Services,338102,Services,08/01/2021,3821148-PAYMENTTERMS,"3,920.00",ANALYTICAL SERVICES INTERNATIONAL LTD.
Children and Young Peoples Services,Head of Childrens Social Care,Third Party Payments,425021,Rendered by Voluntary Organisations,08/01/2021,3821154-INV-1379,"22,755.00",ARTEMIS SUPPORT LTD.
"Regeneration, Economy and Growth",Corporate Property and Land,Premises,108099,Service Repairs and Maintenance,08/01/2021,3821160-221291,520.00,BELLWOOD REWINDS LTD.
"Regeneration, Economy and Growth",Corporate Property and Land,Premises,108099,Service Repairs and Maintenance,08/01/2021,3821164-42138,"3,497.00",BIOCHEMICA GROUP LTD.
Neighbourhoods and Climate Change,Partnerships & Community Engagement Div.,Supplies and Services,384086,Miscellaneous Expenses,08/01/2021,3821165-VOUCHER20NB-GAMP009,"25,000.00",BISHOP AUCKLAND COLLEGE.
Neighbourhoods and Climate Change,Technical Services CM0300,Supplies and Services,304221,Equipment and Materials,08/01/2021,3821166-BMPR/371/BJW,"1,165.50",BISHOP MIDDLEHAM PLANT & RECYCLING LTD.
"Regeneration, Economy and Growth",Development and Housing,Supplies and Services,338066,Services,08/01/2021,3821167-SIN020690,"241,914.72",BLOOM PROCUREMENT SERVICES LTD (FORMERLY NEPRO LTD).
Neighbourhoods and Climate Change,Technical Services CM0300,Third Party Payments,430100,Rendered by Private Contractors,08/01/2021,3821170-47530,"1,485.00",BRIDGEWAY CONSULTING LTD.
Children and Young Peoples Services,Head of Childrens Social Care,Third Party Payments,425021,Rendered by Voluntary Organisations,08/01/2021,3821175-CHI00008326,"15,600.00",CAMBIAN CHILDCARE LTD T/A HARTLEPOOL SCHOOL.
"Regeneration, Economy and Growth",Culture Sport and Tourism,Premises,106080,Centrally Controlled Rep and Maint,08/01/2021,3821178-20504084,961.15,CENTRICA BUSINESS SOLUTIONS UK LTD.*
"Regeneration, Economy and Growth",Culture Sport and Tourism,Premises,106080,Centrally Controlled Rep and Maint,08/01/2021,3821178-20504085,774.78,CENTRICA BUSINESS SOLUTIONS UK LTD.*
Children and Young Peoples Services,Head of Education and Skills,Supplies and Services,338035,Services,08/01/2021,3821181-805644832,"1,346.40",CITY & GUILDS OF LONDON INSTITUTE.
"Regeneration, Economy and Growth",Corporate Property and Land,Supplies and Services,304221,Equipment and Materials,08/01/2021,3821182-2852ABB342,511.98,CITY PLUMBING SUPPLIES HOLDINGS LTD.
"Regeneration, Economy and Growth",Corporate Property and Land,Premises,150015,Apportioned Exps of Operational Blds,08/01/2021,3821183-145802,659.97,CLEE HILL PLANT LTD.
Resources BK0010,Legal & Democratic Services,Supplies and Services,338101,Services,08/01/2021,3821184-3980039333,"17,771.64",CO DURHAM & DARLINGTON NHS FOUNDATION TRUST.
Children and Young Peoples Services,Head of Education and Skills,Construction work A908,908105,Construction work,08/01/2021,3821187-RES-01-2021-012,"2,495.00",COUNTRYWIDE LEGAL INDEMNITIES LTD.
Neighbourhoods and Climate Change,Environmental Services,Transport,210057,Repair and Maintenance of Vehicles,08/01/2021,3821192-96399678,769.27,DENNIS EAGLE LTD T/A TERBERG MATEC (UK) LTD.
Neighbourhoods and Climate Change,Environmental Services,Transport,210057,Repair and Maintenance of Vehicles,08/01/2021,3821193-DE11365528,681.39,DENNIS EAGLE LTD.
Adult and Health Services,Head of Adults,Supplies and Services,338042,Services,08/01/2021,3821194-359090/INVSRG155,"3,391.66",DERE STREET BARRISTERS.
Resources BK0010,Legal & Democratic Services,Supplies and Services,338042,Services,08/01/2021,3821194-360218/INVNR154,800.00,DERE STREET BARRISTERS.
Neighbourhoods and Climate Change,Partnerships & Community Engagement Div.,Cap Exp on Grants & Other Financial Assistance (REFCUS),918004,Contributions to other bodies 918004,08/01/2021,3821200-VOUCHER20NB-EDUR0032NDINST,"1,008.00",EASINGTON PAROCHIAL CHURCH COUNCIL.
"Regeneration, Economy and Growth",Business Durham CL0850,Premises,120009,Energy Costs,08/01/2021,3821204-000008978294,"2,514.44",EDF ENERGY CUSTOMERS PLC T/A EDF ENERGY.
"Regeneration, Economy and Growth",Business Durham CL0850,Premises,120009,Energy Costs,08/01/2021,3821204-000008947585,"4,897.37",EDF ENERGY CUSTOMERS PLC T/A EDF ENERGY.
"Regeneration, Economy and Growth",Business Durham CL0850,Premises,120009,Energy Costs,08/01/2021,3821204-000008952338,"3,744.29",EDF ENERGY CUSTOMERS PLC T/A EDF ENERGY.
"Regeneration, Economy and Growth",Business Durham CL0850,Premises,120009,Energy Costs,08/01/2021,3821203-000008938756,"14,330.08",EDF ENERGY CUSTOMERS PLC T/A EDF ENERGY.
"Regeneration, Economy and Growth",Business Durham CL0850,Premises,120009,Energy Costs,08/01/2021,3821204-000008984906,"6,267.31",EDF ENERGY CUSTOMERS PLC T/A EDF ENERGY.
"Regeneration, Economy and Growth",Business Durham CL0850,Premises,120009,Energy Costs,08/01/2021,3821203-000008954207,"3,042.57",EDF ENERGY CUSTOMERS PLC T/A EDF ENERGY.
"Regeneration, Economy and Growth",Business Durham CL0850,Premises,120009,Energy Costs,08/01/2021,3821204-000008987441,"1,648.14",EDF ENERGY CUSTOMERS PLC T/A EDF ENERGY.
Children and Young Peoples Services,Head of Childrens Social Care,Third Party Payments,425021,Rendered by Voluntary Organisations,08/01/2021,3821210-R1010936,"20,571.42",EVOLUTION CHILDRENS SERVICES LTD.
Neighbourhoods and Climate Change,Environmental Services,Third Party Payments,430120,Rendered by Private Contractors,08/01/2021,3821217-CTIN06628430,"5,774.90",FINNING (UK) LTD.
Neighbourhoods and Climate Change,Environmental Services,Third Party Payments,430120,Rendered by Private Contractors,08/01/2021,3821217-CTIN06628431,"5,009.39",FINNING (UK) LTD.
"Regeneration, Economy and Growth",Corporate Property and Land,Premises,106083,Centrally Controlled Rep and Maint,08/01/2021,3821226-9379,506.75,GREEN TEAM PARTNERSHIP.
"Regeneration, Economy and Growth",Corporate Property and Land,Premises,106083,Centrally Controlled Rep and Maint,08/01/2021,3821226-9380,750.00,GREEN TEAM PARTNERSHIP.
Adult and Health Services,Public Health CC0450,Third Party Payments,460803,Contract Payments,08/01/2021,3821229-DCCVC010,"4,321.42",HARBOUR SUPPORT SERVICES.
"Regeneration, Economy and Growth",Corporate Property and Land,Supplies and Services,304221,Equipment and Materials,08/01/2021,3821230-4687709,"1,140.71",HEADLAM (FLOORCOVERING DISTRIBUTORS) LTD.
Resources BK0010,Corporate Finance & Commercial Services,Supplies and Services,338221,Services,08/01/2021,3821231-SF-066422,"1,481.80",HEALTH ASSURED LTD.
Resources BK0010,Corporate Finance & Commercial Services,Supplies and Services,338221,Services,08/01/2021,3821231-SF-068394,"1,481.80",HEALTH ASSURED LTD.
"Regeneration, Economy and Growth",Transport and Contracted Services,Third Party Payments,430106,Rendered by Private Contractors,08/01/2021,3821233-18049,"10,303.80",HODGSONS COACH OPERATORS LTD.
Children and Young Peoples Services,Head of Childrens Social Care,Third Party Payments,440038,Other third party payments E440,08/01/2021,3821234-68603-LR11-7/2020,992.04,HOME GROUP LTD FORMERLY STONHAM HOUSING ASSOCIATION LTD.
Children and Young Peoples Services,Head of Childrens Social Care,Third Party Payments,440038,Other third party payments E440,08/01/2021,3821234-6861720,"1,135.24",HOME GROUP LTD FORMERLY STONHAM HOUSING ASSOCIATION LTD.
Neighbourhoods and Climate Change,Partnerships & Community Engagement Div.,Cap Exp on Grants & Other Financial Assistance (REFCUS),918004,Contributions to other bodies 918004,08/01/2021,3821239-VOUCHER20NB-3TWN013,"2,000.00","HUNWICK COMMUNITY, SOCIAL & ENVIRONMENT GROUP."
Neighbourhoods and Climate Change,Partnerships & Community Engagement Div.,Supplies and Services,342033,Computers and Communications,08/01/2021,3821244-5125032,635.98,INSIGHT DIRECT (UK) LTD.
"Regeneration, Economy and Growth",Corporate Property and Land,Premises,108099,Service Repairs and Maintenance,08/01/2021,3821245-CD200204222,"1,450.00",INTEGRATED WATER SERVICES LTD.
"Regeneration, Economy and Growth",Business Durham CL0850,Premises,108099,Service Repairs and Maintenance,08/01/2021,3821247-TW-2827,665.00,IW ADAMSON LTD T/A COMPLETE WEED CONTROL (TYNE & WEAR).
Neighbourhoods and Climate Change,Technical Services CM0300,Third Party Payments,430100,Rendered by Private Contractors,08/01/2021,3821248-24881,"7,961.01",JACK COUPE & SONS LTD T/A COUPE LINE.
Neighbourhoods and Climate Change,Environmental Services,Supplies and Services,338066,Services,08/01/2021,3821250-BURSARY,723.58,JAMES DILL-RUSSELL (GEOLOGIST).
Neighbourhoods and Climate Change,Technical Services CM0300,Supplies and Services,304221,Equipment and Materials,08/01/2021,3821255-0120/00244236,895.80,JT DOVE LTD.
Neighbourhoods and Climate Change,Technical Services CM0300,Supplies and Services,328041,Clothing uniforms and laundry E328,08/01/2021,3821257-90539,922.45,KING SCIENTIFIC.
Neighbourhoods and Climate Change,Environmental Services,Premises,108099,Service Repairs and Maintenance,08/01/2021,3821269-61392,574.80,MARIAN ENGINEERING LTD.
"Regeneration, Economy and Growth",Business Durham CL0850,Supplies and Services,338066,Services,08/01/2021,3821270-INV-0394,660.00,MCDONOUGH MARKETING COMMUNICATIONS LTD T/A MMC.
Children and Young Peoples Services,Head of Childrens Social Care,Third Party Payments,440038,Other third party payments E440,08/01/2021,3821274-CAL002,"10,320.00",MOVING UP CARE LTD.
Children and Young Peoples Services,Head of Childrens Social Care,Third Party Payments,440038,Other third party payments E440,08/01/2021,3821274-CG020,"8,535.00",MOVING UP CARE LTD.
Children and Young Peoples Services,Head of Childrens Social Care,Third Party Payments,440038,Other third party payments E440,08/01/2021,3821274-JDB011,"12,000.00",MOVING UP CARE LTD.
Children and Young Peoples Services,Head of Childrens Social Care,Third Party Payments,440038,Other third party payments E440,08/01/2021,3821274-RLB002,"6,750.00",MOVING UP CARE LTD.
Children and Young Peoples Services,Head of Childrens Social Care,Third Party Payments,440038,Other third party payments E440,08/01/2021,3821274-WC006,"10,880.00",MOVING UP CARE LTD.
Children and Young Peoples Services,Head of Childrens Social Care,Third Party Payments,440038,Other third party payments E440,08/01/2021,3821274-WCR002,"20,260.00",MOVING UP CARE LTD.
Children and Young Peoples Services,Head of Childrens Social Care,Third Party Payments,440038,Other third party payments E440,08/01/2021,3821274-WH014,"20,260.00",MOVING UP CARE LTD.
Children and Young Peoples Services,Head of Childrens Social Care,Third Party Payments,440038,Other third party payments E440,08/01/2021,3821274-MF016,"3,100.00",MOVING UP CARE LTD.
Children and Young Peoples Services,Head of Childrens Social Care,Third Party Payments,440039,Other third party payments E440,08/01/2021,3821274-LE009,"2,990.00",MOVING UP CARE LTD.
Children and Young Peoples Services,Head of Childrens Social Care,Third Party Payments,440039,Other third party payments E440,08/01/2021,3821274-EWC007,"3,100.00",MOVING UP CARE LTD.
Neighbourhoods and Climate Change,Partnerships & Community Engagement Div.,Cap Exp on Grants & Other Financial Assistance (REFCUS),918004,Contributions to other bodies 918004,08/01/2021,3821290-VOUCHER20NB-GAMP006,"1,500.00",NEVILLE COMMUNITY CENTRE.
Neighbourhoods and Climate Change,Environmental Services,Supplies and Services,336005,Advertising E336,08/01/2021,3821291-34523993,958.08,NEWSQUEST (YORKSHIRE & NORTH EAST) LTD.
"Regeneration, Economy and Growth",Corporate Property and Land,Supplies and Services,336005,Advertising E336,08/01/2021,3821291-34835460-21,851.00,NEWSQUEST (YORKSHIRE & NORTH EAST) LTD.
Children and Young Peoples Services,Childrens Services Operational Support,Supplies and Services,332047,Printing Stationery and Gen Off Exps,08/01/2021,3821292-0000060102,"2,719.70",NHS BUSINESS SERVICES AUTHORITY (NHSBSA).
Neighbourhoods and Climate Change,Environmental Services,Transport,210057,Repair and Maintenance of Vehicles,08/01/2021,3821294-78700,"2,479.95",NORPLAST LTD.
Neighbourhoods and Climate Change,Environmental Services,Transport,210057,Repair and Maintenance of Vehicles,08/01/2021,3821294-P78868,"2,205.45",NORPLAST LTD.
Children and Young Peoples Services,Head of Childrens Social Care,Supplies and Services,338060,Services,08/01/2021,3821298-DL6G-HCYZ-LPQO,960.00,OFSTED.
Neighbourhoods and Climate Change,Environmental Services,Transport,215005,Running Costs of Vehicles,08/01/2021,3821299-686344,"18,216.50",OIL NRG LTD.
Neighbourhoods and Climate Change,Environmental Services,Transport,215022,Running Costs of Vehicles,08/01/2021,3821299-686334,"1,324.01",OIL NRG LTD.
Neighbourhoods and Climate Change,Environmental Services,Transport,215005,Running Costs of Vehicles,08/01/2021,3821299-686331,"10,963.20",OIL NRG LTD.
"Regeneration, Economy and Growth",Corporate Property and Land,Premises,106082,Centrally Controlled Rep and Maint,08/01/2021,3821300-770122,"3,292.54",OPENVIEW SECURITY SOLUTIONS LTD.
"Regeneration, Economy and Growth",Culture Sport and Tourism,Premises,106082,Centrally Controlled Rep and Maint,08/01/2021,3821302-01384164,"6,070.76",OTIS LTD T/A MOVEMAN SKG.
"Regeneration, Economy and Growth",Culture Sport and Tourism,Premises,106082,Centrally Controlled Rep and Maint,08/01/2021,3821303-01393145,"6,070.76",OTIS LTD T/A MOVEMAN SKG.
"Regeneration, Economy and Growth",Culture Sport and Tourism,Premises,106082,Centrally Controlled Rep and Maint,08/01/2021,3821303-01402291,"6,070.76",OTIS LTD T/A MOVEMAN SKG.
Children and Young Peoples Services,Head of Early Help Inclusion & Vulnerable Children.,Premises,108099,Service Repairs and Maintenance,08/01/2021,3821302-01385429-20,"1,090.58",OTIS LTD T/A MOVEMAN SKG.
Children and Young Peoples Services,Head of Early Help Inclusion & Vulnerable Children.,Supplies and Services,338045,Services,08/01/2021,3821305-INV/CAM7,"1,400.00",PARKLANE PLOWDEN CHAMBERS (BARRISTERS).
Adult and Health Services,Public Health CC0450,Third Party Payments,460803,Contract Payments,08/01/2021,3821313-17413/14,"7,326.42",PIONEERING CARE PARTNERSHIP.
Adult and Health Services,Public Health CC0450,Third Party Payments,460803,Contract Payments,08/01/2021,3821313-17411/14,"5,462.93",PIONEERING CARE PARTNERSHIP.
Children and Young Peoples Services,Head of Education and Skills,Supplies and Services,338094,Services,08/01/2021,3821313-17402/14,"1,360.00",PIONEERING CARE PARTNERSHIP.
Dedicated Schools Grant BG0015,DSG High Needs Block,Third Party Payments,410037,Rendered by Other Local Authorities,08/01/2021,3821321-MISC0139,"8,977.50",QUEEN ELIZABETH HIGH SCHOOL.
"Regeneration, Economy and Growth",Culture Sport and Tourism,Supplies and Services,304259,Equipment and Materials,08/01/2021,3821329-15293,659.90,SAFE SECURE LOCKER SERVICES LTD.
"Regeneration, Economy and Growth",Corporate Property and Land,Supplies and Services,338078,Services,08/01/2021,3821330-13066,"1,000.00",SAFEGUARD SECURITY (NE) LTD.
Neighbourhoods and Climate Change,Partnerships & Community Engagement Div.,Cap Exp on Grants & Other Financial Assistance (REFCUS),918004,Contributions to other bodies 918004,08/01/2021,3821336-VOUCHER20NB-EDUR045,"2,000.00",SEAHAM GOLF CLUB.
"Regeneration, Economy and Growth",Corporate Property and Land,Supplies and Services,304221,Equipment and Materials,08/01/2021,3821343-600553,"1,012.00",SIG TRADING LTD T/A CARPET & FLOORING LTD.*
"Regeneration, Economy and Growth",Culture Sport and Tourism,Supplies and Services,384199,Miscellaneous Expenses,08/01/2021,3821346-INV-S013615,"1,702.74",SPEKTRIX LTD.
Children and Young Peoples Services,Head of Education and Skills,Supplies and Services,338094,Services,08/01/2021,3821348-1095,985.00,SPENNYMOOR YOUTH & COMMUNITY ASSOCIATION.
Children and Young Peoples Services,Head of Early Help Inclusion & Vulnerable Children.,Supplies and Services,338078,Services,08/01/2021,3821350-16595,"17,844.32",STEADFAST SECURITY SOLUTIONS LTD.
Resources BK0010,Legal & Democratic Services,Supplies and Services,338025,Services,08/01/2021,3821354-12036,"1,110.00",STUART WRIGHT FUNERAL SERVICE LTD.
Children and Young Peoples Services,Head of Education and Skills,Supplies and Services,384199,Miscellaneous Expenses,08/01/2021,3821355-CAS-01-2021-034,500.00,SUNSHINE DAY NURSERY LTD.
"Regeneration, Economy and Growth",Corporate Property and Land,Supplies and Services,304221,Equipment and Materials,08/01/2021,3821356-507010,"1,855.00",T CROSSLING & CO LTD.
Neighbourhoods and Climate Change,Technical Services CM0300,Stock A926,926900,Stock in hand-Inventory system,08/01/2021,3821357-9042827755,709.66,TARMAC TRADING LTD.
Neighbourhoods and Climate Change,Environmental Services,Supplies and Services,384199,Miscellaneous Expenses,08/01/2021,3821361-INV-0368,"1,345.00",THE AUTHENTIC SPARK.
Children and Young Peoples Services,Head of Childrens Social Care,Third Party Payments,440039,Other third party payments E440,08/01/2021,3821362-SI1000002498,"2,400.00",THE CYRENIANS LTD T/A CHANGING LIVES.
Children and Young Peoples Services,Head of Childrens Social Care,Third Party Payments,440039,Other third party payments E440,08/01/2021,3821362-SI1000002531,975.00,THE CYRENIANS LTD T/A CHANGING LIVES.
Neighbourhoods and Climate Change,Technical Services CM0300,Supplies and Services,304221,Equipment and Materials,08/01/2021,3821370-217191,737.20,TYNEDALE ROADSTONE LTD.
Neighbourhoods and Climate Change,Technical Services CM0300,Supplies and Services,304221,Equipment and Materials,08/01/2021,3821370-217407,"1,051.39",TYNEDALE ROADSTONE LTD.
Neighbourhoods and Climate Change,Technical Services CM0300,Supplies and Services,304221,Equipment and Materials,08/01/2021,3821370-217421,606.68,TYNEDALE ROADSTONE LTD.
Neighbourhoods and Climate Change,Technical Services CM0300,Supplies and Services,304221,Equipment and Materials,08/01/2021,3821370-217538,927.20,TYNEDALE ROADSTONE LTD.
Neighbourhoods and Climate Change,Technical Services CM0300,Supplies and Services,304221,Equipment and Materials,08/01/2021,3821370-217539,623.33,TYNEDALE ROADSTONE LTD.
Neighbourhoods and Climate Change,Technical Services CM0300,Supplies and Services,304221,Equipment and Materials,08/01/2021,3821370-217542,667.44,TYNEDALE ROADSTONE LTD.
"Regeneration, Economy and Growth",Corporate Property and Land,Supplies and Services,304221,Equipment and Materials,08/01/2021,3821382-1077275,"1,275.00",WERNICK HIRE LTD.
Neighbourhoods and Climate Change,Partnerships & Community Engagement Div.,Supplies and Services,384086,Miscellaneous Expenses,08/01/2021,3821384-VOUCHER20NB-DCTY029,"1,000.00",WITTON GILBERT VILLAGE PLAYGROUP.
Neighbourhoods and Climate Change,Environmental Services,Supplies and Services,304221,Equipment and Materials,08/01/2021,3821386-0000026966,"3,880.00",WYBONE LTD.
Neighbourhoods and Climate Change,Environmental Services,Supplies and Services,304221,Equipment and Materials,08/01/2021,3821386-0000026987,"2,424.40",WYBONE LTD.
Dedicated Schools Grant BG0015,DSG High Needs Block,Third Party Payments,425005,Rendered by Voluntary Organisations,08/01/2021,3821389-06663,"4,888.06",YOUNG FOUNDATIONS LTD.
Dedicated Schools Grant BG0015,DSG High Needs Block,Third Party Payments,425005,Rendered by Voluntary Organisations,08/01/2021,3821389-06664,"3,957.00",YOUNG FOUNDATIONS LTD.
Dedicated Schools Grant BG0015,DSG High Needs Block,Third Party Payments,425005,Rendered by Voluntary Organisations,08/01/2021,3821389-06779,"4,888.06",YOUNG FOUNDATIONS LTD.
Children and Young Peoples Services,Head of Childrens Social Care,Third Party Payments,425021,Rendered by Voluntary Organisations,08/01/2021,3821390-06822,"15,953.93",YOUNG FOUNDATIONS LTD.
"Regeneration, Economy and Growth",Culture Sport and Tourism,Third Party Payments,430100,Rendered by Private Contractors,11/01/2021,3821391-1LIFE20794,"116,750.00",1LIFE MANAGEMENT SOLUTIONS LTD.
Children and Young Peoples Services,Head of Education and Skills,Transport,230034,Contract Hire,11/01/2021,3821394-9716,618.84,24X7LTD.
Children and Young Peoples Services,Head of Education and Skills,Transport,230034,Contract Hire,11/01/2021,3821394-9712,778.60,24X7LTD.
Children and Young Peoples Services,Head of Education and Skills,Transport,230007,Contract Hire,11/01/2021,3821394-9713,892.98,24X7LTD.
Children and Young Peoples Services,Head of Education and Skills,Transport,230009,Contract Hire,11/01/2021,3821394-9717,803.56,24X7LTD.
Children and Young Peoples Services,Head of Education and Skills,Transport,230035,Contract Hire,11/01/2021,3821394-9714,882.05,24X7LTD.
Children and Young Peoples Services,Head of Education and Skills,Transport,230008,Contract Hire,11/01/2021,3821394-9718,"1,274.00",24X7LTD.
Children and Young Peoples Services,Head of Education and Skills,Transport,230006,Contract Hire,11/01/2021,3821396-DECEMBER01F856,"1,978.00",A & P TAXIS.
Neighbourhoods and Climate Change,Environmental Services,Transport,230005,Contract Hire,11/01/2021,3821400-I2062996,678.49,ACL HIRE LTD.
"Regeneration, Economy and Growth",Corporate Property and Land,Third Party Payments,430100,Rendered by Private Contractors,11/01/2021,3821401-IN7944,"14,285.00",ACROL AIR CONDITIONING CO LTD.
"Regeneration, Economy and Growth",Corporate Property and Land,Supplies and Services,304221,Equipment and Materials,11/01/2021,3821403-45814925,"1,850.00",ADT FIRE & SECURITY PLC.
Children and Young Peoples Services,Head of Education and Skills,Transport,230010,Contract Hire,11/01/2021,3821405-010DEC2020,553.28,AIRPORT TRANSFER DURHAM.
Children and Young Peoples Services,Head of Education and Skills,Transport,230010,Contract Hire,11/01/2021,3821405-010DEC2020/2,"1,415.48",AIRPORT TRANSFER DURHAM.
Children and Young Peoples Services,Head of Education and Skills,Transport,230010,Contract Hire,11/01/2021,3821406-96,"1,740.52",AJ JOBLING T/A CASTLE TAXIS.
Children and Young Peoples Services,Head of Education and Skills,Transport,230007,Contract Hire,11/01/2021,3821411-DCC966,939.25,ALSTON ROAD GARAGE.
Children and Young Peoples Services,Head of Education and Skills,Transport,230007,Contract Hire,11/01/2021,3821411-DCC065,"1,727.60",ALSTON ROAD GARAGE.
Children and Young Peoples Services,Head of Education and Skills,Transport,230006,Contract Hire,11/01/2021,3821411-DCC067,765.96,ALSTON ROAD GARAGE.
Adult and Health Services,Head of Adults,Transport,230005,Contract Hire,11/01/2021,3821418-04181,602.03,ATLAS TAXIS CONSETT.
Children and Young Peoples Services,Head of Education and Skills,Transport,230006,Contract Hire,11/01/2021,3821418-04177,980.00,ATLAS TAXIS CONSETT.
Children and Young Peoples Services,Head of Education and Skills,Transport,230006,Contract Hire,11/01/2021,3821418-04180,902.20,ATLAS TAXIS CONSETT.
Dedicated Schools Grant BG0015,DSG High Needs Block,Transport,230009,Contract Hire,11/01/2021,3821418-04182,588.00,ATLAS TAXIS CONSETT.
Children and Young Peoples Services,Head of Education and Skills,Transport,230007,Contract Hire,11/01/2021,3821424-4DEC20,"1,414.00",BENNETTS TAXIS.
Adult and Health Services,Head of Adults,Transport,230005,Contract Hire,11/01/2021,3821426-000338,640.00,BIRDS TAXIS LTD.
Adult and Health Services,Head of Adults,Transport,230005,Contract Hire,11/01/2021,3821426-000337,608.00,BIRDS TAXIS LTD.
Adult and Health Services,Head of Adults,Transport,230005,Contract Hire,11/01/2021,3821426-000336,"1,680.00",BIRDS TAXIS LTD.
Children and Young Peoples Services,Head of Education and Skills,Transport,230007,Contract Hire,11/01/2021,3821426-000335,520.00,BIRDS TAXIS LTD.
Children and Young Peoples Services,Head of Education and Skills,Transport,230006,Contract Hire,11/01/2021,3821426-000334,520.61,BIRDS TAXIS LTD.
Children and Young Peoples Services,Head of Education and Skills,Transport,230009,Contract Hire,11/01/2021,3821426-000333,706.44,BIRDS TAXIS LTD.
Children and Young Peoples Services,Head of Education and Skills,Transport,230008,Contract Hire,11/01/2021,3821426-000332,"1,781.00",BIRDS TAXIS LTD.
Children and Young Peoples Services,Head of Education and Skills,Transport,230008,Contract Hire,11/01/2021,3821426-000331,"1,120.00",BIRDS TAXIS LTD.
Adult and Health Services,Head of Adults,Transport,230005,Contract Hire,11/01/2021,3821428-33402,"1,286.60",BLUELINE TAXIS.
Adult and Health Services,Head of Adults,Transport,230005,Contract Hire,11/01/2021,3821428-33403,681.00,BLUELINE TAXIS.
Children and Young Peoples Services,Head of Education and Skills,Transport,230034,Contract Hire,11/01/2021,3821428-33415,728.00,BLUELINE TAXIS.
Children and Young Peoples Services,Head of Education and Skills,Transport,230007,Contract Hire,11/01/2021,3821428-33393,750.40,BLUELINE TAXIS.
Children and Young Peoples Services,Head of Education and Skills,Transport,230007,Contract Hire,11/01/2021,3821428-33391,546.00,BLUELINE TAXIS.
Children and Young Peoples Services,Head of Education and Skills,Transport,230007,Contract Hire,11/01/2021,3821428-33395,"1,324.00",BLUELINE TAXIS.
Children and Young Peoples Services,Head of Education and Skills,Transport,230007,Contract Hire,11/01/2021,3821428-33373,584.40,BLUELINE TAXIS.
Children and Young Peoples Services,Head of Education and Skills,Transport,230007,Contract Hire,11/01/2021,3821428-33394,"1,674.39",BLUELINE TAXIS.
Children and Young Peoples Services,Head of Education and Skills,Transport,230034,Contract Hire,11/01/2021,3821428-33392,"1,188.36",BLUELINE TAXIS.
Children and Young Peoples Services,Head of Education and Skills,Transport,230007,Contract Hire,11/01/2021,3821428-33387,730.80,BLUELINE TAXIS.
Children and Young Peoples Services,Head of Education and Skills,Transport,230006,Contract Hire,11/01/2021,3821428-33397,"1,092.00",BLUELINE TAXIS.
Children and Young Peoples Services,Head of Education and Skills,Transport,230006,Contract Hire,11/01/2021,3821428-33399,"1,512.00",BLUELINE TAXIS.
Children and Young Peoples Services,Head of Education and Skills,Transport,230008,Contract Hire,11/01/2021,3821428-33398,"1,092.00",BLUELINE TAXIS.
Children and Young Peoples Services,Head of Education and Skills,Transport,230008,Contract Hire,11/01/2021,3821428-33401,"1,232.00",BLUELINE TAXIS.
Children and Young Peoples Services,Head of Education and Skills,Transport,230008,Contract Hire,11/01/2021,3821428-33416,"1,008.00",BLUELINE TAXIS.
Children and Young Peoples Services,Central Charges (CYPS),Supplies and Services,384197,Miscellaneous Expenses,11/01/2021,3821433-A0022776,"1,573.49",BOX IT NORTH.
"Regeneration, Economy and Growth",Corporate Property and Land,Supplies and Services,304221,Equipment and Materials,11/01/2021,3821441-SI004308,"1,321.60",CIBES LIFT UK LTD.
Children and Young Peoples Services,Head of Education and Skills,Transport,230007,Contract Hire,11/01/2021,3821447-1184,"1,245.51",CLIVE HUBERY.
Children and Young Peoples Services,Head of Education and Skills,Transport,230008,Contract Hire,11/01/2021,3821451-N010/33,991.38,COLIN STEWART T/A STEWART`S TAXIS.
Children and Young Peoples Services,Head of Education and Skills,Transport,230008,Contract Hire,11/01/2021,3821453-1703,"1,623.58",CONNORS MINI BUSES.*
Children and Young Peoples Services,Head of Education and Skills,Transport,230008,Contract Hire,11/01/2021,3821453-1704,"1,438.08",CONNORS MINI BUSES.*
Children and Young Peoples Services,Head of Education and Skills,Transport,230008,Contract Hire,11/01/2021,3821453-1705,"1,824.34",CONNORS MINI BUSES.*
Children and Young Peoples Services,Head of Early Help Inclusion & Vulnerable Children.,Supplies and Services,324500,Provisions E324,11/01/2021,3821461-23526,"14,135.90",CREATIVE MANAGEMENT SERVICES LTD.
Children and Young Peoples Services,Head of Education and Skills,Transport,230008,Contract Hire,11/01/2021,3821464-D1202012,"1,428.00",D&I TAXIS.
Children and Young Peoples Services,Head of Education and Skills,Transport,230006,Contract Hire,11/01/2021,3821466-INV-0505,742.00,DARREN IRVING T/A @CAB TAXIS.
Children and Young Peoples Services,Head of Early Help Inclusion & Vulnerable Children.,Premises,140001,Fixtures and Fittings,11/01/2021,3821467-158898,"1,822.62",DART VALLEY SYSTEMS LTD.
Children and Young Peoples Services,Head of Early Help Inclusion & Vulnerable Children.,Premises,140001,Fixtures and Fittings,11/01/2021,3821467-159146,"1,941.05",DART VALLEY SYSTEMS LTD.
Children and Young Peoples Services,Head of Early Help Inclusion & Vulnerable Children.,Premises,140001,Fixtures and Fittings,11/01/2021,3821467-159237,"2,588.00",DART VALLEY SYSTEMS LTD.
Children and Young Peoples Services,Head of Early Help Inclusion & Vulnerable Children.,Premises,140001,Fixtures and Fittings,11/01/2021,3821467-159341,"2,706.43",DART VALLEY SYSTEMS LTD.
Children and Young Peoples Services,Head of Education and Skills,Transport,230006,Contract Hire,11/01/2021,3821471-A181-DEC,910.00,DAVID WILKINSON (TAXIS).
Resources BK0010,Digital and Customer Services,Vehicles Equipment Furniture and Fittings,912701,Computer equipment,11/01/2021,3821474-7402673676,"109,698.88",DELL COMPUTER CORPORATION LTD.
Children and Young Peoples Services,Head of Education and Skills,Transport,230012,Contract Hire,11/01/2021,3821476-12/2020-M035,"1,694.00",DIANE GOOCH T/A COLLINS TAXIS.
Children and Young Peoples Services,Head of Education and Skills,Transport,230012,Contract Hire,11/01/2021,3821476-12/2020-M033,"2,164.40",DIANE GOOCH T/A COLLINS TAXIS.
Children and Young Peoples Services,Head of Education and Skills,Transport,230035,Contract Hire,11/01/2021,3821476-12/2020-2067,"1,707.86",DIANE GOOCH T/A COLLINS TAXIS.
Children and Young Peoples Services,Head of Education and Skills,Transport,230008,Contract Hire,11/01/2021,3821476-12/2020-A153,"2,301.00",DIANE GOOCH T/A COLLINS TAXIS.
Children and Young Peoples Services,Head of Education and Skills,Transport,230008,Contract Hire,11/01/2021,3821476-12/2020-S037,"2,343.32",DIANE GOOCH T/A COLLINS TAXIS.
Children and Young Peoples Services,Head of Education and Skills,Transport,230008,Contract Hire,11/01/2021,3821476-12/2020-W016,"2,306.00",DIANE GOOCH T/A COLLINS TAXIS.
"Regeneration, Economy and Growth",Business Durham CL0850,Premises,120009,Energy Costs,11/01/2021,3821482-000008963860,"13,540.16",EDF ENERGY CUSTOMERS PLC T/A EDF ENERGY.
"Regeneration, Economy and Growth",Corporate Property and Land,Supplies and Services,304221,Equipment and Materials,11/01/2021,3821483-059-274350,"1,010.00",EDMUNDSON ELECTRICAL LTD.
Resources BK0010,Digital and Customer Services,Supplies and Services,344131,Telephones,11/01/2021,3821492-6373,"15,000.00",ESSENTIALNET LTD.
Children and Young Peoples Services,Head of Education and Skills,Transport,230008,Contract Hire,11/01/2021,3821495-N090DEC20,"1,540.00",FAIR FARE TRAVEL (TAXIS).
Adult and Health Services,Head of Adults,Transport,230005,Contract Hire,11/01/2021,3821503-102000,"3,045.00",G & P JOHNSON LTD T/A NIGHTINGALE COACHES.
Adult and Health Services,Head of Adults,Transport,230005,Contract Hire,11/01/2021,3821503-102007,"1,278.00",G & P JOHNSON LTD T/A NIGHTINGALE COACHES.
Adult and Health Services,Head of Adults,Transport,230005,Contract Hire,11/01/2021,3821503-102005,"1,599.48",G & P JOHNSON LTD T/A NIGHTINGALE COACHES.
Adult and Health Services,Head of Adults,Transport,230005,Contract Hire,11/01/2021,3821503-102006,"1,748.34",G & P JOHNSON LTD T/A NIGHTINGALE COACHES.
Children and Young Peoples Services,Head of Education and Skills,Transport,230007,Contract Hire,11/01/2021,3821503-102002,"1,218.00",G & P JOHNSON LTD T/A NIGHTINGALE COACHES.
Children and Young Peoples Services,Head of Education and Skills,Transport,230007,Contract Hire,11/01/2021,3821503-102003,"1,492.40",G & P JOHNSON LTD T/A NIGHTINGALE COACHES.
Children and Young Peoples Services,Head of Education and Skills,Transport,230034,Contract Hire,11/01/2021,3821503-102009,"1,195.72",G & P JOHNSON LTD T/A NIGHTINGALE COACHES.
Children and Young Peoples Services,Head of Education and Skills,Transport,230012,Contract Hire,11/01/2021,3821503-102004,"1,462.02",G & P JOHNSON LTD T/A NIGHTINGALE COACHES.
Children and Young Peoples Services,Head of Education and Skills,Transport,230008,Contract Hire,11/01/2021,3821503-101993,854.00,G & P JOHNSON LTD T/A NIGHTINGALE COACHES.
Children and Young Peoples Services,Head of Education and Skills,Transport,230008,Contract Hire,11/01/2021,3821503-101994,"1,331.54",G & P JOHNSON LTD T/A NIGHTINGALE COACHES.
Children and Young Peoples Services,Head of Education and Skills,Transport,230008,Contract Hire,11/01/2021,3821503-101995,"1,062.46",G & P JOHNSON LTD T/A NIGHTINGALE COACHES.
Children and Young Peoples Services,Head of Education and Skills,Transport,230008,Contract Hire,11/01/2021,3821503-101996,"1,081.64",G & P JOHNSON LTD T/A NIGHTINGALE COACHES.
Children and Young Peoples Services,Head of Education and Skills,Transport,230008,Contract Hire,11/01/2021,3821503-101997,"1,081.64",G & P JOHNSON LTD T/A NIGHTINGALE COACHES.
Children and Young Peoples Services,Head of Education and Skills,Transport,230008,Contract Hire,11/01/2021,3821503-101998,755.72,G & P JOHNSON LTD T/A NIGHTINGALE COACHES.
Children and Young Peoples Services,Head of Education and Skills,Transport,230008,Contract Hire,11/01/2021,3821503-101999,"1,171.10",G & P JOHNSON LTD T/A NIGHTINGALE COACHES.
Children and Young Peoples Services,Head of Education and Skills,Transport,230008,Contract Hire,11/01/2021,3821503-102001,"1,905.96",G & P JOHNSON LTD T/A NIGHTINGALE COACHES.
Children and Young Peoples Services,Head of Education and Skills,Transport,230009,Contract Hire,11/01/2021,3821504-11,546.00,GARY BRUNTON`S TAXI.
Children and Young Peoples Services,Head of Education and Skills,Transport,230008,Contract Hire,11/01/2021,3821504-13,961.52,GARY BRUNTON`S TAXI.
Children and Young Peoples Services,Head of Education and Skills,Transport,230007,Contract Hire,11/01/2021,3821505-ST023,939.40,GARY JACKSON PRIVATE HIRE.
Children and Young Peoples Services,Head of Education and Skills,Transport,230006,Contract Hire,11/01/2021,3821505-DC023,634.50,GARY JACKSON PRIVATE HIRE.
Children and Young Peoples Services,Head of Education and Skills,Transport,230003,Contract Hire,11/01/2021,3821506-5648,"2,612.40",GEM TRAVEL.
Children and Young Peoples Services,Head of Education and Skills,Transport,230003,Contract Hire,11/01/2021,3821506-5649,"2,507.40",GEM TRAVEL.
Children and Young Peoples Services,Head of Education and Skills,Transport,230010,Contract Hire,11/01/2021,3821507-32,"1,395.24",GERARD MCLOUGHLIN T/A GMAC TAXIS.
Children and Young Peoples Services,Head of Childrens Social Care,Supplies and Services,364359,Grants to Voluntary Organisations,11/01/2021,3821513-CAS-01-2021-043,"1,876.11",GREEN LANE NURSERY & CHILDCARE CENTRE.
Children and Young Peoples Services,Head of Education and Skills,Transport,230007,Contract Hire,11/01/2021,3821517-85,546.00,HAMLET TAXIS.
Children and Young Peoples Services,Head of Education and Skills,Transport,230006,Contract Hire,11/01/2021,3821517-86,749.00,HAMLET TAXIS.
Children and Young Peoples Services,Head of Education and Skills,Transport,230007,Contract Hire,11/01/2021,3821518-002-5/1/21,728.00,HANNAH`S TAXI.
Children and Young Peoples Services,Head of Education and Skills,Transport,230034,Contract Hire,11/01/2021,3821525-49,756.00,HORNDALE TAXIS LTD.
Children and Young Peoples Services,Head of Education and Skills,Transport,230006,Contract Hire,11/01/2021,3821525-50,688.00,HORNDALE TAXIS LTD.
Adult and Health Services,Head of Adults,Transport,230005,Contract Hire,11/01/2021,3821527-3-DEC20,588.00,IAN SHEPLEY T/A RIVERSIDE TAXIS.
Adult and Health Services,Commissioning inc Supporting People,Supplies and Services,338027,Professional services,11/01/2021,3821529-INI00000505,"2,000.00",INTERACT CARE LTD.
Adult and Health Services,Public Health CC0450,Third Party Payments,460803,Contract Payments,11/01/2021,3821530-442,"3,750.00",INVESTING IN CHILDREN CIC.
Neighbourhoods and Climate Change,Environmental Services,Supplies and Services,324117,Provisions E324,11/01/2021,3821533-10723,"1,837.82",J MORAN LTD T/A CAFFE VINCI.
Children and Young Peoples Services,Head of Education and Skills,Transport,230012,Contract Hire,11/01/2021,3821535-0017,766.00,JDS PRIVATE HIRE DURHAM.
Children and Young Peoples Services,Head of Education and Skills,Transport,230008,Contract Hire,11/01/2021,3821535-0016,510.00,JDS PRIVATE HIRE DURHAM.
Children and Young Peoples Services,Head of Education and Skills,Transport,230007,Contract Hire,11/01/2021,3821536-3031,"1,768.00",JEFF ANDERSON COACHES LTD.
Children and Young Peoples Services,Head of Education and Skills,Transport,230007,Contract Hire,11/01/2021,3821536-3033,"1,220.24",JEFF ANDERSON COACHES LTD.
Children and Young Peoples Services,Head of Education and Skills,Transport,230008,Contract Hire,11/01/2021,3821536-3034,"1,286.46",JEFF ANDERSON COACHES LTD.
Children and Young Peoples Services,Head of Education and Skills,Transport,230008,Contract Hire,11/01/2021,3821536-3035,"1,346.42",JEFF ANDERSON COACHES LTD.
Children and Young Peoples Services,Head of Education and Skills,Transport,230008,Contract Hire,11/01/2021,3821536-3032,"1,418.06",JEFF ANDERSON COACHES LTD.
Children and Young Peoples Services,Head of Education and Skills,Transport,230003,Contract Hire,11/01/2021,3821537-30439,"4,440.00",JIM HUGHES COACHES LTD.
Adult and Health Services,Head of Adults,Transport,230005,Contract Hire,11/01/2021,3821539-01122020,630.50,JOHN HUBBLE T/A HUBB`S TAXIS.
Children and Young Peoples Services,Head of Education and Skills,Transport,230034,Contract Hire,11/01/2021,3821543-0003DEC20,973.00,JORA SINGH TAXIS.
Children and Young Peoples Services,Head of Education and Skills,Transport,230008,Contract Hire,11/01/2021,3821543-0024,"1,874.32",JORA SINGH TAXIS.
Children and Young Peoples Services,Head of Education and Skills,Transport,230006,Contract Hire,11/01/2021,3821543-0003/F836,"1,133.00",JORA SINGH TAXIS.
Neighbourhoods and Climate Change,Technical Services CM0300,Stock A926,926900,Stock in hand-Inventory system,11/01/2021,3821546-0108/00257163,861.42,JT DOVE LTD.
Neighbourhoods and Climate Change,Technical Services CM0300,Supplies and Services,342051,Computers and Communications,11/01/2021,3821548-1355-04/01/2021,"1,875.00",KAINOS SOFTWARE LTD.
Children and Young Peoples Services,Head of Education and Skills,Transport,230008,Contract Hire,11/01/2021,3821549-04DEC20,"2,181.92",KD TAXIS.
Dedicated Schools Grant BG0015,DSG High Needs Block,Transport,230009,Contract Hire,11/01/2021,3821550-003,588.00,KELLY`S.
Children and Young Peoples Services,Head of Education and Skills,Transport,230008,Contract Hire,11/01/2021,3821552-003NOV,"2,021.74",KEVIN HALL T/A KDH TAXIS.
Children and Young Peoples Services,Head of Education and Skills,Transport,230006,Contract Hire,11/01/2021,3821554-112,"1,069.60",KINGSWAY CABS LTD.
Children and Young Peoples Services,Head of Education and Skills,Transport,230008,Contract Hire,11/01/2021,3821554-111,"1,414.00",KINGSWAY CABS LTD.
Adult and Health Services,Commissioning inc Supporting People,Third Party Payments,473111,Purchase of Care,11/01/2021,3821559-LCD-FTI041055,"4,847.91",LEONARD CHESHIRE DISABILITY.
Adult and Health Services,Head of Adults,Transport,230005,Contract Hire,11/01/2021,3821560-PEACO004-DEC20,828.18,LETS TRAVEL.
Children and Young Peoples Services,Head of Education and Skills,Transport,230007,Contract Hire,11/01/2021,3821563-4393,859.60,LINCAB TAXIS.
Children and Young Peoples Services,Head of Education and Skills,Transport,230034,Contract Hire,11/01/2021,3821563-4397,"1,274.08",LINCAB TAXIS.
Children and Young Peoples Services,Head of Education and Skills,Transport,230007,Contract Hire,11/01/2021,3821563-4392,"1,278.55",LINCAB TAXIS.
Children and Young Peoples Services,Head of Education and Skills,Transport,230007,Contract Hire,11/01/2021,3821563-4398,656.60,LINCAB TAXIS.
Children and Young Peoples Services,Head of Education and Skills,Transport,230008,Contract Hire,11/01/2021,3821563-4394,"2,203.60",LINCAB TAXIS.
Children and Young Peoples Services,Head of Education and Skills,Transport,230008,Contract Hire,11/01/2021,3821563-4395,"1,744.96",LINCAB TAXIS.
Children and Young Peoples Services,Head of Education and Skills,Transport,230008,Contract Hire,11/01/2021,3821563-4396,"2,380.00",LINCAB TAXIS.
Children and Young Peoples Services,Head of Education and Skills,Transport,230012,Contract Hire,11/01/2021,3821564-4854/E054,"1,078.00",LOCAL TRANSPORT LTD.
Children and Young Peoples Services,Head of Education and Skills,Transport,230012,Contract Hire,11/01/2021,3821564-4854/E065,"1,034.32",LOCAL TRANSPORT LTD.
Children and Young Peoples Services,Head of Education and Skills,Transport,230008,Contract Hire,11/01/2021,3821564-4854/E018,"1,127.00",LOCAL TRANSPORT LTD.
Children and Young Peoples Services,Head of Education and Skills,Transport,230008,Contract Hire,11/01/2021,3821564-4854/E020,"1,372.00",LOCAL TRANSPORT LTD.
Children and Young Peoples Services,Head of Education and Skills,Transport,230008,Contract Hire,11/01/2021,3821564-4854/E022,"1,353.24",LOCAL TRANSPORT LTD.
Children and Young Peoples Services,Head of Education and Skills,Transport,230008,Contract Hire,11/01/2021,3821567-79NOV20,"2,723.05",LORRAINES TAXIS.
Children and Young Peoples Services,Head of Education and Skills,Transport,230008,Contract Hire,11/01/2021,3821567-80DEC20,"1,773.80",LORRAINES TAXIS.
Children and Young Peoples Services,Head of Education and Skills,Transport,230008,Contract Hire,11/01/2021,3821570-47,"1,708.00",M&C`S CABS LTD.
Resources BK0010,Digital and Customer Services,Supplies and Services,342053,Computers and Communications,11/01/2021,3821575-12568010,"1,050.00",MAINTEL EUROPE LTD.
Resources BK0010,Digital and Customer Services,Supplies and Services,342053,Computers and Communications,11/01/2021,3821575-12568063,"10,205.00",MAINTEL EUROPE LTD.
Resources BK0010,Digital and Customer Services,Supplies and Services,342051,Computers and Communications,11/01/2021,3821575-12559259,"5,580.00",MAINTEL EUROPE LTD.
Children and Young Peoples Services,Head of Education and Skills,Transport,230008,Contract Hire,11/01/2021,3821578-INV11/202021,"3,295.07",MARK & JOHN CHISHOLM T/A (CHEVRON).
Children and Young Peoples Services,Head of Education and Skills,Transport,230010,Contract Hire,11/01/2021,3821578-INV12/202026,"1,769.49",MARK & JOHN CHISHOLM T/A (CHEVRON).
Adult and Health Services,Head of Adults,Transport,230005,Contract Hire,11/01/2021,3821579-000050,"1,428.00",MARK HUSBAND T/A TEAK`S TAXIS.
Children and Young Peoples Services,Head of Education and Skills,Transport,230034,Contract Hire,11/01/2021,3821581-34341220,"1,228.00",MEKLEC CARS.
Children and Young Peoples Services,Head of Education and Skills,Transport,230012,Contract Hire,11/01/2021,3821587-KDC-DEC-2020,"1,943.62",MJ TIMNEY T/A KDC & C&M TAXIS.
"Regeneration, Economy and Growth",Corporate Property and Land,Premises,150015,Apportioned Exps of Operational Blds,11/01/2021,3821589-7001871983,811.76,MOBILE MINI UK LTD.
Children and Young Peoples Services,Head of Education and Skills,Transport,230012,Contract Hire,11/01/2021,3821592-012020,701.54,MR DEREK HENDERSON.
Children and Young Peoples Services,Head of Education and Skills,Transport,230008,Contract Hire,11/01/2021,3821594-19D,"1,834.84",MR G FREELAND T/A HUNWICK CARS.
Children and Young Peoples Services,Head of Education and Skills,Transport,230008,Contract Hire,11/01/2021,3821595-CP/12/20,"1,595.60",MR J AGAR T/A PARK TAXIS.
Children and Young Peoples Services,Head of Education and Skills,Transport,230006,Contract Hire,11/01/2021,3821595-JB/12/20,"1,080.00",MR J AGAR T/A PARK TAXIS.
Children and Young Peoples Services,Head of Education and Skills,Transport,230035,Contract Hire,11/01/2021,3821596-151,544.00,MR JOHN ALLINSON T/A AALPHA TAXIS.
Adult and Health Services,Head of Adults,Transport,230005,Contract Hire,11/01/2021,3821597-202032,605.44,MR JR FORT T/A JRF TAXIS.
Children and Young Peoples Services,Head of Education and Skills,Transport,230034,Contract Hire,11/01/2021,3821598-4424-DECEMBER2020,"1,286.60",MR MARK WILE T/A HARRY`S TAXIS.
Children and Young Peoples Services,Head of Education and Skills,Transport,230010,Contract Hire,11/01/2021,3821598-BL031-DECEMBER2020,854.00,MR MARK WILE T/A HARRY`S TAXIS.
Children and Young Peoples Services,Head of Education and Skills,Transport,230006,Contract Hire,11/01/2021,3821598-F866-DECEMBER2020,575.20,MR MARK WILE T/A HARRY`S TAXIS.
Dedicated Schools Grant BG0015,DSG High Needs Block,Transport,230011,Contract Hire,11/01/2021,3821598-9001-DECEMBER2020,586.60,MR MARK WILE T/A HARRY`S TAXIS.
Children and Young Peoples Services,Head of Education and Skills,Transport,230009,Contract Hire,11/01/2021,3821599-123,868.00,MR NEIL LEONARD T/A LENNY`S TAXIS.
Children and Young Peoples Services,Head of Education and Skills,Transport,230008,Contract Hire,11/01/2021,3821599-128,"1,267.50",MR NEIL LEONARD T/A LENNY`S TAXIS.
Children and Young Peoples Services,Head of Education and Skills,Transport,230008,Contract Hire,11/01/2021,3821599-124,"1,265.74",MR NEIL LEONARD T/A LENNY`S TAXIS.
Children and Young Peoples Services,Head of Education and Skills,Transport,230008,Contract Hire,11/01/2021,3821599-129,"2,194.64",MR NEIL LEONARD T/A LENNY`S TAXIS.
Children and Young Peoples Services,Head of Education and Skills,Transport,230008,Contract Hire,11/01/2021,3821599-125,"1,741.50",MR NEIL LEONARD T/A LENNY`S TAXIS.
Children and Young Peoples Services,Head of Education and Skills,Transport,230008,Contract Hire,11/01/2021,3821599-127,"1,358.00",MR NEIL LEONARD T/A LENNY`S TAXIS.
Children and Young Peoples Services,Head of Education and Skills,Transport,230006,Contract Hire,11/01/2021,3821599-126,883.00,MR NEIL LEONARD T/A LENNY`S TAXIS.
Children and Young Peoples Services,Head of Education and Skills,Transport,230006,Contract Hire,11/01/2021,3821600-9,623.50,MR S HUSSAIN T/A EMPIRE CARS.
Children and Young Peoples Services,Head of Education and Skills,Transport,230008,Contract Hire,11/01/2021,3821602-019,"1,338.08",MRS SAMANTHA MACKENZIE T/A SAM`S TAXIS.
Children and Young Peoples Services,Head of Education and Skills,Transport,230008,Contract Hire,11/01/2021,3821602-017,"1,157.80",MRS SAMANTHA MACKENZIE T/A SAM`S TAXIS.
Children and Young Peoples Services,Head of Education and Skills,Transport,230008,Contract Hire,11/01/2021,3821602-018,"1,078.00",MRS SAMANTHA MACKENZIE T/A SAM`S TAXIS.
Neighbourhoods and Climate Change,Environmental Services,Transport,230005,Contract Hire,11/01/2021,3821606-138998,700.00,ND BROWN LTD.
Neighbourhoods and Climate Change,Environmental Services,Transport,230005,Contract Hire,11/01/2021,3821606-138994,"2,175.00",ND BROWN LTD.
Neighbourhoods and Climate Change,Environmental Services,Transport,230005,Contract Hire,11/01/2021,3821606-138995,"1,979.88",ND BROWN LTD.
Neighbourhoods and Climate Change,Environmental Services,Transport,230005,Contract Hire,11/01/2021,3821606-138997,"1,979.88",ND BROWN LTD.
Children and Young Peoples Services,Head of Education and Skills,Transport,230034,Contract Hire,11/01/2021,3821607-DECEMBER2020,"1,400.28",ND TAXIS.
Children and Young Peoples Services,Head of Education and Skills,Transport,230008,Contract Hire,11/01/2021,3821609-263,"1,428.00",NEVILLE FORBES T/A FORBES TAXIS.
Neighbourhoods and Climate Change,Technical Services CM0300,Other expenses A914,914002,Capital - Advertisments,11/01/2021,3821610-35114472,978.25,NEWSQUEST (YORKSHIRE & NORTH EAST) LTD.
Neighbourhoods and Climate Change,Technical Services CM0300,Supplies and Services,336005,Advertising E336,11/01/2021,3821610-35115533,911.73,NEWSQUEST (YORKSHIRE & NORTH EAST) LTD.
Neighbourhoods and Climate Change,Environmental Services,Transport,215005,Running Costs of Vehicles,11/01/2021,3821618-686348,"4,409.28",OIL NRG LTD.
Neighbourhoods and Climate Change,Environmental Services,Transport,215005,Running Costs of Vehicles,11/01/2021,3821618-686261,"2,778.30",OIL NRG LTD.
Neighbourhoods and Climate Change,Environmental Services,Transport,215022,Running Costs of Vehicles,11/01/2021,3821618-686265,930.00,OIL NRG LTD.
Neighbourhoods and Climate Change,Environmental Services,Transport,215005,Running Costs of Vehicles,11/01/2021,3821618-686272,"3,684.40",OIL NRG LTD.
Neighbourhoods and Climate Change,Technical Services CM0300,Construction work A908,908105,Construction work,11/01/2021,3821620-A204778,"25,303.87",OPENREACH LLU.
Children and Young Peoples Services,Head of Education and Skills,Transport,230035,Contract Hire,11/01/2021,3821624-SC-608,"1,335.04",PAUL BURRELL T/A PAUL BURRELL TAXIS.
Children and Young Peoples Services,Head of Education and Skills,Transport,230006,Contract Hire,11/01/2021,3821624-SC-607,"1,288.42",PAUL BURRELL T/A PAUL BURRELL TAXIS.
Children and Young Peoples Services,Head of Education and Skills,Transport,230008,Contract Hire,11/01/2021,3821625-DCC337,"2,186.24",PAUL`S TAXIS..
Children and Young Peoples Services,Head of Education and Skills,Transport,230008,Contract Hire,11/01/2021,3821625-DCC339,897.52,PAUL`S TAXIS..
Children and Young Peoples Services,Head of Education and Skills,Transport,230008,Contract Hire,11/01/2021,3821626-N0742412200,"1,582.72",PB PRIVATE HIRE.
Adult and Health Services,Head of Adults,Transport,230005,Contract Hire,11/01/2021,3821630-0985,"1,434.30",PETER`S PRIVATE HIRE/PETER BEST.
Children and Young Peoples Services,Head of Education and Skills,Transport,230007,Contract Hire,11/01/2021,3821630-0982,"1,605.94",PETER`S PRIVATE HIRE/PETER BEST.
Children and Young Peoples Services,Head of Education and Skills,Transport,230007,Contract Hire,11/01/2021,3821630-0988,"1,722.94",PETER`S PRIVATE HIRE/PETER BEST.
Children and Young Peoples Services,Head of Education and Skills,Transport,230007,Contract Hire,11/01/2021,3821630-0993,"3,175.34",PETER`S PRIVATE HIRE/PETER BEST.
Children and Young Peoples Services,Head of Education and Skills,Transport,230008,Contract Hire,11/01/2021,3821630-0986,"2,075.20",PETER`S PRIVATE HIRE/PETER BEST.
Children and Young Peoples Services,Head of Education and Skills,Transport,230008,Contract Hire,11/01/2021,3821630-0983,"2,546.60",PETER`S PRIVATE HIRE/PETER BEST.
Children and Young Peoples Services,Head of Education and Skills,Transport,230008,Contract Hire,11/01/2021,3821630-0984,"1,380.68",PETER`S PRIVATE HIRE/PETER BEST.
Children and Young Peoples Services,Head of Education and Skills,Transport,230008,Contract Hire,11/01/2021,3821630-0990,"1,204.00",PETER`S PRIVATE HIRE/PETER BEST.
Children and Young Peoples Services,Head of Education and Skills,Transport,230008,Contract Hire,11/01/2021,3821630-0991,"1,036.00",PETER`S PRIVATE HIRE/PETER BEST.
Children and Young Peoples Services,Head of Education and Skills,Transport,230005,Contract Hire,11/01/2021,3821630-0989,"1,254.00",PETER`S PRIVATE HIRE/PETER BEST.
Children and Young Peoples Services,Head of Education and Skills,Transport,230034,Contract Hire,11/01/2021,3821631-5294/DEC,588.00,PETER`S TAXIS.
Children and Young Peoples Services,Head of Education and Skills,Transport,230007,Contract Hire,11/01/2021,3821634-39007,532.00,PHOENIX TAXIS T/A PRATT`S TAXIS.
Children and Young Peoples Services,Head of Education and Skills,Transport,230007,Contract Hire,11/01/2021,3821634-39006,644.00,PHOENIX TAXIS T/A PRATT`S TAXIS.
Children and Young Peoples Services,Head of Education and Skills,Transport,230012,Contract Hire,11/01/2021,3821634-39024,856.94,PHOENIX TAXIS T/A PRATT`S TAXIS.
Children and Young Peoples Services,Head of Education and Skills,Transport,230007,Contract Hire,11/01/2021,3821634-39005,603.68,PHOENIX TAXIS T/A PRATT`S TAXIS.
Children and Young Peoples Services,Head of Education and Skills,Transport,230006,Contract Hire,11/01/2021,3821634-39009,952.00,PHOENIX TAXIS T/A PRATT`S TAXIS.
Children and Young Peoples Services,Head of Education and Skills,Transport,230006,Contract Hire,11/01/2021,3821634-39012,"1,796.00",PHOENIX TAXIS T/A PRATT`S TAXIS.
Children and Young Peoples Services,Head of Education and Skills,Transport,230006,Contract Hire,11/01/2021,3821634-39014,"1,504.00",PHOENIX TAXIS T/A PRATT`S TAXIS.
Children and Young Peoples Services,Head of Education and Skills,Transport,230006,Contract Hire,11/01/2021,3821634-39015,700.00,PHOENIX TAXIS T/A PRATT`S TAXIS.
Children and Young Peoples Services,Head of Education and Skills,Transport,230006,Contract Hire,11/01/2021,3821634-39016,"1,146.00",PHOENIX TAXIS T/A PRATT`S TAXIS.
Children and Young Peoples Services,Head of Education and Skills,Transport,230006,Contract Hire,11/01/2021,3821634-39018,"1,606.00",PHOENIX TAXIS T/A PRATT`S TAXIS.
Children and Young Peoples Services,Head of Education and Skills,Transport,230006,Contract Hire,11/01/2021,3821634-39019,"1,036.00",PHOENIX TAXIS T/A PRATT`S TAXIS.
Children and Young Peoples Services,Head of Education and Skills,Transport,230006,Contract Hire,11/01/2021,3821634-39020,"1,668.00",PHOENIX TAXIS T/A PRATT`S TAXIS.
Children and Young Peoples Services,Head of Education and Skills,Transport,230006,Contract Hire,11/01/2021,3821634-39022,504.00,PHOENIX TAXIS T/A PRATT`S TAXIS.
Neighbourhoods and Climate Change,Technical Services CM0300,Fees,901004,Capital - Detailed Design,11/01/2021,3821641-168531,"1,612.00",PREMIER TRAFFIC MANAGEMENT LTD.
"Regeneration, Economy and Growth",Transport and Contracted Services,Third Party Payments,430100,Rendered by Private Contractors,11/01/2021,3821642-139961,"1,101.23",PROTECTOR SECURITY GROUP LTD.
"Regeneration, Economy and Growth",Transport and Contracted Services,Third Party Payments,430100,Rendered by Private Contractors,11/01/2021,3821642-139962,752.16,PROTECTOR SECURITY GROUP LTD.
"Regeneration, Economy and Growth",Transport and Contracted Services,Third Party Payments,430100,Rendered by Private Contractors,11/01/2021,3821648-139960,"1,504.80",QW SECURITY LTD.
"Regeneration, Economy and Growth",Transport and Contracted Services,Third Party Payments,430100,Rendered by Private Contractors,11/01/2021,3821648-139965,956.23,QW SECURITY LTD.
Children and Young Peoples Services,Head of Education and Skills,Transport,230007,Contract Hire,11/01/2021,3821650-4062/DEC,"1,132.46",RAYNERS COACHES.
Children and Young Peoples Services,Head of Education and Skills,Transport,230007,Contract Hire,11/01/2021,3821650-1011/DEC,"1,677.91",RAYNERS COACHES.
Children and Young Peoples Services,Head of Education and Skills,Transport,230007,Contract Hire,11/01/2021,3821650-4005/DEC,"2,941.90",RAYNERS COACHES.
Children and Young Peoples Services,Head of Education and Skills,Transport,230008,Contract Hire,11/01/2021,3821650-M008/DEC,"1,951.60",RAYNERS COACHES.
